Workbook

Sheet Abstract (Total) (hidden)
A1: PMSSY PHASE III- PROJECTS
A2: CONSTRUCTION OF SUPER SPECIALITY HOSPITAL BLOCK AT GOVT. T.D. MEDICAL COLLEGE ALAPPUZHA, KERALA
A3: ABSTRACT OF ESTIMATE
A4: Sl no | B4: Desciption | C4: Amount in Rs. | G4: Remarks
C5: LMR Items | D5: DSR 2014 Items | E5: Cost Index at 53.33% | F5: Total
A6: I | B6: Civil Works | C6: =+#REF! ->  | D6: =+#REF! ->  | E6: =+#REF! ->  | F6: =SUM(C6:E6) ->  | Q6: 585509006
A7: II | B7: Plumbing and Sanitary Works | C7: =+#REF! ->  | D7: =+#REF! ->  | E7: =+#REF! ->  | F7: =SUM(C7:E7) ->  | K7: =610600000 -> 610600000 | Q7: 1915618
A8: III | B8: Signages | C8: 1703152 | D8: 138568 | E8: 73898 | F8: =SUM(C8:E8) -> 1915618
A9: Total | C9: =SUM(C6:C8) ->  | D9: =SUM(D6:D8) ->  | E9: =SUM(E6:E8) ->  | F9: =SUM(F6:F8) ->  | K9: =F9-K7 ->  | Q9: 20964462
Q10: =SUM(Q6:Q9) -> 608389086

Sheet calculation sheet (2) (hidden)
C2: Pile | D2: Pile cap | E2: Columns | F2: Lintels | G2: Beams | H2: sunshade | I2: slab | J2: Drain wall+slab | K2: Drain slab | L2: sump & pump room | M2: Lift wall | O2: Total
B3: Upto plinth | C3: 1675 | D3: 941.28 | E3: 17.54 | G3: 131.18 | I3: =238.86+5.81 -> 244.67 | J3: 57.62 | K3: 23 | L3: 101.81 | M3: 11.64 | O3: =E3+G3+I3+D3+M3+L3+J3+H3 -> 1505.74 | P3: 1515 | Q3: =P3-O3 -> 9.26
B4: Ground floor | E4: 100.93 | F4: 20.57 | G4: 113.39 | H4: 39.79 | I4: 313.52 | L4: 94.6 | O4: =E4+F4+G4+H4+I4+J4+K4+L4+M4 -> 682.8 | P4: 685 | Q4: 2.2 | R4: ok
B5: First floor | E5: 93.3 | F5: 21.98 | G5: 112.28 | H5: 44.33 | I5: 273.37 | O5: =E5+F5+G5+H5+I5+J5+K5+L5+M5 -> 545.26 | P5: 550 | Q5: 4.74 | R5: ok
B6: Second floor | E6: 92.54 | F6: 19.81 | G6: 109.49 | H6: 44.96 | I6: 264.67 | O6: 531.47 | P6: 535 | Q6: 3.53 | R6: ok
B7: Third floor | E7: 92.54 | F7: 19.42 | G7: 111.2 | H7: 44.96 | I7: 264.3 | O7: 532.42 | P7: 535 | Q7: 2.58 | R7: ok
B8: Fourth Floor | E8: 92.54 | F8: 21.48 | G8: 111.54 | H8: 44.96 | I8: 264.05 | O8: 534.57 | P8: 540 | Q8: 5.43 | R8: ok
B9: Fifth Floor | E9: 92.54 | F9: 19.87 | G9: 111.33 | H9: 44.96 | I9: 263.7 | O9: 532.4 | P9: 535 | Q9: 2.6 | R9: ok
B10: Sixth Floor | E10: 92.54 | F10: 20.8 | G10: 107.4 | H10: 114.62 | I10: 275.56 | O10: 610.92 | P10: 615 | Q10: 4.08 | R10: ok
B11: Terrace | E11: 23.64 | F11: 3.75 | G11: 14.06 | H11: 0 | I11: =72.7 -> 72.7 | O11: 114.15 | P11: 115 | Q11: 0.85 | R11: ok
B12: Total | C12: =SUM(C3:C11) -> 1675 | D12: 941.28 | E12: 698.11 | F12: 147.68 | G12: 921.87 | H12: 378.58 | I12: 2236.54 | J12: 57.62 | K12: 23 | L12: 196.41 | M12: 11.64 | O12: 5589.73 | P12: =SUM(P4:P11) -> 4110
B13: Total as per rft sheet | C13: 1675 | D13: 950 | E13: 711 | F13: 144 | G13: 933 | H13: 380 | I13: 2238 | J13: 60 | K13: 23 | L13: 197 | M13: 12
B14: difference | C14: =C13-C12 -> 0 | D14: =D13-D12 -> 8.72 | E14: 12.89 | F14: -3.68 | G14: 11.13 | H14: 1.42 | I14: 1.46 | J14: 2.38 | K14: 0 | L14: 0.59 | M14: 0.36
C15: 100 | D15: 150 | E15: 200 | F15: 90 | G15: 150 | H15: 90 | I15: 120 | J15: 90 | K15: 120 | L15: 120 | M15: 120
C16: =C15*C13 -> 167500 | D16: =D15*D13 -> 142500 | E16: 142200 | F16: 12960 | G16: 139950 | H16: 34200 | I16: 268560 | J16: 5400 | K16: 2760 | L16: 23640 | M16: 1440
C17: =C16+D16+E16+F16+G16+H16+I16+K16+J16+L16+M16 -> 941110
B21: Final for steel
C23: Pile | D23: Pile cap | E23: Columns | F23: Lintels | G23: Beams | H23: sunshade | I23: slab | J23: Drain wall+slab | K23: Drain slab | L23: sump & pump room | M23: Lift wall | O23: Total
B24: Upto plinth | C24: 1675 | D24: =8.72+941.28 -> 950 | E24: 17.5 | G24: 131.2 | I24: 244.7 | J24: 58 | K24: 23 | L24: 101.8 | M24: 12 | O24: =E24+G24+I24+D24+M24+L24+J24+H24 -> 1515.2 | P24: 1515 | Q24: =P24-O24 -> -0.2 | S24: 244.67 | T24: 244.7
B25: Ground floor | E25: 102 | F25: 20.57 | G25: 114 | H25: 39.79 | I25: 313.44 | L25: 95.2 | O25: =E25+F25+G25+H25+I25+J25+K25+L25+M25 -> 685 | P25: 685 | Q25: 0 | R25: ok | S25: 313.52 | T25: 313.55
B26: First floor | E26: 94.5 | F26: 21.98 | G26: 115 | H26: =0.65+44.33 -> 44.98 | I26: 273.4 | O26: =E26+F26+G26+H26+I26+J26+K26+L26+M26 -> 549.86 | P26: 550 | Q26: 0.14 | R26: ok | S26: 273.37 | T26: 273.4
B27: Second floor | E27: 94.5 | F27: 19.81 | G27: 110.5 | H27: =0.23+44.96 -> 45.19 | I27: 265 | O27: 535 | P27: 535 | Q27: 0 | R27: ok | S27: 264.67 | T27: 265
B28: Third floor | E28: 94.5 | F28: 19.42 | G28: 111.5 | H28: =0.16+44.96 -> 45.12 | I28: 264.46 | O28: 535 | P28: 535 | Q28: 0 | R28: ok | S28: 264.3 | T28: 264.35
B29: Fourth Floor | E29: 94 | F29: 21.48 | G29: 114.3 | H29: =0.26+44.96 -> 45.22 | I29: 265 | O29: 540 | P29: 540 | Q29: 0 | R29: ok | S29: 264.05 | T29: 265
B30: Fifth Floor | E30: 95 | F30: 19.87 | G30: 111.35 | H30: =0.12+44.96 -> 45.08 | I30: 263.7 | O30: 535 | P30: 535 | Q30: 0 | R30: ok | S30: 263.7 | T30: 263.7
B31: Sixth Floor | E31: 95 | F31: =20.8-3.68 -> 17.12 | G31: 110.65 | H31: 114.62 | I31: 275.6 | O31: 612.99 | P31: 615 | Q31: 2.01 | R31: ok | S31: 275.56 | T31: 275.6
B32: Terrace | E32: 24 | F32: 3.75 | G32: 14.5 | H32: 0 | I32: 72.7 | O32: 114.95 | P32: 115 | Q32: 0.05 | R32: ok | S32: 72.7 | T32: 72.7
B33: Total | C33: =SUM(C24:C32) -> 1675 | D33: 950 | E33: 711 | F33: 144 | G33: 933 | H33: 380 | I33: 2238 | J33: 58 | K33: 23 | L33: 197 | M33: 12 | O33: 5623 | P33: 5625 | S33: 2236.54 | T33: =SUM(T24:T32) -> 2238
B34: Total as per rft sheet | C34: 1675 | D34: 950 | E34: 711 | F34: 144 | G34: 933 | H34: 380 | I34: 2238 | J34: 60 | K34: 23 | L34: 197 | M34: 12
B35: difference | C35: =C34-C33 -> 0 | D35: =D34-D33 -> 0 | E35: 0 | F35: 0 | G35: 0 | H35: 0 | I35: 0 | J35: 2 | K35: 0 | L35: 0 | M35: 0
C36: 100 | D36: 150 | E36: 200 | F36: 90 | G36: 150 | H36: 90 | I36: 120 | J36: 90 | K36: 120 | L36: 120 | M36: 120
C37: =C36*C34 -> 167500 | D37: =D36*D34 -> 142500 | E37: 142200 | F37: 12960 | G37: 139950 | H37: 34200 | I37: 268560 | J37: 5400 | K37: 2760 | L37: 23640 | M37: 1440
C38: =C37+D37+E37+F37+G37+H37+I37+K37+J37+L37+M37 -> 941110
B39: Final for concrete
C41: Pile | D41: Pile cap | E41: Columns | F41: Lintels | G41: Beams | H41: sunshade | I41: slab | J41: Drain wall+slab | K41: Drain slab | L41: sump & pump room | M41: Lift wall | O41: Total
B42: Upto plinth | C42: 1675 | D42: =8.72+941.28 -> 950 | E42: 17.5 | G42: 131.2 | I42: 244.7 | J42: =0.18+57.62 -> 57.8 | K42: 23 | L42: 101.8 | M42: 12 | O42: =E42+G42+I42+D42+M42+L42+J42+H42 -> 1515 | P42: 1515 | Q42: =P42-O42 -> 0 | S42: 244.67 | T42: 244.7
B43: Ground floor | E43: 102 | F43: 20.57 | G43: 114 | H43: 39.79 | I43: 313.44 | L43: 95.2 | O43: =E43+F43+G43+H43+I43+J43+K43+L43+M43 -> 685 | P43: 685 | Q43: 0 | R43: ok | S43: 313.52 | T43: 313.55
B44: First floor | E44: 94.5 | F44: =21.98+0.02 -> 22 | G44: 115 | H44: =0.65+44.33+0.12 -> 45.1 | I44: 273.4 | O44: =E44+F44+G44+H44+I44+J44+K44+L44+M44 -> 550 | P44: 550 | Q44: 0 | R44: ok | S44: 273.37 | T44: 273.4
B45: Second floor | E45: 94.5 | F45: 19.81 | G45: 110.5 | H45: =0.23+44.96 -> 45.19 | I45: 265 | O45: 535 | P45: 535 | Q45: 0 | R45: ok | S45: 264.67 | T45: 265
B46: Third floor | E46: 94.5 | F46: 19.42 | G46: 111.5 | H46: =0.16+44.96 -> 45.12 | I46: 264.46 | O46: 535 | P46: 535 | Q46: 0 | R46: ok | S46: 264.3 | T46: 264.35
B47: Fourth Floor | E47: 94 | F47: 21.48 | G47: 114.3 | H47: =0.26+44.96 -> 45.22 | I47: 265 | O47: 540 | P47: 540 | Q47: 0 | R47: ok | S47: 264.05 | T47: 265
B48: Fifth Floor | E48: 95 | F48: 19.87 | G48: 111.35 | H48: =0.12+44.96 -> 45.08 | I48: 263.7 | O48: 535 | P48: 535 | Q48: 0 | R48: ok | S48: 263.7 | T48: 263.7
B49: Sixth Floor | E49: 95 | F49: =20.8 -> 20.8 | G49: =110.65-1.67 -> 108.98 | H49: 114.62 | I49: 275.6 | O49: 615 | P49: 615 | Q49: 0 | R49: ok | S49: 275.56 | T49: 275.6
B50: Terrace | E50: 24 | F50: 3.75 | G50: 14.55 | H50: 0 | I50: 72.7 | O50: 115 | P50: 115 | Q50: 0 | R50: ok | S50: 72.7 | T50: 72.7
B51: Total | C51: =SUM(C42:C50) -> 1675 | D51: 950 | E51: 711 | F51: 147.7 | G51: 931.38 | H51: 380.12 | I51: 2238 | J51: 57.8 | K51: 23 | L51: 197 | M51: 12 | O51: 5625 | P51: 5625 | S51: 2236.54 | T51: =SUM(T42:T50) -> 2238
B52: Final for steel
C54: Pile | D54: Pile cap | E54: Columns | F54: Lintels | G54: Beams | H54: sunshade | I54: slab | J54: Drain wall+slab | K54: Drain slab | L54: sump & pump room | M54: Lift wall | O54: Total
B55: Upto plinth | C55: 1675 | D55: =8.72+941.28 -> 950 | E55: 17.5 | G55: 131.2 | I55: 244.7 | J55: =58+2 -> 60 | K55: 23 | L55: 101.8 | M55: 12 | O55: =E55+G55+I55+D55+M55+L55+J55+H55 -> 1517.2 | P55: 1515 | Q55: =P55-O55 -> -2.2 | S55: 244.67 | T55: 244.7
B56: Ground floor | E56: 102 | F56: 20.57 | G56: 114 | H56: 39.79 | I56: 313.44 | L56: 95.2 | O56: =E56+F56+G56+H56+I56+J56+K56+L56+M56 -> 685 | P56: 685 | Q56: 0 | R56: ok | S56: 313.52 | T56: 313.55
B57: First floor | E57: 94.5 | F57: 21.98 | G57: 115 | H57: =0.65+44.33 -> 44.98 | I57: 273.4 | O57: =E57+F57+G57+H57+I57+J57+K57+L57+M57 -> 549.86 | P57: 550 | Q57: 0.14 | R57: ok | S57: 273.37 | T57: 273.4
B58: Second floor | E58: 94.5 | F58: 19.81 | G58: 110.5 | H58: =0.23+44.96 -> 45.19 | I58: 265 | O58: 535 | P58: 535 | Q58: 0 | R58: ok | S58: 264.67 | T58: 265
B59: Third floor | E59: 94.5 | F59: 19.42 | G59: 111.5 | H59: =0.16+44.96 -> 45.12 | I59: 264.46 | O59: 535 | P59: 535 | Q59: 0 | R59: ok | S59: 264.3 | T59: 264.35
B60: Fourth Floor | E60: 94 | F60: 21.48 | G60: 114.3 | H60: =0.26+44.96 -> 45.22 | I60: 265 | O60: 540 | P60: 540 | Q60: 0 | R60: ok | S60: 264.05 | T60: 265
B61: Fifth Floor | E61: 95 | F61: 19.87 | G61: 111.35 | H61: =0.12+44.96 -> 45.08 | I61: 263.7 | O61: 535 | P61: 535 | Q61: 0 | R61: ok | S61: 263.7 | T61: 263.7
B62: Sixth Floor | E62: 95 | F62: =20.8-3.68 -> 17.12 | G62: 110.65 | H62: 114.62 | I62: 275.6 | O62: 612.99 | P62: 615 | Q62: 2.01 | R62: ok | S62: 275.56 | T62: 275.6
B63: Terrace | E63: 24 | F63: 3.75 | G63: 14.5 | H63: 0 | I63: 72.7 | O63: 114.95 | P63: 115 | Q63: 0.05 | R63: ok | S63: 72.7 | T63: 72.7
B64: Total | C64: =SUM(C55:C63) -> 1675 | D64: =SUM(D55:D63) -> 950 | E64: 711 | F64: 144 | G64: 933 | H64: 380 | I64: 2238 | J64: 60 | K64: 23 | L64: 197 | M64: 12 | O64: =SUM(O55:O63) -> 5625 | P64: =SUM(P55:P63) -> 5625 | S64: 2236.54 | T64: =SUM(T55:T63) -> 2238
B65: Total as per rft sheet | C65: 1675 | D65: 950 | E65: 711 | F65: 144 | G65: 933 | H65: 380 | I65: 2238 | J65: 60 | K65: 23 | L65: 197 | M65: 12
B66: difference | C66: =C65-C64 -> 0 | D66: =D65-D64 -> 0 | E66: 0 | F66: 0 | G66: 0 | H66: 0 | I66: 0 | J66: 0 | K66: 0 | L66: 0 | M66: 0
C67: 100 | D67: 150 | E67: 200 | F67: 90 | G67: 150 | H67: 90 | I67: 120 | J67: 90 | K67: 120 | L67: 120 | M67: 120
C68: =C67*C65 -> 167500 | D68: =D67*D65 -> 142500 | E68: 142200 | F68: 12960 | G68: 139950 | H68: 34200 | I68: 268560 | J68: 5400 | K68: 2760 | L68: 23640 | M68: 1440
C69: =C68+D68+E68+F68+G68+H68+I68+K68+J68+L68+M68 -> 941110
B71: Upto plinth | C71: =C55*C67 -> 167500 | D71: =D55*D67 -> 142500 | E71: 3500 | F71: 0 | G71: 19680 | H71: 0 | I71: 29364 | J71: 5400 | K71: =K55*K67 -> 2760 | L71: 12216 | M71: 1440 | O71: =SUM(C71:M71) -> 384360
B72: Ground floor | C72: =C56*C67 -> 0 | D72: =D56*D67 -> 0 | E72: 20400 | F72: 1851.3 | G72: 17100 | H72: 3581.1 | I72: 37612.8 | J72: 0 | K72: 0 | L72: 11424 | M72: 0 | O72: =SUM(C72:M72) -> 91969.2
B73: First floor | C73: =C57*C67 -> 0 | D73: =D57*D67 -> 0 | E73: 18900 | F73: 1978.2 | G73: 17250 | H73: 4048.2 | I73: 32808 | J73: 0 | K73: 0 | L73: 0 | M73: 0 | O73: 74984.4
B74: Second floor | C74: =C58*C67 -> 0 | D74: =D58*D67 -> 0 | E74: 18900 | F74: 1782.9 | G74: 16575 | H74: 4067.1 | I74: 31800 | J74: 0 | K74: 0 | L74: 0 | M74: 0 | O74: 73125
B75: Third floor | C75: =C59*C67 -> 0 | D75: =D59*D67 -> 0 | E75: 18900 | F75: 1747.8 | G75: 16725 | H75: 4060.8 | I75: 31735.2 | J75: 0 | K75: 0 | L75: 0 | M75: 0 | O75: 73168.8
B76: Fourth Floor | C76: =C60*C67 -> 0 | D76: =D60*D67 -> 0 | E76: 18800 | F76: 1933.2 | G76: 17145 | H76: 4069.8 | I76: 31800 | J76: 0 | K76: 0 | L76: 0 | M76: 0 | O76: 73748
B77: Fifth Floor | C77: =C61*C67 -> 0 | D77: =D61*D67 -> 0 | E77: 19000 | F77: 1788.3 | G77: 16702.5 | H77: 4057.2 | I77: 31644 | J77: 0 | K77: 0 | L77: 0 | M77: 0 | O77: 73192
B78: Sixth Floor | C78: =C62*C67 -> 0 | D78: =D62*D67 -> 0 | E78: 19000 | F78: 1540.8 | G78: 16597.5 | H78: 10315.8 | I78: 33072 | J78: 0 | K78: 0 | L78: 0 | M78: 0 | O78: 80526.1
B79: Terrace | C79: =C63*C67 -> 0 | D79: =D63*D67 -> 0 | E79: 4800 | F79: 337.5 | G79: 2175 | H79: 0 | I79: 8724 | J79: 0 | K79: 0 | L79: 0 | M79: 0 | O79: 16036.5
C80: =SUM(C71:C79) -> 167500 | D80: =SUM(D71:D79) -> 142500 | E80: 142200 | F80: 12960 | G80: 139950 | H80: 34200 | I80: 268560 | J80: 5400 | K80: 2760 | L80: 23640 | M80: 1440 | O80: =SUM(O71:O79) -> 941110
C81: =SUM(C80:M80) -> 941110
C83: Plastering before round off | D83: Wall tiles before round off | E83: Skirting before round off | F83: Wall tile/skirting to be deducted from plastering
B84: Ground floor | C84: 3949.24 | D84: 817.01 | E84: 26.73 | F84: =C84-D84-E84 -> 3105.5
B85: First floor | C85: 4136.66 | D85: 781.89 | E85: 73.92 | F85: =C85-D85-E85 -> 3280.85
B86: Second floor | C86: 4421.54 | D86: 841.71 | E86: 62.58 | F86: 3517.25
B87: Third floor | C87: 3683.28 | D87: 807.38 | E87: 41.6 | F87: 2834.3
B88: Fourth Floor | C88: 4263.95 | D88: 805.84 | E88: 59.91 | F88: 3398.2
B89: Fifth Floor | C89: 3960.3 | D89: 967.39 | E89: 40.12 | F89: 2952.79
B90: Sixth Floor | C90: 4405.21 | D90: 967.58 | E90: 52.52 | F90: 3385.11
B91: Terrace | C91: 783.65 | F91: =C91-D91-E91 -> 783.65
B92: White cement based putty | C92: inside plaster | D92: ceiling plaster
B93: Ground Floor | C93: 3110 | D93: 945 | E93: =C93+D93 -> 4055 | F93: =E93-3.75 -> 4051.25
B94: First Floor | C94: 3285 | D94: 905 | E94: =C94+D94 -> 4190 | F94: =E94-3.75 -> 4186.25
B95: Second Floor | C95: 3525 | D95: 895 | E95: 4420 | F95: 4416.25
B96: Third Floor | C96: 2840 | D96: 890 | E96: 3730 | F96: 3726.25
B97: Fourth Floor | C97: 3405 | D97: 875 | E97: 4280 | F97: 4276.25
B98: Fifth Floor | C98: 2955 | D98: 1205 | E98: 4160 | F98: 4156.25
B99: Sixth Floor | C99: 3390 | D99: 1515 | E99: 4905 | F99: 4901.25
B100: Terrace Floor | C100: 790 | D100: 500 | E100: 1290 | F100: 1286.25
E101: =SUM(E93:E100) -> 31030 | F101: =SUM(F93:F100) -> 31000
B103: Final for steel
C105: Pile | D105: Pile cap | E105: Columns | F105: Lintels | G105: Beams | H105: sunshade | I105: slab | J105: Drain wall+slab | K105: Drain slab | L105: sump & pump room | M105: Lift wall | O105: Pile | P105: Pile cap | Q105: Columns | R105: Lintels | S105: Beams | T105: sunshade | U105: slab | V105: Drain wall+slab | W105: Drain slab | X105: sump & pump room | Y105: Lift wall
C106: 100 | D106: 150 | E106: 200 | F106: 90 | G106: 150 | H106: 90 | I106: 120 | J106: 90 | K106: 120 | L106: 120 | M106: 120
B107: Upto plinth | C107: 1675 | D107: =8.72+941.28 -> 950 | E107: 17.5 | G107: 131.2 | I107: 244.7 | J107: =58+2 -> 60 | K107: 23 | L107: 101.8 | M107: 12 | O107: =C107*C106 -> 167500 | P107: =D107*D106 -> 142500 | Q107: =E107*E106 -> 3500 | S107: =G107*G106 -> 19680 | U107: =I107*I106 -> 29364 | V107: =J107*J106 -> 5400 | W107: =K107*K106 -> 2760 | X107: =L107*L106 -> 12216 | Y107: =M106*M107 -> 1440 | Z107: =SUM(O107:Y107) -> 384360
B108: Ground floor | E108: 102 | F108: 20.57 | G108: 114 | H108: 39.79 | I108: 313.44 | L108: 95.2 | Q108: =E108*E106 -> 20400 | R108: =F108*F106 -> 1851.3 | S108: 17100 | T108: 3581.1 | U108: 37612.8 | V108: 0 | W108: 0 | X108: 11424 | Y108: 0 | Z108: =SUM(O108:Y108) -> 91969.2
B109: First floor | E109: 94.5 | F109: 21.98 | G109: 115 | H109: =0.65+44.33 -> 44.98 | I109: 273.4 | Q109: =E109*E106 -> 18900 | R109: =F109*F106 -> 1978.2 | S109: 17250 | T109: 4048.2 | U109: 32808 | V109: 0 | W109: 0 | X109: 0 | Y109: 0 | Z109: 74984.4
B110: Second floor | E110: 94.5 | F110: 19.81 | G110: 110.5 | H110: =0.23+44.96 -> 45.19 | I110: 265 | Q110: =E110*E106 -> 18900 | R110: =F110*F106 -> 1782.9 | S110: 16575 | T110: 4067.1 | U110: 31800 | V110: 0 | W110: 0 | X110: 0 | Y110: 0 | Z110: 73125
B111: Third floor | E111: 94.5 | F111: 19.42 | G111: 111.5 | H111: =0.16+44.96 -> 45.12 | I111: 264.46 | Q111: =E111*E106 -> 18900 | R111: =F111*F106 -> 1747.8 | S111: 16725 | T111: 4060.8 | U111: 31735.2 | V111: 0 | W111: 0 | X111: 0 | Y111: 0 | Z111: 73168.8
B112: Fourth Floor | E112: 94 | F112: 21.48 | G112: 114.3 | H112: =0.26+44.96 -> 45.22 | I112: 265 | Q112: =E112*E106 -> 18800 | R112: =F112*F106 -> 1933.2 | S112: 17145 | T112: 4069.8 | U112: 31800 | V112: 0 | W112: 0 | X112: 0 | Y112: 0 | Z112: 73748
B113: Fifth Floor | E113: 95 | F113: 19.87 | G113: 111.35 | H113: =0.12+44.96 -> 45.08 | I113: 263.7 | Q113: =E113*E106 -> 19000 | R113: =F113*F106 -> 1788.3 | S113: 16702.5 | T113: 4057.2 | U113: 31644 | V113: 0 | W113: 0 | X113: 0 | Y113: 0 | Z113: 73192
B114: Sixth Floor | E114: 95 | F114: =20.8-3.68 -> 17.12 | G114: 110.65 | H114: 114.62 | I114: 275.6 | Q114: =E114*E106 -> 19000 | R114: =F114*F106 -> 1540.8 | S114: 16597.5 | T114: 10315.8 | U114: 33072 | V114: 0 | W114: 0 | X114: 0 | Y114: 0 | Z114: 80526.1
B115: Terrace | E115: 24 | F115: 3.75 | G115: 14.5 | H115: 0 | I115: 72.7 | Q115: =E115*E106 -> 4800 | R115: =F115*F106 -> 337.5 | S115: 2175 | T115: 0 | U115: 8724 | V115: 0 | W115: 0 | X115: 0 | Y115: 0 | Z115: 16036.5
B116: Total | C116: =SUM(C107:C115) -> 1675 | D116: =SUM(D107:D115) -> 950 | E116: 711 | F116: 144 | G116: 933 | H116: 380 | I116: 2238 | J116: 60 | K116: 23 | L116: 197 | M116: 12 | O116: =C116*C106 -> 167500 | P116: =D116*D106 -> 142500 | Q116: =E116*E106 -> 142200 | R116: =F116*F106 -> 12960 | S116: 139950 | T116: 34200 | U116: 268560 | V116: 5400 | W116: 2760 | X116: 23640 | Y116: 1440 | Z116: 941110
B117: Total as per rft sheet | C117: 1675 | D117: 950 | E117: 711 | F117: 144 | G117: 933 | H117: 380 | I117: 2238 | J117: 60 | K117: 23 | L117: 197 | M117: 12 | O117: =SUM(O107:O115) -> 167500 | P117: =SUM(P107:P115) -> 142500 | Q117: =SUM(Q107:Q115) -> 142200 | R117: =SUM(R107:R115) -> 12960 | S117: 139950 | T117: 34200 | U117: 268560 | V117: 5400 | W117: 2760 | X117: 23640 | Y117: 1440
B118: difference | C118: =C117-C116 -> 0 | D118: =D117-D116 -> 0 | E118: 0 | F118: 0 | G118: 0 | H118: 0 | I118: 0 | J118: 0 | K118: 0 | L118: 0 | M118: 0 | O118: =O117-O116 -> 0 | P118: =P117-P116 -> 0 | Q118: 0 | R118: 0 | S118: 0 | T118: 0 | U118: 0 | V118: 0 | W118: 0 | X118: 0 | Y118: 0
C119: 100 | D119: 150 | E119: 200 | F119: 90 | G119: 150 | H119: 90 | I119: 120 | J119: 90 | K119: 120 | L119: 120 | M119: 120
C120: =C119*C117 -> 167500 | D120: =D119*D117 -> 142500 | E120: 142200 | F120: 12960 | G120: 139950 | H120: 34200 | I120: 268560 | J120: 5400 | K120: 2760 | L120: 23640 | M120: 1440
C121: =C120+D120+E120+F120+G120+H120+I120+K120+J120+L120+M120 -> 941110

Sheet ABST-CIVIL WORKS ci compar (hidden)
A1: CONSTRUCTION OF NEW PROPOSED OUT PATIENT BLOCK FOR GENERAL HOSPITAL, ALAPPUZHA
A2: ABSTRACT OF ESTIMATE - CIVIL WORKS
A4: Item No | B4: DSR code | C4: Details of items | D4: Unit | E4: Quantity | F4: Rate | G4: Amount | I4: Rate with CI | J4: Amount with CI | K4: Amount x CI
A5: 1 | B5: 2.31 | C5: Clearing jungle including uprooting of rank vegetation, grass, brush wood, trees and saplings of girth upto 30 cm measured at a height of 1 m above ground level and removal of rubbish upto a distance of 50 m outside the periphery of the area cleared. | D5: Sqm | E5: =#REF! ->  | F5: 7.2 | G5: =ROUND(F5*E5,0) ->  | H5: 7.2 | I5: =H5*1.549 -> 11.1528 | J5: =I5*E5 ->  | K5: =ROUND(G5*1.549,0) ->  | L5: =K5-J5 ->  | N5: 11.1528
A6: 2 | B6: 2.6.1 | C6: Earth work in excavation by mechanical means (Hydraulic excavator) / manual means over areas (exceeding 30cm in depth. 1.5m in width as well as 10 sqm on plan) including disposal of excavated earth, lead upto 50m and lift upto 1.5m, disposed earth to be levelled and neatly dressed. All kinds of soil | D6: Cum | E6: =#REF! ->  | F6: 125.95 | G6: =ROUND(F6*E6,0) ->  | H6: 125.95 | I6: =H6*1.549 -> 195.09655 | J6: =I6*E6 ->  | K6: =ROUND(G6*1.549,0) ->  | L6: =K6-J6 -> 
A7: 3 | B7: 2.8.1 | C7: Earth work in excavation by mechanical means (Hydraulic excavator) / manual means in foundation trenches or drains (not exceeding 1.5 m in width or 10 sqm on plan) including dressing of sides and ramming of bottoms, lift upto 1.5 m, including getting out the excavated soil and disposal of surplus excavated soil as directed, within a lead of 50 m. All kinds of soil. | D7: Cum | E7: =#REF! ->  | F7: 166.4 | H7: 166.4 | I7: 257.7536
A8: 4 | B8: 2.26.1 | C8: Extra for every additional lift of 1.5 m or part thereof in excavation /banking excavated or stacked materials: All kinds of soil. | D8: Cum | E8: =#REF! ->  | F8: 51.75 | H8: 51.75 | I8: 80.16075
A9: =A8+1 -> 5 | B9: 2.25 | C9: Filling available excavated earth (excluding rock) in trenches, plinth, sides of foundations etc. in layers not exceeding 20cm in depth, consolidating each deposited layer by ramming and watering, lead up to 50 m and lift upto 1.5 m | D9: Cum | E9: =#REF! ->  | F9: 125.75 | H9: 125.75 | I9: 194.78675
A10: =+A9+1 -> 6 | B10: 1.1.2.8 | C10: Conveying and disposing off the excavated excess earth | D10: Cum | E10: =#REF! ->  | F10: 149.17 | H10: 149.17 | I10: 231.06433
A11: 7 | B11: 2.34.1 | C11: Supplying chemical emulsion in sealed containers including delivery as specified Chlorpyriphos/ Lindane emulsifiable concentrate of 20% | D11: Litre | E11: =#REF! ->  | F11: 185.95 | H11: 185.95 | I11: 288.03655
A12: 8 | B12: 2.35.3.1 | C12: Treatment of soil under existing floors using chemical emulsion @ one litre per hole, 300 mm apart including drilling 12 mm diameter holes and plugging with cement mortar 1 :2 (1 cement : 2 Coarse sand) to match the existing floor : With Chlorpyriphos/Lindane E.C. 20% with 1% concentration | D12: Sqm | E12: =#REF! ->  | F12: 131.9 | H12: 131.9 | I12: 204.3131
A13: 9 | B13: 4.1.5 | C13: 1:3:6 (1 Cement : 3 coarse sand : 6 graded stone aggregate 20 mm nominal size).for foundation and flooring | D13: Cum | E13: =#REF! ->  | F13: 4927 | H13: 4927 | I13: 7631.923
A14: 10 | B14: 4.2.2 | C14: Providing and laying cement concrete in retaining walls, return walls, walls(any thickness) including attached pilasters, columns, piers, abutments,pillars, posts, struts, buttresses, string or lacing courses, parapets, coping,bed blocks, anchor blocks, plain window sills, fillets, sunken floor,etc., upto floor five level, excluding the cost of centering, shuttering and finishing: 1:1½:3 (1 cement:1½ coarse sand:3 graded stone aggregate20 mm nominal size) | D14: Cum | E14: =#REF! ->  | F14: 6990.4 | H14: 6990.4 | I14: 10828.1296
A15: 11 | B15: 4.17 | C15: Making plinth protection 50mm thick of cement concrete 1:3:6 (1 cement :3 coarse sand : 6 graded stone aggregate 20 mm nominal size) over 75mm thick bed of dry brick ballast 40 mm nominal size, well rammed and consolidated and grouted with fine sand including finishing the top smooth | D15: Sqm | E15: =#REF! ->  | F15: 450.35 | H15: 450.35 | I15: 697.59215
A16: 12 | B16: 20.2A | C16: Boring, providing and installation bored cast-in-situ reinforced cement concrete piles of garde M-25 of specified diameter and length below pile cap, to carry a safe working load not less than specified, excluding the cost of steel reinforcement but including the cost of boring with bentonite solution and temporary casing of appropriate length for setting out and removal of same and the length of the pile to be embedded in the pile cap etc. by Crawler mounted, telescopic boom hydraulic pilling Rig all complete, including removal of excavated earth with all its lifts and leads. Bottom of pile should be embedded 3.00m to the dense sand stratum. (length of pile for payment shall be measured up to bottom of pile cap). Note: Truck Mounted rotary/TMR/Tube well boring machine shall not be used. | G16: 0 | I16: 0 | J16: 0 | K16: 0 | L16: 0
A17: a | B17: 20.2A.2 + 20.2A.3 | C17: 800 mm dia piles | D17: m | E17: =#REF! ->  | F17: 6029.9 | H17: 6029.9 | I17: 9340.3151
A18: b | B18: 20.2A.2 + 20.2A.3 | C18: 900 mm dia piles | D18: m | E18: =#REF! ->  | F18: 7451.15 | H18: 7451.15 | I18: 11541.83135
A19: c | B19: 20.2A.3 | C19: 1000 mm dia piles | D19: m | E19: =#REF! ->  | F19: 8872.4 | H19: 8872.4 | I19: 13743.3476
A20: 13 | B20: 20.6.2 | C20: Vertical load testing of piles in accordance with IS 2911 (Part IV) including installation of loading platform by Kentledge method and preparation of pile head or construction of test cap and dismantling of test cap after test etc. complete as per specification & the direction of Engineer in-charge. Note: 1. Initial and Routine Load Test shall not be carried out by Dynamic method of testing. Note: 2. Testing agency shall submitt the design of loading platform for the approval of Engineer-in-charge.: Single pile above 50 tonne and upto 100 tonne Safe capacity | G20: 0 | I20: 0 | J20: 0 | K20: 0 | L20: =K20-J20 -> 0
A21: a | B21: 20.6.2.1 | C21: Initial test (Test Load 2.5 times the Safe capacity) | D21: Per Test | E21: =#REF! ->  | F21: 46808.45 | H21: 46808.45 | I21: 72506.28905
A22: b | B22: 20.6.2.2 | C22: Routine test (Test Load 1.5 times the Safe capacity) | D22: Per Test | E22: =#REF! ->  | F22: 26714.5 | H22: 26714.5 | I22: 41380.7605
A23: 14 | B23: 5.37 | C23: Providing and laying in position ready mixed M-25 grade concrete for reinforced cement concrete work, using cement content as per approved design mix, manufactured in fully automatic batching plant and transported to site of work in transit mixer for all leads having continuous agitated mixer, manufactured as per mix design of specified grade for reinforced cement concrete work including pumping of R.M.C. from transit mixer to site of laying , excluding the cost of centering, shuttering finishing and reinforcement including cost of admixtures in recommended proportions as per IS : 9103 to accelerate/ retard setting of concrete, improve workability without impairing strength and durability as per direction of the Engineer - in - charge. | G23: 0 | I23: 0 | J23: 0 | K23: 0 | L23: 0
C24: (Note :- Cement content considered in this item is @ 330 kg/cum. Excess/less cement used as per design mix is payable/recoverable separately). | G24: 0 | I24: 0 | J24: 0 | K24: 0 | L24: 0
A25: a | B25: 5.37.1 | C25: All works upto plinth level. | D25: Cum | E25: =#REF! ->  | F25: 6713.6 | H25: 6713.6 | I25: 10399.3664
A26: b | B26: 5.37.2 | C26: All works above plinth level upto floor V level. | D26: Cum | E26: =#REF! ->  | F26: 7517.2 | H26: 7517.2 | I26: 11644.1428
A27: 15 | B27: 5.34 | C27: Extra for providing richer mixes at all floor levels.Note:- Excess/less cement over the specified cement content used is payable /recoverable separately. | G27: 0 | I27: 0 | J27: 0 | K27: 0 | L27: 0
A28: a | B28: 5.34.1 | C28: Providing M-30 grade concrete instead of M-25 grade BMC/RMC. (Note:- Cement content considered in M-30 is @ 340 kg/cum). | D28: Cum | E28: =#REF! ->  | F28: 69.5 | H28: 69.5 | I28: 107.6555
A29: 16 | B29: 5.38 | C29: Extra for R.C.C./ B.M.C/ R.M.C. work above floor V level for each four floors or part thereof. | D29: Cum | E29: =#REF! ->  | F29: 232.3 | H29: 232.3 | I29: 359.8327
A30: 17 | B30: 5.12 | C30: Providing, hoisting and fixing up to floor five level precast reinforced cement concrete work in string courses, bands, copings, bed plates, anchor blocks,plain window sills and the like, including the cost of required centering,shuttering but excluding cost of reinforcement, with 1:2:4 (1 cement: 2coarse sand: 4 graded stone aggregate 20 mm nominal size). | D30: Cum | E30: =#REF! ->  | F30: 6972.1 | H30: 6972.1 | I30: 10799.7829 | L30: =K30-J30 -> 
A31: 18 | B31: 5.9 | C31: Centering and shuttering including strutting, propping etc. and removal of form for : | G31: 0 | I31: 0 | J31: 0 | K31: 0 | L31: 0
A32: a | B32: 5.9.1 | C32: Foundations, footings, bases of columns, etc. for mass concrete. | D32: Sqm | E32: =#REF! ->  | F32: 193.95 | H32: 193.95 | I32: 300.42855
A33: b | B33: 5.9.2 | C33: Walls (any thickness) including attached pilasters, butteresses, plinth and string courses etc. | D33: Sqm | E33: =#REF! ->  | F33: 378.6 | H33: 378.6 | I33: 586.4514
A34: c | B34: 5.9.3 | C34: Suspended floors, roofs, landings, balconies and access platform. | D34: Sqm | E34: =#REF! ->  | F34: 422.3 | H34: 422.3 | I34: 654.1427
A35: d | B35: 5.9.5 | C35: Lintels, beams, plinth beams, girders, bressumers and cantilevers. | D35: Sqm | E35: =#REF! ->  | F35: 342.9 | H35: 342.9 | I35: 531.1521
A36: e | B36: 5.9.6 | C36: Columns, Pillars, Piers, Abutments, Posts and Struts. | D36: Sqm | E36: =#REF! ->  | F36: 467.85 | H36: 467.85 | I36: 724.69965
A37: f | B37: 5.9.7 | C37: Stairs, (excluding landings) except spiral-staircases. | D37: Sqm | E37: =#REF! ->  | F37: 419.35 | H37: 419.35 | I37: 649.57315
A38: g | B38: 5.9.16.1 | C38: Edges of slabs and breaks in floors and walls.Under 20 cm wide | D38: m | E38: =#REF! ->  | F38: 122.2 | H38: 122.2 | I38: 189.2878
A39: h | B39: 5.9.19 | C39: Weather shade, Chajjas, corbels etc., including edges. | D39: Sqm | E39: =#REF! ->  | F39: 521.75 | H39: 521.75 | I39: 808.19075
A40: i | B40: 5.9.14 | C40: Extra for shuttering in circular work (20% of respective centering and shuttering items | D40: Sqm | E40: =#REF! ->  | F40: 84.45 | H40: 84.45 | I40: 130.81305
A41: =A31+1 -> 19 | B41: 5.11.1 | C41: Extra for additional height in centering, shuttering where ever required with adequate bracing, propping etc. including cost of de-shuttering and decentering at all levels, over a height of 3.5 m, for every additional height of 1 metre or part thereof (Plan area to be measured) Suspended floors, roofs, landing, beams and balconies (Plan area to be measured). | D41: Sqm | E41: =#REF! ->  | F41: 171.5 | H41: 171.5 | I41: 265.6535
A42: 20a) | B42: 5.22.6 | C42: Steel reinforcement for R.C.C. work including straightening, cutting, bending, placing in position and binding all complete upto plinth level. Thermo-Mechanically Treated bars of grade Fe-500D or more. | D42: Kg | E42: =#REF! ->  | F42: 56.6 | H42: 56.6 | I42: 87.6734
A43: 20b) | B43: 5.22A.6 | C43: Steel reinforcement for R.C.C. work including straightening, cutting, bending, placing in position and binding all complete above plinth level.Thermo-Mechanically Treated bars of grade Fe-500 D or more. | D43: Kg | E43: =#REF! ->  | F43: 56.6 | H43: 56.6 | I43: 87.6734
A44: 21 | B44: 5.28 | C44: Providing and fixing in position 12mm thick bitumen impregnated fibre board conforming to IS: 1838 including cost of primer, sealing compound in expansion joints. 5cm depth | D44: m | E44: =#REF! ->  | F44: 22.45 | H44: 22.45 | I44: 34.77505
A45: 22 | B45: 5.29.2.1 | C45: Providing and fixing sheet covering over expansion joints with iron screws as per design to match the colour / shade of wall treatment. Aluminium fluted strips 3.15mm thick 150 mm wide. | D45: m | E45: =#REF! ->  | F45: 336.65 | H45: 336.65 | I45: 521.47085 | L45: =K45-J45 -> 
A46: 23 | B46: 6.4.2 | C46: Brick work with common burnt clay F.P.S. (non modular) bricks of class designation 7.5 in superstructure above plinth level up to floor V level in all shapes and sizes in : Cement mortar 1:6 (1 cement : 6 coarse sand) | D46: Cum | E46: =#REF! ->  | F46: 5582.85 | H46: 5582.85 | I46: 8647.83465
A47: 24 | B47: 6.5 | C47: Extra for brick work / block masonry / Tile brick masonry in superstructure above floor V level, for each four floors or part thereof by mechanical means. | D47: Cum | E47: =#REF! ->  | F47: 205.45 | H47: 205.45 | I47: 318.24205
A48: 25 | B48: 6.1.2 | C48: Brick work with common burnt clay F.P.S. (non modular) bricks of class designation 7.5 in foundation and plinth in: Cement mortar 1:6 (1 cement : 6 coarse sand) | D48: Cum | E48: =#REF! ->  | F48: 4751.65 | H48: 4751.65 | I48: 7360.30585 | L48: =K48-J48 -> 
A49: 26 | B49: 6.13.2 | C49: Half brick masonry with common burnt clay F.P.S. (non modular) bricks ofclass designation 7.5 in superstructure above plinth level up to floor V level. Cement mortar 1:4 (1 cement :4 coarse sand) | D49: Sqm | E49: =#REF! ->  | F49: 684.2 | H49: 684.2 | I49: 1059.8258
A50: 27 | B50: 6.15 | C50: Extra for providing and placing in position 2 Nos. 6mm dia. M.S. bars at every third course of half brick masonry. | D50: Sqm | E50: =#REF! ->  | F50: 56.85 | H50: 56.85 | I50: 88.06065
A51: 28 | B51: 7.1.1 | C51: Random rubble masonry with hard stone in foundation and plinth including levelling up with cement concrete 1:6:12 (1 cement : 6 coarse sand : 12 graded stone aggregate 20mm nominal size) upto plinth level with :Cement mortar 1:6 (1 cement : 6 coarse sand). | D51: Cum | E51: =#REF! ->  | F51: 3965.85 | H51: 3965.85 | I51: 6143.10165
A52: 29 | B52: 9.1.1 | C52: Providing wood work in frames of doors, windows, clerestory windows and other frames, wrought framed and fixed in position with hold fast lugs or with dash fasteners of required dia & length ( hold fast lugs or dash fastener shall be paid for separately). Second class teak wood | D52: Cum | E52: =#REF! ->  | F52: 92743.05 | H52: 92743.05 | I52: 143658.9844
A53: 30 | B53: 9.5.1.1 + 9.14 | C53: Providing and fixing panelled or panelled and glazed shutters for doors, windows and clerestory windows includingISI marked Stainless Steel butt hinges bright finished of required size with necessary screws excluding, panelling which will be paid for separately, all complete as per direction of Engineer-in-charge. Second class teak wood: 35 mm thick shutters | D53: Sqm | E53: =#REF! ->  | F53: 2647.95 | H53: 2647.95 | I53: 4101.67455
A54: 31 | B54: 9.7.1 | C54: Providing and fixing panelling or panelling and glazing in panelled or panelled and glazed shutters for doors, windows and clerestory windows (Area of opening for panel inserts excluding portion inside grooves or rebates to be measured). Panelling for panelled or panelled and glazed shutters 25 mm to 40 mm thick : Second class teak wood | D54: Sqm | E54: =#REF! ->  | F54: 2037.05 | H54: 2037.05 | I54: 3155.39045
A55: 32 | B55: 9.74 | C55: Providing and fixing bright finished brass tower bolts (barrel type) with necessary screws etc. complete : | G55: 0 | I55: 0 | J55: 0 | K55: 0 | L55: 0
A56: a | B56: 9.74.1 | C56: 250x10 mm | D56: Each | E56: =#REF! ->  | F56: 313.2 | G56: =ROUND(F56*E56,0) ->  | H56: 313.2 | I56: 485.1468
A57: 33 | B57: 9.79.4 | C57: Providing and fixing special quality bright finished brass cupboard or ward robe locks with four levers including necessary screws etc. complete (best make of approved quality) : 75 mm | D57: Each | E57: =#REF! ->  | F57: 219.65 | H57: 219.65 | I57: 340.23785
A58: 34 | B58: 9.81 | C58: Providing and fixing bright finished brass handles with screws etc. complete: | G58: 0 | I58: 0 | J58: 0 | K58: 0 | L58: 0
A59: a | B59: 9.81.1 | C59: 125 mm | D59: Each | E59: =#REF! ->  | F59: 171.2 | H59: 171.2 | I59: 265.1888
A60: b | B60: 9.81.2 | C60: 100 mm | D60: Each | E60: =#REF! ->  | F60: 159.2 | H60: 159.2 | I60: 246.6008
A61: 35 | B61: 9.82 | C61: Providing and fixing bright finished brass hanging type floor door stopper with necessary screws, etc. complete. | D61: Each | E61: =#REF! ->  | F61: 85.85 | H61: 85.85 | I61: 132.98165
A62: 36 | B62: 9.84 | C62: Providing and fixing aluminium extruded section body tubular type universal hydraulic door closer (having brand logo with ISI, IS : 3564, embossed on the body, door weight upto 36 kg to 80 kg and door width from 701 mm to 1000 mm) with double speed adjustment with necessary accessories and screws etc. complete. | D62: Each | E62: =#REF! ->  | F62: 388.4 | H62: 388.4 | I62: 601.6316
A63: 37 | B63: 9.88 | C63: Providing and fixing chromium plated brass 100 mm mortice latch and lock with 6 levers and a pair of lever handles with necessary screws etc. complete (best make of approved quality). | D63: Each | E63: =#REF! ->  | F63: 678.4 | H63: 678.4 | I63: 1050.8416 | L63: =K63-J63 -> 
A64: 38 | B64: 9.129 | C64: Providing and fixing cup board shutters 25mm thick, with Pre-laminated flat pressed three layer particle board or graded wood particle board IS: 12823 marked exterior grade (Grade l Type ll) having one side decorative lamination and other side balancing lamination including IInd class teak wood lipping of 25mm wide x12 mm thick with necessary screws and bright finished stainless steel piano hinges complete as per direction of the Engineer-in-Charge | D64: Sqm | E64: =#REF! ->  | F64: 1590.8 | H64: 1590.8 | I64: 2464.1492
A65: 39 | B65: 9.18.1 | C65: Providing and fixing Pre-laminated flat pressed 3 layer (medium density)particle board or graded wood particle board IS : 3087 marked, with oneside decorative and other side balancing lamination Grade I, Type II exteriorgrade IS : 12823 marked, in shelves with screws and fittings whereverrequired, edges to be painted with polyurethane primer (fittings to be paidseparately). 18mm thick | D65: Sqm | E65: =#REF! ->  | F65: 990.5 | H65: 990.5 | I65: 1534.2845
A66: 40 | B66: 9.161 | C66: Providing and fixing fire resistant door frame of section 50 x 60mm on horizontal side & 35 x 60mm on vertical side having built in rebate made out of 1.6mm thick GI sheet (Zinc coating not less than 120gm/m2) suitable for mounting 120 minute Fire Rated Glazed Door Shutters. The frame shall be filled with Mineral wool insulation having density min. 96kg/m3. The frame will have a provision of G.I. Anchor fastners 14 nos 95each on vertical style & 4 on horizontal style of size M10 X 80) suitable for fixing in the opening along with Factory made Template for SS Ball Bearing Hinges of Size 100x89x3mm for fixing of fire rated glazed shutter. The frame shall be finished with a approved fire resistant primer of Powder coating of not less than 30 micron in desired shade as per the directions of Engineer-in-charge. (Cost of SS ball bearing hinges is excluded) | D66: m | E66: =#REF! ->  | F66: 1260 | H66: 1260 | I66: 1951.74
A67: 41 | B67: 9.162 | C67: Providing and fixing 60mm thick glazed fire resistant door shutters of 120 minute Fire Rating confirming to IS:3614 (Part II) or EN 1634-1:1999, tested and certified as per laboratory approved by Engineer-in-charge, with suitable mounting on door frame, consisting of vertical styles, top rail & side rail 60mm x 60mm wide and bottom rail of 110 mm x 60 mm made out of 1.6mm thick GI sheet (zinc coating not less than 120 gm/m2) duly filled mineral wool insulation having density min 96 kg/m3 and fixing with necessary stainless steel ball bearing hinges of size 100 x 89 x 3mm of approved make, including applying a coat of approved fire resistant primer or powder coating n ot less than 30 micron etc. all complete as per direction of Engineer-in-charge (panelling to be paid for seperately) | D67: m2 | E67: =#REF! ->  | F67: 6839.35 | H67: 6839.35 | I67: 10594.15315
A68: 42 | B68: 9.164 | C68: Providing and fixing glazing in fire resistant door shutters, fixed panels & partitions etc., with G.I beading made out of 1.6mm thick G.I sheet (zinc coating not less than 120 gm/m2) of size 20 x 33 mm screwed with M4 x 38mm SS screws of distance 75mm from the edges and 150mm c/c, including applying a coat of approved fire resistant primer/powder coatin g of not less than 30 micron on G.I. beading & special ceramic tape of 5 x 20 mm size etc. complete in all respect as per direction of Engineer-in-charge. The glass shall be clear, toughened, interlayered, non-wired fire resistant having 11mm thickness of approved brand with 120 minutes of fire resistance both integrity & | G68: 0 | I68: 0 | J68: 0 | K68: 0 | L68: 0
C69: radiation control (EW120) and minimum 15 min of insulation (EI15) and having a sound reduction of 37dB and LT of 86%. Glass shall be compliant to class 2(B)2 category of Impact Resistance as per EN 12600. The glass should be manufactured in UL & TUV audited Facility and including UL-EU Certification. The maximum glazing size cannot be more than 1100 mm x 2200 mm (w x h) or 2.42 sq. mts in total area. The test report for the complete system (Glased Door or Partition) will be considered valid only if it co ntains the stamp and signature of the authorized signatory from the glass manufacturer. (Actual glass size is to be measured at site for payments) | D69: m2 | E69: =#REF! ->  | F69: 34058.9 | H69: 34058.9 | I69: 52757.2361
A70: 43 | B70: LMR | C70: Providing and fixing 2mm thick lead lining over inner side of the door shutter including all fixing accessories and fixuerse etc complete | D70: Sqm | E70: =#REF! ->  | F70: 11193.6 | G70: =ROUND(F70*E70,0) ->  | H70: 11193.6 | I70: 11193.6 | J70: =I70*E70 ->  | K70: =G70 ->  | L70: =K70-J70 ->  | Q70: =G70 -> 
A71: 44 | B71: 21.18 | C71: Providing and fixing 12 mm thick frameless toughened glass door shutter of approved brand and manufacture, including providing and fixing top & bottom pivot & spring type fixing arrangement and making necessary holes etc. for fixing required door fittings, all complete as per direction of Engineer-in-charge (Door handle, lock and stopper etc.to be paid separately). | D71: Sqm | E71: =#REF! ->  | F71: 4608.85 | H71: 4608.85 | I71: 7139.10865 | K71: =ROUND(G71*1.549,0) -> 
A72: 45 | B72: LMR | C72: Providing and fixing Stainless Steel (SS Grade 316) frameless double leaf glass door fittings such as BTS 75 FLOOR SPRING WITH SPINDLE INSERT INCL CEMENT BOX AND COVER PLATE -EN 1-4-MAX DOOR WEIGHT 120 KG -HO 90 DEG, ulus 10 UNIVERSAL CORNER LOCK WITH LKP AND EPC 60MM BOTH SIDE KEY, PULL HANDLE -H TYPE - TGDI H 350 X 25 CTC 250MM GRADE 316 for each leaf of 12mm toughened glass door as per the direction of the Engineer -in-charge. | D72: Each | E72: =#REF! ->  | F72: 42160.1 | H72: 42160.1 | I72: 42160.1 | K72: =G72 ->  | Q72: =G72 -> 
A73: 46 | B73: 9.117.1 | C73: Providing and fixing factory made uPVC door frame made of uPVC extruded sections having an overall dimension as below (tolerance ±1mm), with wall thickness 2.0 mm (± 0.2 mm), corners of the door frame to be Jointed with galvanized brackets and stainless steel screws joints mitred and Plastic welded. The hinge side vertical of the frames reinforced by galvanized M.S. tube of size 19 X 19 mm and 1mm (± 0.1 mm) wall thickness and 3 nos. stainless steel hinges fixed to the frame complete as per manufacturer’s specification and direction of Engineerin- charge Extruded section profile size 48x40 mm | D73: m | E73: =#REF! ->  | F73: 216.8 | H73: 216.8 | I73: 335.8232
A74: 47 | B74: 9.118.2 | C74: 30 mm thick factory made Polyvinyl Chloride (UPVC) door shutter made of styles and rails of a uPVC hollow section of size 60x30 mm and wall thickness 2 mm (± 0.2 mm), with inbuilt decorative moulding edging on one side. The styles and rails mitred and joint at the corners by means of M.S. galvanised/ plastic brackets of size 75x220 mm having wall thickness 1.0 mm and stainless steel screws. The styles of the shutter reinforced by inserting galvanised M.S. tube of size 25x20 mm and 1 mm (± 0.1 mm) wall thickness. | G74: 0 | I74: 0 | J74: 0 | K74: 0 | L74: 0
C75: The lock rail made up of 'H' section, a uPVC hollow section of size 100x30 mm and 2 mm (± 0.2 mm) wall thickness fixed to the shutter styles by means of plastic/ galvanised M.S. 'U' cleats. The shutter frame filled with a uPVC multi-chambered single panel of size not less than 620 mm, having over all thickness of 20 mm and 1 mm (± 0.1 mm) wall thickness . The panels filled vertically and tie bar at two places by inserting horizontally 6 mm galvanised M.S. rod and fastened with nuts and washers, complete as per manufacturer's specification and direction of Engineer-in-charge. | D75: Sqm | E75: =#REF! ->  | F75: 1948 | H75: 1948 | I75: =H75*1.549 -> 3017.452
A76: 48 | B76: 9.147A | C76: Providing and fixing factory made uPVC white colour casement/ casement cum fixed glazed windows comprising of uPVC multi chambered fram, sash and mullion (wherever required) extruded profiles duly reinforced with 1.60 + 0.2 mm thick galvanized mild steel section made from roll forming process fo required length (shape and size according to uPVC profile), uPVC extruded glazing beeds of appropriate dimension, EPDM gasket, stainless steel (SS 304 grade) friction hinges, zinc alloy (white powder coated) casement handles, GI fasteners 100 X 8mm size for fixing frame to finished wall, plastic packers, plastic caps and necessary stainless steel screws etc. | G76: 0 | I76: 0 | J76: 0 | K76: 0 | L76: 0
C77: Profile of frame and sash shall mitred cut and fushion welded at all corners , mullion (if required) shall also fusion welded incoluding drilling of holes for fixing hardwares and drainage of water etc. After fixing frame, the gap between frame and adjacent finished wall shasll be filled with weather proof silicon sealent over baker rod of required size and of approved quality, all complete as per approved drawing & direction of Engineer-in-charge. (Single/ double glass panes and silicon sealent shall be paid seperately) | G77: 0 | I77: 0 | J77: 0 | K77: 0 | L77: 0
A78: a) | B78: 9.147A. 1 | C78: Casement window single panel with S.S. Friction hinges (300 x 19 x 1.9mm) made of (small series) frame 47 x 50 mm & sash 47 X 68 mm both having wall thickness of 1.9 + 0.2 mm and single glass pane glazing bead of appropriate dimension (Area of window up 0.75 sq.m) | D78: Sqm | E78: =#REF! ->  | F78: 7908.15 | H78: 7908.15 | I78: 12249.72435 | L78: =K78-J78 -> 
A79: b) | B79: 9.147A. 4 | C79: Casement window single panel with S.S. Friction hinges (400 x 19 x 1.9mm) made of (big series) frame 67 X 60mm & sash 67 X 80mm both having wall thickness of 2.3 + 0.2 mm and single glazed bead/double glazed bead of appropriate dimension (Area of window above 0.75 sq.m) | D79: Sqm | E79: =#REF! ->  | F79: 8162.65 | H79: 8162.65 | I79: 12643.94485
A80: 49 | B80: 9.147D | C80: Providing and fixing factory made uPVC white colour sliding glazed window upto 1.5m in height dimension comprising of uPVC multi-chambered frame with in-built roller track and sash extruded profiles duly reinforced with 1.60 + 0.2 mm thick galvanized mild steel section made from roll forming process of required length (shape & size according to uPVC profile), appropriate dimension of uPVC extruded glazing beads and uPVC extruded interlocks, EPDM gasket, wool pile, zinc alloy (white powder coated) touch locks with hook, zinc alloy body with single nylon rollers (weight bearing capacity to be 40kg), G.I fasteners 100 x 8 mm size for fixing frame to finished wall and necessary stainless steel screws etc. Profile of frame & sash shall be mitred cut and fusion welded at all corners, including drilling of holes for fixing hardware's and drainage of water etc. | G80: 0 | I80: 0 | J80: 0 | K80: 0 | L80: 0
C81: After fixing frame the gap between frame and adjacent finished wall shall be filled with weather proof silicon sealent over backer rod of required size and of approved quality, all complete as per approved drawing & direction of Enginer-in-charge. (single/double glass panes, wire mesh and silicon sealant shall be paid separetely) | G81: 0 | I81: 0 | J81: 0 | K81: 0 | L81: =K81-J81 -> 0
C82: Note: For uPVC frame and sash extruded profiles minus 5% tolerance in dimension i.e. In depth & width of profile shall be acceptable | G82: 0 | I82: 0 | J82: 0 | K82: 0 | L82: =K82-J82 -> 0
A83: a) | B83: 9.147D..3 | C83: Two track two panels sliding window made of (big series) frame 67 x 50 mm & sash 46 x 62 mm both having wall thickness of 2.3 + 0.2 mm and single glazing bead/ double glazing bead of appropriate dimension. | D83: Sqm | E83: =#REF! ->  | F83: 5826.05 | H83: 5826.05 | I83: 9024.55145
A84: b) | B84: 9.147D..5 | C84: Three track three panels sliding window made of (big series) frame 116 x 45 mm & sash 46 x 62 mm both having wall thickness of 2.3 + 0.2 mm and single glazing bead / double glazing bead of appropriate dimension. | D84: Sqm | E84: =#REF! ->  | F84: 6889.55 | H84: 6889.55 | I84: 10671.91295
G85: 0 | I85: 0 | J85: 0 | K85: 0 | L85: 0
A86: 50 | B86: 21.1.1.2 | C86: Providing and fixing aluminium work for doors, windows, ventilators, Louvers and partitions with extruded built up standard tubular sections/ appropriate Z sections and other sections of approved make conforming to IS: 733 and IS: 1285, fixing with dash fasteners of required dia and size, including necessary filling up the gaps at junctions, i.e. at top, bottom and sides with required EPDM rubber/ neoprene gasket etc. Aluminium sections shall be smooth, rust free, straight, mitred and jointed mechanically wherever required including cleat angle, Aluminium snap beading for glazing / paneling, C.P. brass / stainless steel screws, all complete as per architectural drawings and the directions of Engineer-in-charge. (Glazing, paneling and dash fasteners to be paid for separately) : For fixed portion Powder coated aluminium (minimum thickness of powder coating 50 micron) | D86: Kg | E86: =#REF! ->  | F86: 384.5 | H86: 384.5 | I86: 595.5905
A87: 51 | B87: 21.1.2.2 | C87: For shutters of doors, windows & ventilators, Louvers including providing and fixing hinges/ pivots and making provision for fixing of fittings wherever required including the cost of EPDM rubber / neoprene gasket required (Fittings shall be paid for separately). Powder coated aluminium (minimum thickness of powder coating 50 micron) | D87: Kg | E87: =#REF! ->  | F87: 444.9 | H87: 444.9 | I87: 689.1501
A88: 52 | B88: 21.17 | C88: Providing and fixing anodised aluminium grill (anodised transparent ordyed to required shade according to IS: 1868 with minimum anodic coatingof grade AC 15) of approved design/pattern, with approved standardsection and fixed to the existing window frame with C.P. brass/ stainlesssteel screws @ 200 mm centre to centre, including cutting the grill toproper opening size for fixing and operation of handles and fixing approvedanodised aluminium standard section around the opening, all completeas per requirement and direction of Engineer-in-charge. (Only weight ofgrill to be measured for payment). | D88: Kg | E88: =#REF! ->  | F88: 408.85 | H88: 408.85 | I88: 633.30865
A89: 53 | B89: 21.2.2 | C89: Providing and fixing 12mm thick prelaminated particle board flat pressed three layer or graded wood particle board conforming to IS: 12823 Grade l Type ll, in panelling fixed in aluminum doors, windows shutters and partition frames with C.P. brass / stainless steel screws etc. complete as per architectural drawings and directions of engineer-in-charge. Pre-laminated particle board with decorative lamination on both sides. | D89: Sqm | E89: =#REF! ->  | F89: 866.6 | H89: 866.6 | I89: 1342.3634
A90: 54 | B90: 21.3.2 | C90: Providing and fixing glazing in aluminium/uPVC door, window, ventilator shutters and partitions etc. with EPDM rubber / neoprene gasket etc. complete as per the architectural drawings and the directions of engineer-in-charge . (Cost of aluminium snap beading shall be paid in basic item): With float glass panes of 6 mm thickness | D90: Sqm | E90: =#REF! ->  | F90: 1003.95 | H90: 1003.95 | I90: 1555.11855
A91: 55 | B91: 21.3.3 | C91: Providing and fixing glazing in aluminium/uPVC door, shutters and partitions etc. with EPDM rubber / neoprene gasket etc. complete as per the architectural drawings and the directions of engineer-in-charge . (Cost of aluminium snap beading shall be paid in basic item): With float glass panes of 8 mm thickness | D91: Sqm | E91: =#REF! ->  | F91: 1153.9 | H91: 1153.9 | I91: 1787.3911
A92: 56 | B92: 21.4.2 | C92: Providing and fixing double action hydraulic floor spring of approved brand and manufacture conforming to IS : 6315, having brand logo embossed on the body / plate with double spring mechanism and door weight upto 125 kg., for doors, including cost of cutting floors , embedding in floors as required and making good the same matching to the existing floor finishing and cover plates with brass pivot and single piece M.S. sheet outer box with slide plate etc. complete as per the direction of Engineer-in-charge. With brass cover plate minimum 1.25 mm thickness. | D92: Each | E92: =#REF! ->  | F92: 2228.6 | H92: 2228.6 | I92: 3452.1014
A93: 57 | B93: 21.1 | C93: Providing and fixing double glazed hermetically sealed glazing in aluminium windows, ventilators and partition etc. with 6 mm thick clear float glass both side, having 12 mm air gap, including providing EPDM gasket, perforated aluminium spacers, desiccants, sealant (Both primary and secondary sealant) etc. as per specifications, drawings and direction of Engineer-in-charge complete. | D93: Sqm | E93: =#REF! ->  | F93: 3176.2 | H93: 3176.2 | I93: 4919.9338
A94: 58 | B94: 21.12.2 | C94: Providing and fixing aluminium tubular handle bar 32 mm outer dia, 3.0mm thick & 2100 mm long with SS screws etc .complete as per directionof Engineer-in-Charge. Powder coated minimum thickness 50 micron aluminium tubular handle bar | D94: Each | E94: =#REF! ->  | F94: 509.3 | H94: 509.3 | I94: 788.9057 | L94: =K94-J94 -> 
A95: 59 | B95: 21.13 | C95: Providing and fixing 100mm brass locks (best make of approved quality) for aluminium doors including necessary cutting and making good etc. complete | D95: Each | E95: =#REF! ->  | F95: 359 | H95: 359 | I95: 556.091 | L95: =K95-J95 -> 
A96: 60 | B96: 9.100.1 | C96: Providing and fixing aluminium handles, ISI marked, powder coated to required colour or shade, with necessary screws etc. complete : 125mm | D96: Each | E96: =#REF! ->  | F96: 51.1 | H96: 51.1 | I96: 79.1539
A97: 61 | B97: 9.97 | C97: Providing and fixing aluminium tower bolts, ISI marked, anodised (anodic coating not less than grade AC 10 as per IS : 1868 ) transparent or dyed to required colour or shade, with necessary screws etc. complete : | G97: 0 | I97: 0 | J97: 0 | K97: 0 | L97: 0
A98: a | B98: 9.97.2 | C98: 250 X 10 mm | D98: Each | E98: =#REF! ->  | F98: 88.1 | H98: 88.1 | I98: 136.4669
A99: b | B99: 9.97.3 | C99: 200 X 10 mm | D99: Each | E99: =#REF! ->  | F99: 76.15 | H99: 76.15 | I99: 117.95635
A100: 62 | B100: 9.101.2 | C100: Providing and fixing aluminium hanging floor door stopper, ISI marked, anodised (anodic coating not less than grade AC 10 as per IS : 1868) Transparent or dyed to required colour and shade, with necessary screws etc. complete. Twin rubber stopper | D100: Each | E100: =#REF! ->  | F100: 38 | H100: 38 | I100: 58.862
A101: 63 | B101: 21.8 | C101: Filling the gap in between aluminium frame & adjacent RCC/ Brick/ Stonework by providing weather silicon sealant over backer rod of approved qualityas per architectural drawings and direction of Engineer-in-charge complete. | D101: m | E101: =#REF! ->  | F101: 62.45 | H101: 62.45 | I101: 96.73505
A102: 64 | B102: 10.28 | C102: Providing and fixing stainless steel (Grade 304) railing made of Hollow tubes, channels, plates etc. including welding, grinding, buffing, polishing and making curvature (wherever required) and fitting the same with necessary stainless steel nuts and bolts complete i/c fixing the railing with necessary accessories & stainless steel dash fasteners , stainless steel bolts etc., of required size, on the top of the floor or the side of waist slab with suitable arrangement as per approval of Engineer-in-charge. ( for payment purpose only weight of stainless steel members shall be considered excluding fixing accessories such as nuts, bolts, fasteners etc.) | D102: Kg | E102: =#REF! ->  | F102: 472.4 | H102: 472.4 | I102: 731.7476
A103: 65 | B103: 9.48.2 | C103: Providing and fixing M.S. grills of required pattern in frames of windows etc. with M.S. flats, square or round bars etc. including priming coat with approved steel primer all complete.Fixed to openings /wooden frames with rawl plugs screws etc. | D103: Kg | E103: =#REF! ->  | F103: 112.45 | H103: 112.45 | I103: 174.18505 | L103: =K103-J103 -> 
A104: 66 | B104: 10.17 | C104: Providing and fixing M.S. fan clamp type I or II of 16 mm dia M.S. bar bent to shape with hooked ends in R.C.C. slabs, beams during laying including painting the exposed portion of loop, all as per standard design complete. | D104: Each | E104: =#REF! ->  | F104: 112.15 | H104: 112.15 | I104: 173.72035 | L104: =K104-J104 -> 
A105: 67 | B105: 9.53 | C105: Providing 40x5 mm flat iron hold fast 40 cm long including fixing to frame with 10 mm diameter bolts, nuts and wooden plugs and embedding in cement concrete block 30x10x15cm 1:3:6 mix (1 cement : 3 coarse sand : 6 graded stone aggregate 20mm nominal size) | D105: Each | E105: =#REF! ->  | F105: 118.6 | H105: 118.6 | I105: 183.7114
A106: 68 | B106: 8.2.2.2 | C106: Providing and fixing 18mm thick gang saw cut mirror polished premoulded and prepolished) machine cut for kitchen platforms, flooring, vanity counters, window sills , facias and similar locations of required size of approved shade, colour and texture laid over 20mm thick base cement mortar 1:4 (1 cement : 4 coarse sand) with joints treated with white cement, mixed with matching pigment, epoxy touch ups, including rubbing, curing, moulding and polishing to edges to give high gloss finish etc. complete at all levels. Granite of any colour and shade: Area of slab over 0.50 sqm.(Lowest retails price not less than Rs. 2000/m2) | D106: Sqm | E106: =#REF! ->  | F106: 3113.3 | H106: 3113.3 | I106: 4822.5017
A107: 69 | B107: 8.9.1.2 Analysis | C107: Stone tile (polished) work for wall lining over 12 mm thick bed of cement mortar 1:3 (1 cement : 3 coarse sand) and cement slurry @ 3.3 kg/sqm including pointing in white cement complete..:18mm thick Granite slab of any colour and shade.to the front side of lift room | D107: Sqm | E107: =#REF! ->  | F107: 3327.6 | H107: 3327.6 | I107: 5154.4524
A108: 70 | B108: 8.3.2 | C108: Providing edge moulding to 18mm thick granite stone including machine polishing to edge to give high gloss finish etc. complete as per design approved by Engineer-in-Charge: to the front side of lift room | D108: m | E108: =#REF! ->  | F108: 245.7 | H108: 245.7 | I108: 380.5893
A109: 71 | B109: 8.5 | C109: Extra for providing opening of required size & shape for wash basins/ kitchen sink in kitchen platform, vanity counters and similar location in marble/Granite/stone work including necessary holes for pillar taps etc. including moulding, rubbing and polishing of cut edges etc. complete. | D109: Each | E109: =#REF! ->  | F109: 427.95 | H109: 427.95 | I109: 662.89455
A110: 72 | B110: 8.13.1 | C110: Providing and laying Polished Granite stone flooring in required design and patterns, in linear as well as curvilinear portions of the building all complete as per the architectural drawings with 18 mm thick stone slab over 20 mm average) thick base of cement mortar 1:4 (1 cement : 4 coarse sand) laid and jointed with cement slurry and pointing with white cement slurry admixed with pigment of matching shade including rubbing , curing and polishing etc. all complete as specified and as directed by the Engineer-in-Charge.Polished Granite stone slab jet Black, Cherry Red, Elite Brown, Cat Eye or equivalent. (Lowest retails price not less than Rs. 2000/m2) | D110: m2 | E110: =#REF! ->  | F110: 2937.7 | H110: 2937.7 | I110: 4550.4973
A111: 73 | B111: 11.36 | C111: "Providing and fixing 1st quality ceramic glazed joint free wall tiles 300x450mm conforming to IS : 15622 (thickness to bespecified by the manufacturer), of approved make, in all colours, shades except burgundy, bottlegreen, black of any size as approved by Engineer-in-Charge, in skirting, risers of steps and dados, over12 mm thick bed of cement mortar 1:3 (1 cement : 3 coarse sand) and jointing with grey cement slurry@ 3.3 kg per sqm, including pointing in white cement mixed with pigment of matching shade complete.Basic Price is 400/sqm" Make: NITKO, KAJARIA, ORIENT. | D111: Sqm | E111: =#REF! ->  | F111: 744.8 | H111: 744.8 | I111: 1153.6952
A112: 74 | B112: 11.4 | C112: Providing and laying rectified Glazed Ceramic floor tiles 300x300 mm or more (thickness to be specified by the manufacturer) of 1st quality conforming to IS : 15622 of approved make in all colours, shades, except White, Ivory, Grey, Fume Red Brown, laid on 20 mm thick Cement Mortar 1:4 (1 Cement : 4 Coarse sand) including pointing the joints with white cement and matching pigments etc., complete (Lowest retail price not less than Rs. 500/m2) Make: NITKO, KAJARIA, ORIENT. | D112: Sqm | E112: =#REF! ->  | F112: 901.05 | H112: 901.05 | I112: 1395.72645 | L112: =K112-J112 -> 
A113: 75 | B113: 11.41.2 | C113: Providing and laying vitrified floor tiles of First Quality/Premium quality, best quality in different sizes (thickness to be specified by the manufacturer) with water absorption's less than 0.08% and conforming to IS : 15622 of approved make in all colours and shades, laid on 20mm thick cement mortar 1:4 (1 cement : 4 coarse sand) including grouting the joints with white cement and matching pigments etc., complete.Size of Tile 600x600 mm: (Lowest retail price not less than Rs. 900/m2) Make: NITCO, KAJARIA, ORIENT. | D113: Sqm | E113: =#REF! ->  | F113: 1119.4 | H113: 1119.4 | I113: 1733.9506 | L113: =K113-J113 -> 
A114: 76 | B114: 11.46.2 | C114: Providing and laying Vitrified tiles of First Quality/Premium quality, best quality in different sizes (thickness to be specified by manufacturer) with water absorption less than 0.08 % and conforming to I.S. 15622, of approved make in all colours & shade in skirting, riser of steps, over 12 mm thick bed of cement mortar 1:3 (1 cement: 3 coarse sand), including grouting the joint with white cement & matching pigments etc. complete.Size of Tile 600x600 mm: (Lowest retail price not less than Rs. 900/m2) Make: NITCO, KAJARIA, ORIENT. | D114: Sqm | E114: =#REF! ->  | F114: 1135.2 | H114: 1135.2 | I114: 1758.4248
A115: 77 | B115: 11.20.3 | C115: Chequerred precast cement concrete tiles 22 mm thick in footpath & courtyard, jointed with neat cement slurry mixed with pigment to match the shade of tiles including rubbing and cleaning etc. complete, on 20 mm thick bed of cement mortar 1:4 (1 cement: 4 coarse sand). Dark shade using ordinary cement. | D115: Sqm | E115: =#REF! ->  | F115: 716.35 | H115: 716.35 | I115: 1109.62615
A116: 78 | B116: 13.2.1 | C116: 15 mm cement plaster on the rough side of single or half brick wall of mix: 1:4 (1 cement: 4 fine sand) to the outside of walls | D116: Sqm | E116: =#REF! ->  | F116: 200.25 | H116: 200.25 | I116: 310.18725
A117: 79 | B117: 13.4.1 | C117: 12 mm cement plaster of mix : 1:4 (1 cement: 4 coarse sand) to the inside of walls | D117: Sqm | E117: =#REF! ->  | F117: 180.85 | H117: 180.85 | I117: 280.13665
A118: 80 | B118: 13.16.1 | C118: 6 mm cement plaster of mix : 1:3 (1 cement: 3 fine sand) for under side of roof slab and beams | D118: Sqm | E118: =#REF! ->  | F118: 143.8 | H118: 143.8 | I118: 222.7462
A119: 81 | B119: 13.9.1 + 13.21 | C119: Cement plaster 1:3 (1 cement: 3 coarse sand) finished with a floating coat of neat cement.12 mm cement plaster including providing and mixing water proofing material in cement plaster work in proportion recommended by the manufacturers. to the top surface of sunshade | D119: Sqm | E119: =#REF! ->  | F119: 244.3 | H119: 244.3 | I119: 378.4207
A120: 82 | B120: 13.22 | C120: Extra for plastering exterior walls of height more than 10 m from ground level for every additional height of 3 m or part thereof. | G120: 0 | I120: 0 | J120: 0 | K120: 0 | L120: 0
A121: a | B121: 13.22 | C121: 10 m to 13m | D121: Sqm | E121: =#REF! ->  | F121: 40.65 | H121: 40.65 | I121: 62.96685
A122: b | B122: 13.22x2 | C122: 13m to 16m | D122: Sqm | E122: =#REF! ->  | F122: 81.3 | H122: 81.3 | I122: 125.9337
A123: c | B123: 13.22x3 | C123: 16m to 19m | D123: Sqm | E123: =#REF! ->  | F123: 121.95 | H123: 121.95 | I123: 188.90055
A124: d | B124: 13.22x4 | C124: 19m to 22m | D124: Sqm | E124: =#REF! ->  | F124: 162.6 | H124: 162.6 | I124: 251.8674
A125: e | B125: 13.22x5 | C125: 22m to 25m | D125: Sqm | E125: =#REF! ->  | F125: 203.25 | H125: 203.25 | I125: 314.83425
A126: f | B126: 13.22x6 | C126: 25m to 28m | D126: Sqm | E126: =#REF! ->  | F126: 243.9 | H126: 243.9 | I126: 377.8011
A127: g | B127: 13.22x7 | C127: 28m to 31m | D127: Sqm | E127: =#REF! ->  | F127: 284.55 | H127: 284.55 | I127: 440.76795 | L127: =K127-J127 -> 
A128: h) | B128: 13.22x8 | C128: 31m to 34m | D128: Sqm | E128: =#REF! ->  | F128: 325.2 | H128: 325.2 | I128: 503.7348
A129: 83 | B129: 13.8 | C129: Providing and applying white cement based putty of average thickness 1 mm, of approved brand and manufacturer, over the plastered wall surface to prepare the surface even and smooth complete. | D129: Sqm | E129: =#REF! ->  | F129: 87.35 | H129: 87.35 | I129: 135.30515 | L129: =K129-J129 -> 
A130: 84 | B130: 13.43.1 | C130: Applying one coat of water thinnable cement primer of approved brand and manufacture on wall surface : | D130: Sqm | E130: =#REF! ->  | F130: 36.95 | H130: 36.95 | I130: 57.23555 | L130: =K130-J130 -> 
A131: 85 | B131: 13.46.1 | C131: Finishing walls with Acrylic Smooth exterior paint of required shade :New work (Two or more coat applied @ 1.67 ltr/10 sqm over and including priming coat of exterior primer applied @ 2.20 kg/10 sqm) | D131: Sqm | E131: =#REF! ->  | F131: 96.05 | H131: 96.05 | I131: 148.78145
A132: 86 | B132: 13.60.1 | C132: Wall painting with acrylic emulsion paint of approved brand and manufacture to give an even shade: Two or more coats on new work. Make: Asian, Berger, Jotun | D132: Sqm | E132: =#REF! ->  | F132: 84.45 | H132: 84.45 | I132: 130.81305
A133: 87 | B133: 13.61.1 | C133: Painting with synthetic enamel paint of approved brand and manufacture to give an even shade :Two or more coats on new work. | D133: Sqm | E133: =#REF! ->  | F133: 78.4 | H133: 78.4 | I133: 121.4416
A134: 88 | B134: 22.14.1 | C134: Grading roof for water proofing treatment with Cement concrete 1:2:4 (1 cement : 2 coarse sand : 4 gradedstone aggregate 20 mm nominal size) | D134: Cum | E134: =#REF! ->  | F134: 5583.8 | G134: =ROUND(F134*E134,0) ->  | H134: 5583.8 | I134: 8649.3062 | J134: =I134*E134 -> 
A135: 89 | B135: 22.5 | C135: Providing and laying water proofing treatment in sunken portion of WCs, bathroom etc., by applying cement slurry mixed with water proofing cement compound consisting of applying : a) First layer of slurry of cement @ 0.488 kg/sqm mixed with water proofing cement compound @ 0.253 kg/sqm. This layer will be allowed to air cure for 4 hours. b) Second layer of slurry of cement @ 0.242 kg/sqm mixed with water proofing cement compound @ 0.126 kg/sqm. This layer will be allowed to air cure for 4 hours followed with water curing for 48 hours. The rate includes preparation of surface, treatment and sealing of all joints, corners, junctions of pipes and masonry with polymer mixed slurry | D135: Sqm | E135: =#REF! ->  | F135: 298.3 | H135: 298.3 | I135: 462.0667 | K135: =ROUND(G135*1.549,0) -> 
A136: 90 | B136: 12.52 | C136: Providing and fixing tiled false ceiling of approved materials of size 595x595 mm in true horizontal level suspended on inter locking metal grid of hot dipped galvanized steel sections ( galvanized @ 120 gsm/sqm, both side inclusive) consisting of main "T" runner with suitably spaced joints to get required length and of size 24x38mm made from 0.30mm thick (minimum) sheet, spaced at 1200mm center to center and cross "T" of size 24x25mm made of 0.30mm thick (minimum) sheet, 1200mm long spaced between main "T" at 600mm center to center to form a grid of 1200x600 mm and secondary cross "T" of length 600mm and size 24x25mm made of 0.30 mm thick (minimum) sheet to be interlocked at middle of the 1200x600mm panel to form grids of 600x600mm and wall angle of size 24x24x0.3 mm | G136: 0 | I136: 0 | J136: 0 | K136: 0 | L136: 0
C137: and laying false ceiling tiles of approved texture in the grid including, wherever, required, cutting/making, opening for services like diffusers, grills, light fittings, fixtures, smoke detectors etc. Main "T" runners to be suspended from ceiling using GI slotted cleats of size 27 x 37 x 25 x1.6 x mm fixed to ceiling with 12.5 mm dia and 50 mm long dash fasteners, 4mm GI adjustable rods with galvanised butterfly level clips of size 85 x 30 x 0.8 mm spaced at 1200mm center to center along main T, bottom exposed width of 24 mm of all T-sections shall be pre-painted with polyester paint, all complete at all heights as per specifications drawings and as directed by Engineer-in-charge. | G137: 0 | I137: 0 | J137: 0 | K137: 0 | L137: 0
A138: a | B138: 12.52.2 | C138: GI Metal Ceiling Lay in perforated Tegular edge global white color tiles of size 595x595 mm and 0.5 mm thick with 8 mm drop; made of GI sheet having galvanizing of 100 gms/sqm (both sides inclusive) and 20% perforation area with 1.8 mm dia holes and having NRC (Noise Reduction Coefficient ) of 0.5, electro statically polyester powder coated of thickness 60 microns minimum), including factory painted after bending and perforation,and backed with a black Glass fiber acoustical fleece. | D138: Sqm | E138: =#REF! ->  | F138: 1163.9 | H138: 1163.9 | I138: 1802.8811
A139: b | B139: 12.52.3 | C139: 12.5 mm thick square edge PVC Laminated GypsumTile of size 595x595 mm, made of Gypsum plasterboard, manufactured from natural gypsum as per IS 2095 part Iand laminated with white 0.16mm thick fire retardantPVC film on the face side and 12micron metalized polyester on the back side with all edges sealed with the face side PVC film which goes around and wrapsthe edges and is bonded to the edges and the backside metalized polyester | D139: m2 | E139: =#REF! ->  | F139: 993.15 | H139: 993.15 | I139: =H139*1.549 -> 1538.38935
A140: 91 | B140: 12.45.3 | C140: Providing and fixing false ceiling at all height including providing and fixingof frame work made of special sections, power pressed from M.S. sheetsand galvanized with zinc coating of 120 gms/sqm (both side inclusive) asper IS : 277 and consisting of angle cleats of size 25 mm wide x 1.6 mmthick with flanges of 27 mm and 37mm, at 1200 mm centre to centre, oneflange fixed to the ceiling with dash fastener 12.5 mm dia x 50mm long with 6mm dia bolts, other flange of cleat fixed to the angle hangers of 25x10x0.50mm of required length with nuts & bolts of required size and other end ofangle hanger fixed with intermediate G.I. channels 45x15x0.9 mm runningat the spacing of 1200 mm centre to centre, to which the ceiling section0.5 mm thick bottom wedge of 80 mm with tapered flanges of 26 mm eachhaving lips of 10.5 mm, at 450 mm centre to centre, | G140: 0 | I140: 0 | J140: 0 | K140: 0 | L140: 0
C141: shall be fixed in adirection perpendicular to G.I. intermediate channel with connecting clipsmade out of 2.64 mm dia x 230 mm long G.I. wire at every junction, includingfixing perimeter channels 0.5 mm thick 27 mm high having flanges of 20mm and 30 mm long, the perimeter of ceiling fixed to wall/partition with thehelp of rawl plugs at 450 mm centre, with 25mm long dry wall screws @230 mm interval, including fixing of gypsum board to ceiling section andperimeter channel with the help of dry wall screws of size 3.5 x 25 mm at230 mm c/c, including jointing and finishing to a flush finish of tapered andsquare edges of the board with recomme-nded jointing compound , jointingtapes , finishing with jointing compound in 3 layers covering upto 150 mmon both sides of joint and two coats of primer suitable for board, all as permanufacturer’s specification and also including the cost of making openingsfor light fittings, grills, diffusers, cutouts made with frame of perimeterchannels suitably fixed, all complete as per drawings, specification anddirection of the Engineer in Charge but excluding the cost of painting with : 12.5 mm thick tapered edge gypsum fire resistant board conforming to IS: 2095- Part I | D141: Sqm | E141: =#REF! ->  | F141: 958.65 | H141: 958.65 | I141: 1484.94885
A142: 92 | B142: 16.1 | C142: Preparation and consolidation of sub grade with power road roller of 8 to 12 tonne capacity after excavating earth to an average of 22.5 cm depth,dressing to camber and consolidating with road roller including makinggood the undulations etc. and re-rolling the sub grade and disposal ofsurplus earth with lead upto 50 metres. | D142: Sqm | E142: =#REF! ->  | F142: 90.1 | H142: 90.1 | I142: 139.5649 | L142: =K142-J142 -> 
A143: 93 | B143: 16.78.1 | C143: Construction of granular sub-base by providing close graded Material conforming to specifications, mixing in a mechanical mix plant at OMC, carriage of mixed material by tippers to work site, for all leads & lifts, spreading in uniform layers of specified thickness with motor grader on prepared surface and compacting with vibratory power roller to achieve the desired density, complete as per specifications and directions of Engineer-in-Charge. With material conforming to Grade-I (size range 75 mm to 0.075 mm) having CBR Value-30 | D143: Cum | E143: =#REF! ->  | F143: 2089.7 | H143: 2089.7 | I143: 3236.9453 | L143: =K143-J143 -> 
A144: 94 | B144: 16.79 | C144: Providing, laying, spreading and compacting graded stone aggregate (sizerange 53 mm to 0.075 mm ) to wet mix macadam (WMM) specificationincluding premixing the material with water at OMC in for all leads & lifts,laying in uniform layers with mechanical paverfinisher in sub- base / basecourse on well prepared surface and compacting with vibratory roller of 8 to10 tonne capacity to achievethe desired density, complete as per specificationsand directions of Engineer-in-Charge. | D144: Cum | E144: =#REF! ->  | F144: 2132.25 | H144: 2132.25 | I144: 3302.85525
A145: 95 | B145: 16.31.2.1 | C145: Providing and applying tack coat using bitumen emulsion conforming to IS: 8887, using emulsion pressure distributer including preparing the surface & cleaning with mechanical broom. With medium setting bitumen emulsion. On W.B.M / W.M.M. @ 0.4kg/sqm | D145: m2 | E145: =#REF! ->  | F145: 13.2 | G145: =ROUND(E145*F145,0) ->  | H145: 13.2 | I145: 20.4468
A146: 93 | B146: 16.36 | C146: Providing and laying Bitumen Penetration Macadam with hard stone aggregate of quality, size and grading as specified, with bitumen of suitable penetration grade, including required key aggregate as specified, spreading coarse aggregate with the help of self propelled/ tipper tail mounted aggregate spreader and applying bitumen by a pressure distributor and then spreading key aggregate with the help of aggregate spreader complete, including consolidation with road roller of minimum 8 to 10 tonne capacity to achieve specified values of compaction and surface accuracy : | G146: 0 | I146: 0 | J146: 0 | K146: 0 | L146: 0
B147: 16.36.1 | C147: For 50mm compacted thickness using coarse aggregate of size 50-20 mm graded @ 0.60 cum per 10 sqm key aggregate of size 12.5 mm graded @ 0.15 cum per 10 sqm. With paving asphalt grade VG - 10 @ 50 kg/ 10 sqm. | D147: m2 | E147: =#REF! ->  | F147: 342.05 | H147: 342.05 | I147: 529.83545
A148: 97 | B148: 16.31.2.2 | C148: Providing and applying tack coat using bitumen emulsion conforming to IS: 8887, using emulsion pressure distributer including preparing the surface & cleaning with mechanical broom. With medium setting bitumen emulsion. On bituminous surface @ 0.25kg/sqm | D148: m2 | E148: =#REF! ->  | F148: 8.75 | H148: 8.75 | I148: 13.55375
A149: 98 | B149: 16.33.1 | C149: 2.5 cm premix carpet surfacing with 2.25 cum and 1.12 cum of stone chippings of 13.2 mm and 11.2 mm size respectively per 100 sqm and 52 kg and 56 kg of hot bitumen per cum of stone chippings of 13.2 mm and 11.2 mm size respectively, including a tack coat with hot straight run bitumen, including consolidation with road roller of 6 to 9 tonne capacity etc. complete (tack coat to be paid for separately). with paving Asphalt grade VG-10 heated and then mixed with solvent at the rate of 70 grams per kg of asphalt. | D149: m2 | E149: =#REF! ->  | F149: 169.6 | H149: 169.6 | I149: 262.7104
A150: 99 | B150: 16.4 | C150: Providing and laying seal coat of premixed fine aggregate ( passing 2.36 mm and retained on 180 micron sieve) with bitumen using 128 kg of bitumen of grade VG - 10 bitumen per cum of fine aggregate and 0.60 cum of fine aggregate per 100 sqm of road surface, including rolling and finishing with road roller all complete. | D150: m2 | E150: =#REF! ->  | F150: 59.5 | H150: 59.5 | I150: 92.1655
A151: 100 | B151: 12.20 | C151: Providing and laying pressed clay tiles (Terracotta tiles) as per approved pattern 20 mm nominal thickness of approved size on roofs jointed with cement mortar 1:4 (1 cement: 4 coarse sand ) mixed with 2% integral water proofing compound, laid over a bed of 20 mm thick cement mortar 1:4 (1 cement:4 coarse sand) and finished neat complete for providing at sloped sunshade and roof | D151: m2 | E151: =#REF! ->  | F151: 438.45 | H151: 438.45 | I151: 679.15905 | L151: =K151-J151 ->  | Q151: 0
C152: Total | G152: =SUM(G5:G151) ->  | J152: =SUM(J5:J151) ->  | K152: =SUM(K5:K151) ->  | L152: =SUM(L5:L151) ->  | Q152: =SUM(Q1:Q151) -> 
C153: Total LMR items | G153: =Q152 -> 
C154: Total DSR Items | G154: =ROUND(G152-G153,0) -> 
C155: Apply cost Index of 54.9% | G155: =ROUND(G154*54.9%,0) -> 
C156: Total DSR + LMR including Cost Index | G156: =G153+G154+G155 ->  | J156: =G156-J152 -> 

Sheet SUMMARY SHEET
A1: CONSTRUCTION OF NEW OUTPATIENT BLOCK FOR GENERAL HOSPITAL, ALAPPPUZHA -PART I
A3: SL.NO. | B3: ITEM | C3: TOTAL AMOUNT (Rs.)
A4: 1 | B4: CIVIL WORKS | C4: ='ABST-CIVIL WORKS'!H153 -> 0
A5: 2 | B5: SERVICE BLOCK | C5: ='Ab. Service Block '!H53 -> 0
A6: 3 | B6: PLUMBING WORKS | C6: =PLUMBING!H104 -> 0
A7: 4 | B7: ELECTRICAL WORKS | C7: =Electrical!H553 -> 0
A8: 5 | B8: ELV | C8: =ELV!H125 -> 0
A9: 6 | B9: FIRE FIGHTING | C9: =Fire!H120 -> 0
A10: 7 | B10: SIGNAGE | C10: =Signage!H20 -> 0
B11: GRAND TOTAL | C11: =SUM(C4:C10) -> 0
C12: =FnConvert(C11) -> Rupees

Sheet ABST-CIVIL WORKS
A1: CONSTRUCTION OF NEW PROPOSED OUT PATIENT BLOCK FOR GENERAL HOSPITAL, ALAPPUZHA -PART I
A2: ABSTRACT OF ESTIMATE - CIVIL WORKS
A4: Item No | B4: DSR code | C4: Details of items | D4: Unit | E4: Quantity | F4: Rate (Rs.) in figures | G4: Rate (Rs.) in words | H4: Amount (Rs.)
A5: 1 | B5: 2.31 | C5: Clearing jungle including uprooting of rank vegetation, grass, brush wood, trees and saplings of girth upto 30 cm measured at a height of 1 m above ground level and removal of rubbish upto a distance of 50 m outside the periphery of the area cleared. | D5: Sqm | E5: 4200 | G5: =FnConvert(F5) -> Rupees | H5: =ROUND(E5*F5,0) -> 0
A6: 2 | B6: 2.6.1 | C6: Earth work in excavation by mechanical means (Hydraulic excavator) / manual means over areas (exceeding 30cm in depth. 1.5m in width as well as 10 sqm on plan) including disposal of excavated earth, lead upto 50m and lift upto 1.5m, disposed earth to be levelled and neatly dressed. All kinds of soil | D6: Cum | E6: 2740 | G6: =FnConvert(F6) -> Rupees | H6: =ROUND(E6*F6,0) -> 0
A7: 3 | B7: 2.8.1 | C7: Earth work in excavation by mechanical means (Hydraulic excavator) / manual means in foundation trenches or drains (not exceeding 1.5 m in width or 10 sqm on plan) including dressing of sides and ramming of bottoms, lift upto 1.5 m, including getting out the excavated soil and disposal of surplus excavated soil as directed, within a lead of 50 m. All kinds of soil. | D7: Cum | E7: 362 | G7: Rupees | H7: =ROUND(E7*F7,0) -> 0
A8: 4 | B8: 2.26.1 | C8: Extra for every additional lift of 1.5 m or part thereof in excavation /banking excavated or stacked materials: All kinds of soil. | D8: Cum | E8: 620 | G8: Rupees | H8: 0
A9: =A8+1 -> 5 | B9: 2.25 | C9: Filling available excavated earth (excluding rock) in trenches, plinth, sides of foundations etc. in layers not exceeding 20cm in depth, consolidating each deposited layer by ramming and watering, lead up to 50 m and lift upto 1.5 m | D9: Cum | E9: 2062 | G9: Rupees | H9: 0
A10: =+A9+1 -> 6 | B10: 1.1.2.8 | C10: Conveying and disposing off the excavated excess earth | D10: Cum | E10: 1018 | G10: Rupees | H10: 0
A11: 7 | B11: 2.34.1 | C11: Supplying chemical emulsion in sealed containers including delivery as specified Chlorpyriphos/ Lindane emulsifiable concentrate of 20% | D11: Litre | E11: 980 | G11: Rupees | H11: 0
A12: 8 | B12: 2.35.3.1 | C12: Treatment of soil under existing floors using chemical emulsion @ one litre per hole, 300 mm apart including drilling 12 mm diameter holes and plugging with cement mortar 1 :2 (1 cement : 2 Coarse sand) to match the existing floor : With Chlorpyriphos/Lindane E.C. 20% with 1% concentration | D12: Sqm | E12: 1765 | G12: Rupees | H12: 0
A13: 9 | B13: 4.1.5 | C13: 1:3:6 (1 Cement : 3 coarse sand : 6 graded stone aggregate 20 mm nominal size).for foundation and flooring | D13: Cum | E13: 364 | G13: Rupees | H13: 0
A14: 10 | B14: 4.2.2 | C14: Providing and laying cement concrete in retaining walls, return walls, walls(any thickness) including attached pilasters, columns, piers, abutments,pillars, posts, struts, buttresses, string or lacing courses, parapets, coping,bed blocks, anchor blocks, plain window sills, fillets, sunken floor,etc., upto floor five level, excluding the cost of centering, shuttering and finishing: 1:1½:3 (1 cement:1½ coarse sand:3 graded stone aggregate20 mm nominal size) | D14: Cum | E14: 50 | G14: Rupees | H14: 0
A15: 11 | B15: 4.17 | C15: Making plinth protection 50mm thick of cement concrete 1:3:6 (1 cement :3 coarse sand : 6 graded stone aggregate 20 mm nominal size) over 75mm thick bed of dry brick ballast 40 mm nominal size, well rammed and consolidated and grouted with fine sand including finishing the top smooth | D15: Sqm | E15: 340 | G15: Rupees | H15: 0
A16: 12 | B16: 20.2A | C16: Boring, providing and installation bored cast-in-situ reinforced cement concrete piles of garde M-25 of specified diameter and length below pile cap, to carry a safe working load not less than specified, excluding the cost of steel reinforcement but including the cost of boring with bentonite solution and temporary casing of appropriate length for setting out and removal of same and the length of the pile to be embedded in the pile cap etc. by Crawler mounted, telescopic boom hydraulic pilling Rig all complete, including removal of excavated earth with all its lifts and leads. Bottom of pile should be embedded 3.00m to the dense sand stratum. (length of pile for payment shall be measured up to bottom of pile cap). Note: Truck Mounted rotary/TMR/Tube well boring machine shall not be used.
A17: a | B17: 20.2A.2 + 20.2A.3 | C17: 800 mm dia piles | D17: m | E17: 602 | G17: Rupees | H17: 0
A18: b | B18: 20.2A.2 + 20.2A.3 | C18: 900 mm dia piles | D18: m | E18: 854 | G18: Rupees | H18: 0
A19: c | B19: 20.2A.3 | C19: 1000 mm dia piles | D19: m | E19: 441 | G19: Rupees | H19: 0
A20: 13 | B20: 20.6.2 | C20: Vertical load testing of piles in accordance with IS 2911 (Part IV) including installation of loading platform by Kentledge method and preparation of pile head or construction of test cap and dismantling of test cap after test etc. complete as per specification & the direction of Engineer in-charge. Note: 1. Initial and Routine Load Test shall not be carried out by Dynamic method of testing. Note: 2. Testing agency shall submitt the design of loading platform for the approval of Engineer-in-charge.: Single pile above 50 tonne and upto 100 tonne Safe capacity
A21: a | B21: 20.6.2.1 | C21: Initial test (Test Load 2.5 times the Safe capacity) | D21: Per Test | E21: 1 | G21: Rupees | H21: 0
A22: b | B22: 20.6.2.2 | C22: Routine test (Test Load 1.5 times the Safe capacity) | D22: Per Test | E22: 5 | G22: Rupees | H22: 0
A23: 14 | B23: 5.37 | C23: Providing and laying in position ready mixed M-25 grade concrete for reinforced cement concrete work, using cement content as per approved design mix, manufactured in fully automatic batching plant and transported to site of work in transit mixer for all leads having continuous agitated mixer, manufactured as per mix design of specified grade for reinforced cement concrete work including pumping of R.M.C. from transit mixer to site of laying , excluding the cost of centering, shuttering finishing and reinforcement including cost of admixtures in recommended proportions as per IS : 9103 to accelerate/ retard setting of concrete, improve workability without impairing strength and durability as per direction of the Engineer - in - charge.
A24: a | B24: 5.37.1 | C24: All works upto plinth level. | D24: Cum | E24: 1750 | G24: Rupees | H24: 0
A25: b | B25: 5.37.2 | C25: All works above plinth level upto floor V level. | D25: Cum | E25: 4110 | G25: Rupees | H25: 0
A26: 15 | B26: 5.34 | C26: Extra for providing richer mixes at all floor levels.Note:- | H26: 0
A27: a | B27: 5.34.1 | C27: Providing M-30 grade concrete instead of M-25 grade BMC/RMC. | D27: Cum | E27: 7052 | G27: Rupees | H27: 0
A28: 16 | B28: 5.38 | C28: Extra for R.C.C./ B.M.C/ R.M.C. work above floor V level for each four floors or part thereof. | D28: Cum | E28: 1265 | G28: Rupees | H28: 0
A29: 17 | B29: 5.12 | C29: Providing, hoisting and fixing up to floor five level precast reinforced cement concrete work in string courses, bands, copings, bed plates, anchor blocks,plain window sills and the like, including the cost of required centering,shuttering but excluding cost of reinforcement, with 1:2:4 (1 cement: 2coarse sand: 4 graded stone aggregate 20 mm nominal size). | D29: Cum | E29: 23 | G29: Rupees | H29: 0
A30: 18 | B30: 5.9 | C30: Centering and shuttering including strutting, propping etc. and removal of form for :
A31: a | B31: 5.9.1 | C31: Foundations, footings, bases of columns, etc. for mass concrete. | D31: Sqm | E31: 1886 | G31: Rupees | H31: 0
A32: b | B32: 5.9.2 | C32: Walls (any thickness) including attached pilasters, butteresses, plinth and string courses etc. | D32: Sqm | E32: 1325 | G32: Rupees | H32: 0
A33: c | B33: 5.9.3 | C33: Suspended floors, roofs, landings, balconies and access platform. | D33: Sqm | E33: 13650 | G33: Rupees | H33: 0
A34: d | B34: 5.9.5 | C34: Lintels, beams, plinth beams, girders, bressumers and cantilevers. | D34: Sqm | E34: 10360 | G34: Rupees | H34: 0
A35: e | B35: 5.9.6 | C35: Columns, Pillars, Piers, Abutments, Posts and Struts. | D35: Sqm | E35: 6620 | G35: Rupees | H35: 0
A36: f | B36: 5.9.7 | C36: Stairs, (excluding landings) except spiral-staircases. | D36: Sqm | E36: 590 | G36: Rupees | H36: 0
A37: g | B37: 5.9.16.1 | C37: Edges of slabs and breaks in floors and walls.Under 20 cm wide | D37: m | E37: 11020 | G37: Rupees | H37: 0
A38: h | B38: 5.9.19 | C38: Weather shade, Chajjas, corbels etc., including edges. | D38: Sqm | E38: 4200 | G38: Rupees | H38: 0
A39: i | B39: 5.9.14 | C39: Extra for shuttering in circular work (20% of respective centering and shuttering items | D39: Sqm | E39: 85 | G39: Rupees | H39: 0
A40: =A30+1 -> 19 | B40: 5.11.1 | C40: Extra for additional height in centering, shuttering where ever required with adequate bracing, propping etc. including cost of de-shuttering and decentering at all levels, over a height of 3.5 m, for every additional height of 1 metre or part thereof (Plan area to be measured) Suspended floors, roofs, landing, beams and balconies (Plan area to be measured). | D40: Sqm | E40: 12620 | G40: Rupees | H40: 0
A41: 20a) | B41: 5.22.6 | C41: Steel reinforcement for R.C.C. work including straightening, cutting, bending, placing in position and binding all complete upto plinth level. Thermo-Mechanically Treated bars of grade Fe-500D or more. | D41: Kg | E41: 371080 | G41: Rupees | H41: 0
A42: 20b) | B42: 5.22A.6 | C42: Steel reinforcement for R.C.C. work including straightening, cutting, bending, placing in position and binding all complete above plinth level.Thermo-Mechanically Treated bars of grade Fe-500 D or more. | D42: Kg | E42: 556010 | G42: Rupees | H42: 0
A43: 21 | B43: 5.28 | C43: Providing and fixing in position 12mm thick bitumen impregnated fibre board conforming to IS: 1838 including cost of primer, sealing compound in expansion joints. 5cm depth | D43: m | E43: 420 | G43: Rupees | H43: 0
A44: 22 | B44: 5.29.2.1 | C44: Providing and fixing sheet covering over expansion joints with iron screws as per design to match the colour / shade of wall treatment. Aluminium fluted strips 3.15mm thick 150 mm wide. | D44: m | E44: 420 | G44: Rupees | H44: 0
A45: 23 | B45: 6.4.2 | C45: Brick work with common burnt clay F.P.S. (non modular) bricks of class designation 7.5 in superstructure above plinth level up to floor V level in all shapes and sizes in : Cement mortar 1:6 (1 cement : 6 coarse sand) | D45: Cum | E45: 2755 | G45: Rupees | H45: 0
A46: 24 | B46: 6.5 | C46: Extra for brick work / block masonry / Tile brick masonry in superstructure above floor V level, for each four floors or part thereof by mechanical means. | D46: Cum | E46: 900 | G46: Rupees | H46: 0
A47: 25 | B47: 6.1.2 | C47: Brick work with common burnt clay F.P.S. (non modular) bricks of class designation 7.5 in foundation and plinth in: Cement mortar 1:6 (1 cement : 6 coarse sand) | D47: Cum | E47: 60 | G47: Rupees | H47: 0
A48: 26 | B48: 6.13.2 | C48: Half brick masonry with common burnt clay F.P.S. (non modular) bricks ofclass designation 7.5 in superstructure above plinth level up to floor V level. Cement mortar 1:4 (1 cement :4 coarse sand) | D48: Sqm | E48: 3315 | G48: Rupees | H48: 0
A49: 27 | B49: 6.15 | C49: Extra for providing and placing in position 2 Nos. 6mm dia. M.S. bars at every third course of half brick masonry. | D49: Sqm | E49: 3315 | G49: Rupees | H49: 0
A50: 28 | B50: 7.1.1 | C50: Random rubble masonry with hard stone in foundation and plinth including levelling up with cement concrete 1:6:12 (1 cement : 6 coarse sand : 12 graded stone aggregate 20mm nominal size) upto plinth level with :Cement mortar 1:6 (1 cement : 6 coarse sand). | D50: Cum | E50: 25 | G50: Rupees | H50: 0
A51: 29 | B51: 9.1.1 | C51: Providing wood work in frames of doors, windows, clerestory windows and other frames, wrought framed and fixed in position with hold fast lugs or with dash fasteners of required dia & length ( hold fast lugs or dash fastener shall be paid for separately). Second class teak wood | D51: Cum | E51: 2.3 | G51: Rupees | H51: 0
A52: 30 | B52: 9.5.1.1 + 9.14 | C52: Providing and fixing panelled or panelled and glazed shutters for doors, windows and clerestory windows includingISI marked Stainless Steel butt hinges bright finished of required size with necessary screws excluding, panelling which will be paid for separately, all complete as per direction of Engineer-in-charge. Second class teak wood: 35 mm thick shutters | D52: Sqm | E52: 7.5 | G52: Rupees | H52: 0
A53: 31 | B53: 9.7.1 | C53: Providing and fixing panelling or panelling and glazing in panelled or panelled and glazed shutters for doors, windows and clerestory windows (Area of opening for panel inserts excluding portion inside grooves or rebates to be measured). Panelling for panelled or panelled and glazed shutters 25 mm to 40 mm thick : Second class teak wood | D53: Sqm | E53: 6 | G53: Rupees | H53: 0
A54: 32 | B54: 9.74 | C54: Providing and fixing bright finished brass tower bolts (barrel type) with necessary screws etc. complete : | H54: 0
A55: a | B55: 9.74.1 | C55: 250x10 mm | D55: Each | E55: 9 | G55: Rupees | H55: 0
A56: 33 | B56: 9.79.4 | C56: Providing and fixing special quality bright finished brass cupboard or ward robe locks with four levers including necessary screws etc. complete (best make of approved quality) : 75 mm | D56: Each | E56: 124 | G56: Rupees | H56: 0
A57: 34 | B57: 9.81 | C57: Providing and fixing bright finished brass handles with screws etc. complete: | H57: 0
A58: a | B58: 9.81.1 | C58: 125 mm | D58: Each | E58: 12 | G58: Rupees | H58: 0
A59: b | B59: 9.81.2 | C59: 100 mm | D59: Each | E59: 124 | G59: Rupees | H59: 0
A60: 35 | B60: 9.82 | C60: Providing and fixing bright finished brass hanging type floor door stopper with necessary screws, etc. complete. | D60: Each | E60: 3 | G60: Rupees | H60: 0
A61: 36 | B61: 9.84 | C61: Providing and fixing aluminium extruded section body tubular type universal hydraulic door closer (having brand logo with ISI, IS : 3564, embossed on the body, door weight upto 36 kg to 80 kg and door width from 701 mm to 1000 mm) with double speed adjustment with necessary accessories and screws etc. complete. | D61: Each | E61: 3 | G61: Rupees | H61: 0
A62: 37 | B62: 9.88 | C62: Providing and fixing chromium plated brass 100 mm mortice latch and lock with 6 levers and a pair of lever handles with necessary screws etc. complete (best make of approved quality). | D62: Each | E62: 1 | G62: Rupees | H62: 0
A63: 38 | B63: 9.129 | C63: Providing and fixing cup board shutters 25mm thick, with Pre-laminated flat pressed three layer particle board or graded wood particle board IS: 12823 marked exterior grade (Grade l Type ll) having one side decorative lamination and other side balancing lamination including IInd class teak wood lipping of 25mm wide x12 mm thick with necessary screws and bright finished stainless steel piano hinges complete as per direction of the Engineer-in-Charge | D63: Sqm | E63: 93 | G63: Rupees | H63: 0
A64: 39 | B64: 9.18.1 | C64: Providing and fixing Pre-laminated flat pressed 3 layer (medium density)particle board or graded wood particle board IS : 3087 marked, with oneside decorative and other side balancing lamination Grade I, Type II exteriorgrade IS : 12823 marked, in shelves with screws and fittings whereverrequired, edges to be painted with polyurethane primer (fittings to be paidseparately). 18mm thick | D64: Sqm | E64: 300 | G64: Rupees | H64: 0
A65: 40 | B65: 9.161 | C65: Providing and fixing fire resistant door frame of section 50 x 60mm on horizontal side & 35 x 60mm on vertical side having built in rebate made out of 1.6mm thick GI sheet (Zinc coating not less than 120gm/m2) suitable for mounting 120 minute Fire Rated Glazed Door Shutters. The frame shall be filled with Mineral wool insulation having density min. 96kg/m3. The frame will have a provision of G.I. Anchor fastners 14 nos 95each on vertical style & 4 on horizontal style of size M10 X 80) suitable for fixing in the opening along with Factory made Template for SS Ball Bearing Hinges of Size 100x89x3mm for fixing of fire rated glazed shutter. The frame shall be finished with a approved fire resistant primer of Powder coating of not less than 30 micron in desired shade as per the directions of Engineer-in-charge. (Cost of SS ball bearing hinges is excluded) | D65: m | E65: 180 | G65: Rupees | H65: 0
A66: 41 | B66: 9.162 | C66: Providing and fixing 60mm thick glazed fire resistant door shutters of 120 minute Fire Rating confirming to IS:3614 (Part II) or EN 1634-1:1999, tested and certified as per laboratory approved by Engineer-in-charge, with suitable mounting on door frame, consisting of vertical styles, top rail & side rail 60mm x 60mm wide and bottom rail of 110 mm x 60 mm made out of 1.6mm thick GI sheet (zinc coating not less than 120 gm/m2) duly filled mineral wool insulation having density min 96 kg/m3 and fixing with necessary stainless steel ball bearing hinges of size 100 x 89 x 3mm of approved make, including applying a coat of approved fire resistant primer or powder coating n ot less than 30 micron etc. all complete as per direction of Engineer-in-charge (panelling to be paid for seperately) | D66: m2 | E66: 97 | G66: Rupees | H66: 0
A67: 42 | B67: 9.164 | C67: Providing and fixing glazing in fire resistant door shutters, fixed panels & partitions etc., with G.I beading made out of 1.6mm thick G.I sheet (zinc coating not less than 120 gm/m2) of size 20 x 33 mm screwed with M4 x 38mm SS screws of distance 75mm from the edges and 150mm c/c, including applying a coat of approved fire resistant primer/powder coatin g of not less than 30 micron on G.I. beading & special ceramic tape of 5 x 20 mm size etc. complete in all respect as per direction of Engineer-in-charge. The glass shall be clear, toughened, interlayered, non-wired fire resistant having 11mm thickness of approved brand with 120 minutes of fire resistance both integrity & | H67: 0
C68: radiation control (EW120) and minimum 15 min of insulation (EI15) and having a sound reduction of 37dB and LT of 86%. Glass shall be compliant to class 2(B)2 category of Impact Resistance as per EN 12600. The glass should be manufactured in UL & TUV audited Facility and including UL-EU Certification. The maximum glazing size cannot be more than 1100 mm x 2200 mm (w x h) or 2.42 sq. mts in total area. The test report for the complete system (Glased Door or Partition) will be considered valid only if it co ntains the stamp and signature of the authorized signatory from the glass manufacturer. (Actual glass size is to be measured at site for payments) | D68: m2 | E68: 4 | G68: Rupees | H68: 0
A69: 43 | B69: LMR | C69: Providing and fixing 2mm thick lead lining over inner side of the door shutter including all fixing accessories and fixuerse etc complete | D69: Sqm | E69: 9 | G69: =FnConvert(F69) -> Rupees | H69: 0 | I69: =H69 -> 0
A70: 44 | B70: 21.18 | C70: Providing and fixing 12 mm thick frameless toughened glass door shutter of approved brand and manufacture, including providing and fixing top & bottom pivot & spring type fixing arrangement and making necessary holes etc. for fixing required door fittings, all complete as per direction of Engineer-in-charge (Door handle, lock and stopper etc.to be paid separately). | D70: Sqm | E70: 24 | G70: Rupees | H70: 0
A71: 45 | B71: LMR | C71: Providing and fixing Stainless Steel (SS Grade 316) frameless double leaf glass door fittings such as BTS 75 FLOOR SPRING WITH SPINDLE INSERT INCL CEMENT BOX AND COVER PLATE -EN 1-4-MAX DOOR WEIGHT 120 KG -HO 90 DEG, ulus 10 UNIVERSAL CORNER LOCK WITH LKP AND EPC 60MM BOTH SIDE KEY, PULL HANDLE -H TYPE - TGDI H 350 X 25 CTC 250MM GRADE 316 for each leaf of 12mm toughened glass door as per the direction of the Engineer -in-charge. | D71: Each | E71: 4 | G71: Rupees | H71: =ROUND(E71*F71,0) -> 0 | I71: =H71 -> 0
A72: 46 | B72: 9.117.1 | C72: Providing and fixing factory made uPVC door frame made of uPVC extruded sections having an overall dimension as below (tolerance ±1mm), with wall thickness 2.0 mm (± 0.2 mm), corners of the door frame to be Jointed with galvanized brackets and stainless steel screws joints mitred and Plastic welded. The hinge side vertical of the frames reinforced by galvanized M.S. tube of size 19 X 19 mm and 1mm (± 0.1 mm) wall thickness and 3 nos. stainless steel hinges fixed to the frame complete as per manufacturer’s specification and direction of Engineerin- charge Extruded section profile size 48x40 mm | D72: m | E72: 555 | G72: Rupees | H72: 0
A73: 47 | B73: 9.118.2 | C73: 30 mm thick factory made Polyvinyl Chloride (UPVC) door shutter made of styles and rails of a uPVC hollow section of size 60x30 mm and wall thickness 2 mm (± 0.2 mm), with inbuilt decorative moulding edging on one side. The styles and rails mitred and joint at the corners by means of M.S. galvanised/ plastic brackets of size 75x220 mm having wall thickness 1.0 mm and stainless steel screws. The styles of the shutter reinforced by inserting galvanised M.S. tube of size 25x20 mm and 1 mm (± 0.1 mm) wall thickness. | H73: 0
C74: The lock rail made up of 'H' section, a uPVC hollow section of size 100x30 mm and 2 mm (± 0.2 mm) wall thickness fixed to the shutter styles by means of plastic/ galvanised M.S. 'U' cleats. The shutter frame filled with a uPVC multi-chambered single panel of size not less than 620 mm, having over all thickness of 20 mm and 1 mm (± 0.1 mm) wall thickness . The panels filled vertically and tie bar at two places by inserting horizontally 6 mm galvanised M.S. rod and fastened with nuts and washers, complete as per manufacturer's specification and direction of Engineer-in-charge. | D74: Sqm | E74: 191 | G74: Rupees | H74: 0
A75: 48 | B75: 9.147A | C75: Providing and fixing factory made uPVC white colour casement/ casement cum fixed glazed windows comprising of uPVC multi chambered fram, sash and mullion (wherever required) extruded profiles duly reinforced with 1.60 + 0.2 mm thick galvanized mild steel section made from roll forming process fo required length (shape and size according to uPVC profile), uPVC extruded glazing beeds of appropriate dimension, EPDM gasket, stainless steel (SS 304 grade) friction hinges, zinc alloy (white powder coated) casement handles, GI fasteners 100 X 8mm size for fixing frame to finished wall, plastic packers, plastic caps and necessary stainless steel screws etc. | H75: 0
C76: Profile of frame and sash shall mitred cut and fushion welded at all corners , mullion (if required) shall also fusion welded incoluding drilling of holes for fixing hardwares and drainage of water etc. After fixing frame, the gap between frame and adjacent finished wall shasll be filled with weather proof silicon sealent over baker rod of required size and of approved quality, all complete as per approved drawing & direction of Engineer-in-charge. (Single/ double glass panes and silicon sealent shall be paid seperately) | H76: 0
A77: a) | B77: 9.147A. 1 | C77: Casement window single panel with S.S. Friction hinges (300 x 19 x 1.9mm) made of (small series) frame 47 x 50 mm & sash 47 X 68 mm both having wall thickness of 1.9 + 0.2 mm and single glass pane glazing bead of appropriate dimension (Area of window up 0.75 sq.m) | D77: Sqm | E77: 50 | G77: Rupees | H77: 0
A78: b) | B78: 9.147A. 4 | C78: Casement window single panel with S.S. Friction hinges (400 x 19 x 1.9mm) made of (big series) frame 67 X 60mm & sash 67 X 80mm both having wall thickness of 2.3 + 0.2 mm and single glazed bead/double glazed bead of appropriate dimension (Area of window above 0.75 sq.m) | D78: Sqm | E78: 28 | G78: Rupees | H78: 0
A79: 49 | B79: 9.147D | C79: Providing and fixing factory made uPVC white colour sliding glazed window upto 1.5m in height dimension comprising of uPVC multi-chambered frame with in-built roller track and sash extruded profiles duly reinforced with 1.60 + 0.2 mm thick galvanized mild steel section made from roll forming process of required length (shape & size according to uPVC profile), appropriate dimension of uPVC extruded glazing beads and uPVC extruded interlocks, EPDM gasket, wool pile, zinc alloy (white powder coated) touch locks with hook, zinc alloy body with single nylon rollers (weight bearing capacity to be 40kg), G.I fasteners 100 x 8 mm size for fixing frame to finished wall and necessary stainless steel screws etc. Profile of frame & sash shall be mitred cut and fusion welded at all corners, including drilling of holes for fixing hardware's and drainage of water etc. | H79: 0
C80: After fixing frame the gap between frame and adjacent finished wall shall be filled with weather proof silicon sealent over backer rod of required size and of approved quality, all complete as per approved drawing & direction of Enginer-in-charge. (single/double glass panes, wire mesh and silicon sealant shall be paid separetely) | H80: 0
C81: Note: For uPVC frame and sash extruded profiles minus 5% tolerance in dimension i.e. In depth & width of profile shall be acceptable
A82: a) | B82: 9.147D..3 | C82: Two track two panels sliding window made of (big series) frame 67 x 50 mm & sash 46 x 62 mm both having wall thickness of 2.3 + 0.2 mm and single glazing bead/ double glazing bead of appropriate dimension. | D82: Sqm | E82: 165 | G82: Rupees | H82: 0
A83: b) | B83: 9.147D..5 | C83: Three track three panels sliding window made of (big series) frame 116 x 45 mm & sash 46 x 62 mm both having wall thickness of 2.3 + 0.2 mm and single glazing bead / double glazing bead of appropriate dimension. | D83: Sqm | E83: 710 | G83: Rupees | H83: 0
A85: 50 | B85: 21.1.1.2 | C85: Providing and fixing aluminium work for doors, windows, ventilators, Louvers and partitions with extruded built up standard tubular sections/ appropriate Z sections and other sections of approved make conforming to IS: 733 and IS: 1285, fixing with dash fasteners of required dia and size, including necessary filling up the gaps at junctions, i.e. at top, bottom and sides with required EPDM rubber/ neoprene gasket etc. Aluminium sections shall be smooth, rust free, straight, mitred and jointed mechanically wherever required including cleat angle, Aluminium snap beading for glazing / paneling, C.P. brass / stainless steel screws, all complete as per architectural drawings and the directions of Engineer-in-charge. (Glazing, paneling and dash fasteners to be paid for separately) : For fixed portion Powder coated aluminium (minimum thickness of powder coating 50 micron) | D85: Kg | E85: 4188 | G85: Rupees | H85: 0
A86: 51 | B86: 21.1.2.2 | C86: For shutters of doors, windows & ventilators, Louvers including providing and fixing hinges/ pivots and making provision for fixing of fittings wherever required including the cost of EPDM rubber / neoprene gasket required (Fittings shall be paid for separately). Powder coated aluminium (minimum thickness of powder coating 50 micron) | D86: Kg | E86: 3277 | G86: Rupees | H86: 0
A87: 52 | B87: 21.17 | C87: Providing and fixing anodised aluminium grill (anodised transparent ordyed to required shade according to IS: 1868 with minimum anodic coatingof grade AC 15) of approved design/pattern, with approved standardsection and fixed to the existing window frame with C.P. brass/ stainlesssteel screws @ 200 mm centre to centre, including cutting the grill toproper opening size for fixing and operation of handles and fixing approvedanodised aluminium standard section around the opening, all completeas per requirement and direction of Engineer-in-charge. (Only weight ofgrill to be measured for payment). | D87: Kg | E87: 25 | G87: Rupees | H87: 0
A88: 53 | B88: 21.2.2 | C88: Providing and fixing 12mm thick prelaminated particle board flat pressed three layer or graded wood particle board conforming to IS: 12823 Grade l Type ll, in panelling fixed in aluminum doors, windows shutters and partition frames with C.P. brass / stainless steel screws etc. complete as per architectural drawings and directions of engineer-in-charge. Pre-laminated particle board with decorative lamination on both sides. | D88: Sqm | E88: 290 | G88: Rupees | H88: 0
A89: 54 | B89: 21.3.2 | C89: Providing and fixing glazing in aluminium/uPVC door, window, ventilator shutters and partitions etc. with EPDM rubber / neoprene gasket etc. complete as per the architectural drawings and the directions of engineer-in-charge . (Cost of aluminium snap beading shall be paid in basic item): With float glass panes of 6 mm thickness | D89: Sqm | E89: 950 | G89: Rupees | H89: 0
A90: 55 | B90: 21.3.3 | C90: Providing and fixing glazing in aluminium/uPVC door, shutters and partitions etc. with EPDM rubber / neoprene gasket etc. complete as per the architectural drawings and the directions of engineer-in-charge . (Cost of aluminium snap beading shall be paid in basic item): With float glass panes of 8 mm thickness | D90: Sqm | E90: 370 | G90: Rupees | H90: 0
A91: 56 | B91: 21.4.2 | C91: Providing and fixing double action hydraulic floor spring of approved brand and manufacture conforming to IS : 6315, having brand logo embossed on the body / plate with double spring mechanism and door weight upto 125 kg., for doors, including cost of cutting floors , embedding in floors as required and making good the same matching to the existing floor finishing and cover plates with brass pivot and single piece M.S. sheet outer box with slide plate etc. complete as per the direction of Engineer-in-charge. With brass cover plate minimum 1.25 mm thickness. | D91: Each | E91: 243 | G91: Rupees | H91: 0
A92: 57 | B92: 21.1 | C92: Providing and fixing double glazed hermetically sealed glazing in aluminium windows, ventilators and partition etc. with 6 mm thick clear float glass both side, having 12 mm air gap, including providing EPDM gasket, perforated aluminium spacers, desiccants, sealant (Both primary and secondary sealant) etc. as per specifications, drawings and direction of Engineer-in-charge complete. | D92: Sqm | E92: 43 | G92: Rupees | H92: 0
A93: 58 | B93: 21.12.2 | C93: Providing and fixing aluminium tubular handle bar 32 mm outer dia, 3.0mm thick & 2100 mm long with SS screws etc .complete as per directionof Engineer-in-Charge. Powder coated minimum thickness 50 micron aluminium tubular handle bar | D93: Each | E93: 346 | G93: Rupees | H93: 0
A94: 59 | B94: 21.13 | C94: Providing and fixing 100mm brass locks (best make of approved quality) for aluminium doors including necessary cutting and making good etc. complete | D94: Each | E94: 282 | G94: Rupees | H94: 0
A95: 60 | B95: 9.100.1 | C95: Providing and fixing aluminium handles, ISI marked, powder coated to required colour or shade, with necessary screws etc. complete : 125mm | D95: Each | E95: 274 | G95: Rupees | H95: 0
A96: 61 | B96: 9.97 | C96: Providing and fixing aluminium tower bolts, ISI marked, anodised (anodic coating not less than grade AC 10 as per IS : 1868 ) transparent or dyed to required colour or shade, with necessary screws etc. complete :
A97: a | B97: 9.97.2 | C97: 250 X 10 mm | D97: Each | E97: 620 | G97: Rupees | H97: 0
A98: b | B98: 9.97.3 | C98: 200 X 10 mm | D98: Each | E98: 280 | G98: Rupees | H98: 0
A99: 62 | B99: 9.101.2 | C99: Providing and fixing aluminium hanging floor door stopper, ISI marked, anodised (anodic coating not less than grade AC 10 as per IS : 1868) Transparent or dyed to required colour and shade, with necessary screws etc. complete. Twin rubber stopper | D99: Each | E99: 235 | G99: Rupees | H99: 0
A100: 63 | B100: 21.8 | C100: Filling the gap in between aluminium frame & adjacent RCC/ Brick/ Stonework by providing weather silicon sealant over backer rod of approved qualityas per architectural drawings and direction of Engineer-in-charge complete. | D100: m | E100: 1570 | G100: Rupees | H100: 0
A101: 64 | B101: 10.28 | C101: Providing and fixing stainless steel (Grade 304) railing made of Hollow tubes, channels, plates etc. including welding, grinding, buffing, polishing and making curvature (wherever required) and fitting the same with necessary stainless steel nuts and bolts complete i/c fixing the railing with necessary accessories & stainless steel dash fasteners , stainless steel bolts etc., of required size, on the top of the floor or the side of waist slab with suitable arrangement as per approval of Engineer-in-charge. ( for payment purpose only weight of stainless steel members shall be considered excluding fixing accessories such as nuts, bolts, fasteners etc.) | D101: Kg | E101: 1885 | G101: Rupees | H101: 0
A102: 65 | B102: 9.48.2 | C102: Providing and fixing M.S. grills of required pattern in frames of windows etc. with M.S. flats, square or round bars etc. including priming coat with approved steel primer all complete.Fixed to openings /wooden frames with rawl plugs screws etc. | D102: Kg | E102: 15120 | G102: Rupees | H102: 0
A103: 66 | B103: 10.17 | C103: Providing and fixing M.S. fan clamp type I or II of 16 mm dia M.S. bar bent to shape with hooked ends in R.C.C. slabs, beams during laying including painting the exposed portion of loop, all as per standard design complete. | D103: Each | E103: 350 | G103: Rupees | H103: 0
A104: 67 | B104: 9.53 | C104: Providing 40x5 mm flat iron hold fast 40 cm long including fixing to frame with 10 mm diameter bolts, nuts and wooden plugs and embedding in cement concrete block 30x10x15cm 1:3:6 mix (1 cement : 3 coarse sand : 6 graded stone aggregate 20mm nominal size) | D104: Each | E104: 18 | G104: Rupees | H104: 0
A105: 68 | B105: 8.2.2.2 | C105: Providing and fixing 18mm thick gang saw cut mirror polished premoulded and prepolished) machine cut for kitchen platforms, flooring, vanity counters, window sills , facias and similar locations of required size of approved shade, colour and texture laid over 20mm thick base cement mortar 1:4 (1 cement : 4 coarse sand) with joints treated with white cement, mixed with matching pigment, epoxy touch ups, including rubbing, curing, moulding and polishing to edges to give high gloss finish etc. complete at all levels. Granite of any colour and shade: Area of slab over 0.50 sqm.(Lowest retails price not less than Rs. 2000/m2) | D105: Sqm | E105: 1610 | G105: Rupees | H105: 0
A106: 69 | B106: 8.9.1.2 Analysis | C106: Stone tile (polished) work for wall lining over 12 mm thick bed of cement mortar 1:3 (1 cement : 3 coarse sand) and cement slurry @ 3.3 kg/sqm including pointing in white cement complete..:18mm thick Granite slab of any colour and shade.to the front side of lift room | D106: Sqm | E106: 165 | G106: Rupees | H106: 0
A107: 70 | B107: 8.3.2 | C107: Providing edge moulding to 18mm thick granite stone including machine polishing to edge to give high gloss finish etc. complete as per design approved by Engineer-in-Charge: to the front side of lift room | D107: m | E107: 145 | G107: Rupees | H107: 0
A108: 71 | B108: 8.5 | C108: Extra for providing opening of required size & shape for wash basins/ kitchen sink in kitchen platform, vanity counters and similar location in marble/Granite/stone work including necessary holes for pillar taps etc. including moulding, rubbing and polishing of cut edges etc. complete. | D108: Each | E108: 105 | G108: Rupees | H108: 0
A109: 72 | B109: 8.13.1 | C109: Providing and laying Polished Granite stone flooring in required design and patterns, in linear as well as curvilinear portions of the building all complete as per the architectural drawings with 18 mm thick stone slab over 20 mm average) thick base of cement mortar 1:4 (1 cement : 4 coarse sand) laid and jointed with cement slurry and pointing with white cement slurry admixed with pigment of matching shade including rubbing , curing and polishing etc. all complete as specified and as directed by the Engineer-in-Charge.Polished Granite stone slab jet Black, Cherry Red, Elite Brown, Cat Eye or equivalent. (Lowest retails price not less than Rs. 2000/m2) | D109: m2 | E109: 5910 | G109: Rupees | H109: 0
A110: 73 | B110: 11.36 | C110: "Providing and fixing 1st quality ceramic glazed joint free wall tiles 300x450mm conforming to IS : 15622 (thickness to bespecified by the manufacturer), of approved make, in all colours, shades except burgundy, bottlegreen, black of any size as approved by Engineer-in-Charge, in skirting, risers of steps and dados, over12 mm thick bed of cement mortar 1:3 (1 cement : 3 coarse sand) and jointing with grey cement slurry@ 3.3 kg per sqm, including pointing in white cement mixed with pigment of matching shade complete.Basic Price is 400/sqm" | D110: Sqm | E110: 6000 | G110: Rupees | H110: 0
A111: 74 | B111: 11.4 | C111: Providing and laying rectified Glazed Ceramic floor tiles 300x300 mm or more (thickness to be specified by the manufacturer) of 1st quality conforming to IS : 15622 of approved make in all colours, shades, except White, Ivory, Grey, Fume Red Brown, laid on 20 mm thick Cement Mortar 1:4 (1 Cement : 4 Coarse sand) including pointing the joints with white cement and matching pigments etc., complete (Lowest retail price not less than Rs. 500/m2) | D111: Sqm | E111: 550 | G111: Rupees | H111: 0
A112: 75 | B112: 11.41.2 | C112: Providing and laying vitrified floor tiles of First Quality/Premium quality, best quality in different sizes (thickness to be specified by the manufacturer) with water absorption's less than 0.08% and conforming to IS : 15622 of approved make in all colours and shades, laid on 20mm thick cement mortar 1:4 (1 cement : 4 coarse sand) including grouting the joints with white cement and matching pigments etc., complete.Size of Tile 600x600 mm: (Lowest retail price not less than Rs. 900/m2) | D112: Sqm | E112: 3120 | G112: Rupees | H112: 0
A113: 76 | B113: 11.46.2 | C113: Providing and laying Vitrified tiles of First Quality/Premium quality, best quality in different sizes (thickness to be specified by manufacturer) with water absorption less than 0.08 % and conforming to I.S. 15622, of approved make in all colours & shade in skirting, riser of steps, over 12 mm thick bed of cement mortar 1:3 (1 cement: 3 coarse sand), including grouting the joint with white cement & matching pigments etc. complete.Size of Tile 600x600 mm: (Lowest retail price not less than Rs. 900/m2) | D113: Sqm | E113: 365 | G113: Rupees | H113: 0
A114: 77 | B114: 11.20.3 | C114: Chequerred precast cement concrete tiles 22 mm thick in footpath & courtyard, jointed with neat cement slurry mixed with pigment to match the shade of tiles including rubbing and cleaning etc. complete, on 20 mm thick bed of cement mortar 1:4 (1 cement: 4 coarse sand). Dark shade using ordinary cement. | D114: Sqm | E114: 1040 | G114: Rupees | H114: 0
A115: 78 | B115: 13.2.1 | C115: 15 mm cement plaster on the rough side of single or half brick wall of mix: 1:4 (1 cement: 4 fine sand) to the outside of walls | D115: Sqm | E115: 10100 | G115: Rupees | H115: 0
A116: 79 | B116: 13.4.1 | C116: 12 mm cement plaster of mix : 1:4 (1 cement: 4 coarse sand) to the inside of walls | D116: Sqm | E116: 23300 | G116: Rupees | H116: 0
A117: 80 | B117: 13.16.1 | C117: 6 mm cement plaster of mix : 1:3 (1 cement: 3 fine sand) for under side of roof slab and beams | D117: Sqm | E117: 7730 | G117: Rupees | H117: 0
A118: 81 | B118: 13.9.1 + 13.21 | C118: Cement plaster 1:3 (1 cement: 3 coarse sand) finished with a floating coat of neat cement.12 mm cement plaster including providing and mixing water proofing material in cement plaster work in proportion recommended by the manufacturers. to the top surface of sunshade | D118: Sqm | E118: 2660 | G118: Rupees | H118: 0
A119: 82 | B119: 13.22 | C119: Extra for plastering exterior walls of height more than 10 m from ground level for every additional height of 3 m or part thereof. | H119: 0
A120: a | B120: 13.22 | C120: 10 m to 13m | D120: Sqm | E120: 960 | G120: Rupees | H120: 0
A121: b | B121: 13.22x2 | C121: 13m to 16m | D121: Sqm | E121: 960 | G121: Rupees | H121: 0
A122: c | B122: 13.22x3 | C122: 16m to 19m | D122: Sqm | E122: 960 | G122: Rupees | H122: 0
A123: d | B123: 13.22x4 | C123: 19m to 22m | D123: Sqm | E123: 980 | G123: Rupees | H123: 0
A124: e | B124: 13.22x5 | C124: 22m to 25m | D124: Sqm | E124: 1020 | G124: Rupees | H124: 0
A125: f | B125: 13.22x6 | C125: 25m to 28m | D125: Sqm | E125: 1010 | G125: Rupees | H125: 0
A126: g | B126: 13.22x7 | C126: 28m to 31m | D126: Sqm | E126: 1050 | G126: Rupees | H126: 0
A127: h) | B127: 13.22x8 | C127: 31m to 34m | D127: Sqm | E127: 70 | G127: Rupees | H127: 0
A128: 83 | B128: 13.8 | C128: Providing and applying white cement based putty of average thickness 1 mm, of approved brand and manufacturer, over the plastered wall surface to prepare the surface even and smooth complete. | D128: Sqm | E128: 31000 | G128: Rupees | H128: 0
A129: 84 | B129: 13.43.1 | C129: Applying one coat of water thinnable cement primer of approved brand and manufacture on wall surface : | D129: Sqm | E129: 31000 | G129: Rupees | H129: 0
A130: 85 | B130: 13.46.1 | C130: Finishing walls with Acrylic Smooth exterior paint of required shade :New work (Two or more coat applied @ 1.67 ltr/10 sqm over and including priming coat of exterior primer applied @ 2.20 kg/10 sqm) | D130: Sqm | E130: 10100 | G130: Rupees | H130: 0
A131: 86 | B131: 13.60.1 | C131: Wall painting with acrylic emulsion paint of approved brand and manufacture to give an even shade: Two or more coats on new work. Make: Asian, Berger, Jotun | D131: Sqm | E131: 31000 | G131: Rupees | H131: 0
A132: 87 | B132: 13.61.1 | C132: Painting with synthetic enamel paint of approved brand and manufacture to give an even shade :Two or more coats on new work. | D132: Sqm | E132: 960 | G132: Rupees | H132: 0
A133: 88 | B133: 22.14.1 | C133: Grading roof for water proofing treatment with Cement concrete 1:2:4 (1 cement : 2 coarse sand : 4 gradedstone aggregate 20 mm nominal size) | D133: Cum | E133: 133 | G133: =FnConvert(F133) -> Rupees | H133: 0
A134: 89 | B134: 22.5 | C134: Providing and laying water proofing treatment in sunken portion of WCs, bathroom etc., by applying cement slurry mixed with water proofing cement compound consisting of applying : a) First layer of slurry of cement @ 0.488 kg/sqm mixed with water proofing cement compound @ 0.253 kg/sqm. This layer will be allowed to air cure for 4 hours. b) Second layer of slurry of cement @ 0.242 kg/sqm mixed with water proofing cement compound @ 0.126 kg/sqm. This layer will be allowed to air cure for 4 hours followed with water curing for 48 hours. The rate includes preparation of surface, treatment and sealing of all joints, corners, junctions of pipes and masonry with polymer mixed slurry | D134: Sqm | E134: 550 | G134: Rupees | H134: 0
A135: 90 | B135: 12.52 | C135: Providing and fixing tiled false ceiling of approved materials of size 595x595 mm in true horizontal level suspended on inter locking metal grid of hot dipped galvanized steel sections ( galvanized @ 120 gsm/sqm, both side inclusive) consisting of main "T" runner with suitably spaced joints to get required length and of size 24x38mm made from 0.30mm thick (minimum) sheet, spaced at 1200mm center to center and cross "T" of size 24x25mm made of 0.30mm thick (minimum) sheet, 1200mm long spaced between main "T" at 600mm center to center to form a grid of 1200x600 mm and secondary cross "T" of length 600mm and size 24x25mm made of 0.30 mm thick (minimum) sheet to be interlocked at middle of the 1200x600mm panel to form grids of 600x600mm and wall angle of size 24x24x0.3 mm | H135: =ROUND(E135*F135,0) -> 0
C136: and laying false ceiling tiles of approved texture in the grid including, wherever, required, cutting/making, opening for services like diffusers, grills, light fittings, fixtures, smoke detectors etc. Main "T" runners to be suspended from ceiling using GI slotted cleats of size 27 x 37 x 25 x1.6 x mm fixed to ceiling with 12.5 mm dia and 50 mm long dash fasteners, 4mm GI adjustable rods with galvanised butterfly level clips of size 85 x 30 x 0.8 mm spaced at 1200mm center to center along main T, bottom exposed width of 24 mm of all T-sections shall be pre-painted with polyester paint, all complete at all heights as per specifications drawings and as directed by Engineer-in-charge. | H136: 0
A137: a | B137: 12.52.2 | C137: GI Metal Ceiling Lay in perforated Tegular edge global white color tiles of size 595x595 mm and 0.5 mm thick with 8 mm drop; made of GI sheet having galvanizing of 100 gms/sqm (both sides inclusive) and 20% perforation area with 1.8 mm dia holes and having NRC (Noise Reduction Coefficient ) of 0.5, electro statically polyester powder coated of thickness 60 microns minimum), including factory painted after bending and perforation,and backed with a black Glass fiber acoustical fleece. | D137: Sqm | E137: 3910 | G137: Rupees | H137: 0
A138: b | B138: 12.52.3 | C138: 12.5 mm thick square edge PVC Laminated GypsumTile of size 595x595 mm, made of Gypsum plasterboard, manufactured from natural gypsum as per IS 2095 part Iand laminated with white 0.16mm thick fire retardantPVC film on the face side and 12micron metalized polyester on the back side with all edges sealed with the face side PVC film which goes around and wrapsthe edges and is bonded to the edges and the backside metalized polyester | D138: m2 | E138: 560 | G138: Rupees | H138: 0
A139: 91 | B139: 12.45.3 | C139: Providing and fixing false ceiling at all height including providing and fixingof frame work made of special sections, power pressed from M.S. sheetsand galvanized with zinc coating of 120 gms/sqm (both side inclusive) asper IS : 277 and consisting of angle cleats of size 25 mm wide x 1.6 mmthick with flanges of 27 mm and 37mm, at 1200 mm centre to centre, oneflange fixed to the ceiling with dash fastener 12.5 mm dia x 50mm long with 6mm dia bolts, other flange of cleat fixed to the angle hangers of 25x10x0.50mm of required length with nuts & bolts of required size and other end ofangle hanger fixed with intermediate G.I. channels 45x15x0.9 mm runningat the spacing of 1200 mm centre to centre, to which the ceiling section0.5 mm thick bottom wedge of 80 mm with tapered flanges of 26 mm eachhaving lips of 10.5 mm, at 450 mm centre to centre, | H139: 0
C140: shall be fixed in adirection perpendicular to G.I. intermediate channel with connecting clipsmade out of 2.64 mm dia x 230 mm long G.I. wire at every junction, includingfixing perimeter channels 0.5 mm thick 27 mm high having flanges of 20mm and 30 mm long, the perimeter of ceiling fixed to wall/partition with thehelp of rawl plugs at 450 mm centre, with 25mm long dry wall screws @230 mm interval, including fixing of gypsum board to ceiling section andperimeter channel with the help of dry wall screws of size 3.5 x 25 mm at230 mm c/c, including jointing and finishing to a flush finish of tapered andsquare edges of the board with recomme-nded jointing compound , jointingtapes , finishing with jointing compound in 3 layers covering upto 150 mmon both sides of joint and two coats of primer suitable for board, all as permanufacturer’s specification and also including the cost of making openingsfor light fittings, grills, diffusers, cutouts made with frame of perimeterchannels suitably fixed, all complete as per drawings, specification anddirection of the Engineer in Charge but excluding the cost of painting with : 12.5 mm thick tapered edge gypsum fire resistant board conforming to IS: 2095- Part I | D140: Sqm | E140: 5270 | G140: Rupees | H140: 0
A141: 92 | B141: 16.1 | C141: Preparation and consolidation of sub grade with power road roller of 8 to 12 tonne capacity after excavating earth to an average of 22.5 cm depth,dressing to camber and consolidating with road roller including makinggood the undulations etc. and re-rolling the sub grade and disposal ofsurplus earth with lead upto 50 metres. | D141: Sqm | E141: 1990 | G141: Rupees | H141: 0
A142: 93 | B142: 16.78.1 | C142: Construction of granular sub-base by providing close graded Material conforming to specifications, mixing in a mechanical mix plant at OMC, carriage of mixed material by tippers to work site, for all leads & lifts, spreading in uniform layers of specified thickness with motor grader on prepared surface and compacting with vibratory power roller to achieve the desired density, complete as per specifications and directions of Engineer-in-Charge. With material conforming to Grade-I (size range 75 mm to 0.075 mm) having CBR Value-30 | D142: Cum | E142: 300 | G142: Rupees | H142: 0
A143: 94 | B143: 16.79 | C143: Providing, laying, spreading and compacting graded stone aggregate (sizerange 53 mm to 0.075 mm ) to wet mix macadam (WMM) specificationincluding premixing the material with water at OMC in for all leads & lifts,laying in uniform layers with mechanical paverfinisher in sub- base / basecourse on well prepared surface and compacting with vibratory roller of 8 to10 tonne capacity to achievethe desired density, complete as per specificationsand directions of Engineer-in-Charge. | D143: Cum | E143: 300 | G143: Rupees | H143: 0
A144: 95 | B144: 16.31.2.1 | C144: Providing and applying tack coat using bitumen emulsion conforming to IS: 8887, using emulsion pressure distributer including preparing the surface & cleaning with mechanical broom. With medium setting bitumen emulsion. On W.B.M / W.M.M. @ 0.4kg/sqm | D144: m2 | E144: 1990 | G144: Rupees | H144: 0
A145: 93 | B145: 16.36 | C145: Providing and laying Bitumen Penetration Macadam with hard stone aggregate of quality, size and grading as specified, with bitumen of suitable penetration grade, including required key aggregate as specified, spreading coarse aggregate with the help of self propelled/ tipper tail mounted aggregate spreader and applying bitumen by a pressure distributor and then spreading key aggregate with the help of aggregate spreader complete, including consolidation with road roller of minimum 8 to 10 tonne capacity to achieve specified values of compaction and surface accuracy : | H145: 0
B146: 16.36.1 | C146: For 50mm compacted thickness using coarse aggregate of size 50-20 mm graded @ 0.60 cum per 10 sqm key aggregate of size 12.5 mm graded @ 0.15 cum per 10 sqm. With paving asphalt grade VG - 10 @ 50 kg/ 10 sqm. | D146: m2 | E146: 1990 | G146: Rupees | H146: 0
A147: 97 | B147: 16.31.2.2 | C147: Providing and applying tack coat using bitumen emulsion conforming to IS: 8887, using emulsion pressure distributer including preparing the surface & cleaning with mechanical broom. With medium setting bitumen emulsion. On bituminous surface @ 0.25kg/sqm | D147: m2 | E147: 3980 | G147: Rupees | H147: 0
A148: 98 | B148: 16.33.1 | C148: 2.5 cm premix carpet surfacing with 2.25 cum and 1.12 cum of stone chippings of 13.2 mm and 11.2 mm size respectively per 100 sqm and 52 kg and 56 kg of hot bitumen per cum of stone chippings of 13.2 mm and 11.2 mm size respectively, including a tack coat with hot straight run bitumen, including consolidation with road roller of 6 to 9 tonne capacity etc. complete (tack coat to be paid for separately). with paving Asphalt grade VG-10 heated and then mixed with solvent at the rate of 70 grams per kg of asphalt. | D148: m2 | E148: 1990 | G148: Rupees | H148: 0
A149: 99 | B149: 16.4 | C149: Providing and laying seal coat of premixed fine aggregate ( passing 2.36 mm and retained on 180 micron sieve) with bitumen using 128 kg of bitumen of grade VG - 10 bitumen per cum of fine aggregate and 0.60 cum of fine aggregate per 100 sqm of road surface, including rolling and finishing with road roller all complete. | D149: m2 | E149: 1990 | G149: Rupees | H149: 0
A150: 100 | B150: 12.20 | C150: Providing and laying pressed clay tiles (Terracotta tiles) as per approved pattern 20 mm nominal thickness of approved size on roofs jointed with cement mortar 1:4 (1 cement: 4 coarse sand ) mixed with 2% integral water proofing compound, laid over a bed of 20 mm thick cement mortar 1:4 (1 cement:4 coarse sand) and finished neat complete for providing at sloped sunshade and roof | D150: m2 | E150: 3900 | G150: Rupees | H150: 0 | I150: 0
A151: 101 | C151: Demolition carefully with manual/machinery of existing tiled roof OP Block,a sheet roofed building (single storied buildings with an approdimate area of 500 sqm) and a septic tank including Stacking of servicable material and disposing off unservicable materials etc as per direction of Engineer in charge in consultation with client and provide a septic tank if required. | D151: Each | E151: 1 | G151: Rupees | H151: 0 | I151: =H151 -> 0
A152: 102 | C152: Design, Engineering And Supply Of 2000 Litres per hour RO plant based High Purity Water Treatment Plant | D152: no | E152: 1 | G152: Rupees | H152: 0 | I152: =H152 -> 0
C153: Total | G153: =FnConvert(H153) -> Rupees | H153: =SUM(H5:H152) -> 0 | I153: =SUM(I1:I152) -> 0

Sheet Ab. Service Block
A1: CONSTRUCTION OF NEW PROPOSED OUT PATIENT BLOCK FOR GENERAL HOSPITAL, ALAPPUZHA -PART I
A2: ABSTRACT OF ESTIMATE - CIVIL WORKS -SERVICE BLOCK
A3: Item No | B3: DSR code | C3: Details of items | D3: Unit | E3: Quantity | F3: Rate (Rs.) in figures | G3: Rate (Rs.) in words | H3: Amount (Rs.)
A4: 1 | B4: 2.6.1 | C4: Earth work in excavation by mechanical means (Hydraulic excavator) / manual means over areas (exceeding 30cm in depth. 1.5m in width as well as 10 sqm on plan) including disposal of excavated earth, lead upto 50m and lift upto 1.5m, disposed earth to be levelled and neatly dressed. All kinds of soil | D4: m3 | E4: 95 | G4: =FnConvert(F4) -> Rupees | H4: =ROUND(F4*E4,0) -> 0
A5: 2 | B5: 2.25 | C5: Filling available excavated earth (excluding rock) in trenches, plinth, sides of foundations etc. in layers not exceeding 20cm in depth, consolidating each deposited layer by ramming and watering, lead up to 50 m and lift upto 1.5 m | D5: m3 | E5: 93 | G5: =FnConvert(F5) -> Rupees | H5: =ROUND(F5*E5,0) -> 0
A6: 3 | B6: 20.2 | C6: Boring, providing and installation bored cast-in-situ reinforced cement concrete piles of grade M-25 of specified diameter and length below the pile cap, to carry a safe working load not less than specified, excluding the cost of steel reinforcement but including the cost of boring with bentonite solution and temporary casing of appropriate length for setting out and removal of same and the length of the pile to be embedded in the pile cap etc. by percussion drilling using Direct mud circulation (DMC) or Bailer and chisel technique by tripod and mechanical Winch Machine all complete, including removal of excavated earth with all its lifts and leads (length of pile for payment shall be measured up to bottom of pile cap). Note: Truck Mounted rotary /TMR /Tube well boring machine shall not be used. | H6: 0
A7: a | B7: 20.2.2 | C7: 500 mm dia piles | D7: metre | E7: 196 | G7: Rupees | H7: 0
A8: 4 | B8: 20.6.2 | C8: Vertical load testing of piles in accordance with IS 2911 (Part IV) including installation of loading platform by Kentledge method and preparation of pile head or construction of test cap and dismantling of test cap after test etc. complete as per specification & the direction of Engineer in-charge. Note: 1. Initial and Routine Load Test shall not be carried out by Dynamic method of testing. Note: 2. Testing agency shall submitt the design of loading platform for the approval of Engineer-in-charge.: Single pile above 50 tonne and upto 100 tonne Safe capacity | H8: 0
A9: a | B9: 20.6.2.1 | C9: Initial test (Test Load 2.5 times the Safe capacity) | D9: Each | E9: 1 | G9: Rupees | H9: 0
A10: b | B10: 20.6.2.2 | C10: Routine test (Test Load 1.5 times the Safe capacity) | D10: Each | E10: 1 | G10: Rupees | H10: 0
A11: 5 | B11: 4.1.5 | C11: 1:3:6 (1 Cement : 3 coarse sand : 6 graded stone aggregate 20 mm nominal size).for foundation and flooring | D11: m3 | E11: 26 | G11: Rupees | H11: 0
A12: 6 | B12: 5.37 | C12: Providing and laying in position ready mixed M-25 grade concrete for reinforced cement concrete work, using cement content as per approved design mix, manufactured in fully automatic batching plant and transported to site of work in transit mixer for all leads having continuous agitated mixer, manufactured as per mix design of specified grade for reinforced cement concrete work including pumping of R.M.C. from transit mixer to site of laying , excluding the cost of centering, shuttering finishing and reinforcement including cost of admixtures in recommended proportions as per IS : 9103 to accelerate/ retard setting of concrete, improve workability without impairing strength and durability as per direction of the Engineer - in - charge. | H12: 0
H13: 0
A14: a | B14: 5.37.1 | C14: All works upto plinth level. | D14: m3 | E14: 56 | G14: Rupees | H14: 0
A15: b | B15: 5.37.2 | C15: All works above plinth level upto floor V level. | D15: m3 | E15: 40 | G15: Rupees | H15: 0
A16: 7 | B16: 5.34 | C16: Extra for providing richer mixes at all floor levels.Note:- Excess/less cement over the specified cement content used is payable /recoverable separately. | H16: 0
B17: 5.34.1 | C17: Providing M-30 grade concrete instead of M-25 grade BMC/RMC. (Note:- Cement content considered in M-30 is @ 340 kg/cum). | D17: m3 | E17: 135 | G17: Rupees | H17: 0
A18: 8 | B18: 5.9 | C18: Centering and shuttering including strutting, propping etc. and removal of form for : | H18: 0
A19: a | B19: 5.9.1 | C19: Foundations, footings, bases of columns, etc. for mass concrete. | D19: m2 | E19: 25 | G19: Rupees | H19: 0
A20: b | B20: 5.9.3 | C20: Suspended floors, roofs, landings, balconies and access platform. | D20: m2 | E20: 125 | G20: Rupees | H20: 0
A21: c | B21: 5.9.5 | C21: Lintels, beams, plinth beams, girders, bressumers and cantilevers. | D21: m2 | E21: 170 | G21: Rupees | H21: 0
A22: d | B22: 5.9.6 | C22: Columns, Pillars, Piers, Abutments, Posts and Struts. | D22: m2 | E22: 75 | G22: Rupees | H22: 0
A23: e | B23: 5.9.16.1 | C23: Edges of slabs and breaks in floors and walls.Under 20 cm wide | D23: m | E23: 130 | G23: Rupees | H23: 0
A24: f | B24: 5.9.19 | C24: Weather shade, Chajjas, corbels etc., including edges. | D24: m2 | E24: 19 | G24: Rupees | H24: 0
A25: 9a) | B25: 5.22.6 | C25: Steel reinforcement for R.C.C. work including straightening, cutting, bending, placing in position and binding all complete Thermo-Mechanically Treated bars. | D25: kg | E25: 11175 | G25: Rupees | H25: 0
A26: 9b) | B26: 5.22A.6 | C26: Steel reinforcement for R.C.C. work including straightening, cutting, bending, placing in position and binding all complete above plinth level.Thermo-Mechanically Treated bars of grade Fe-500 D or more. | D26: kg | E26: 5525 | G26: Rupees | H26: 0
A27: 10 | B27: 6.4.2 | C27: Brick work with common burnt clay F.P.S. (non modular) bricks of class designation 7.5 in superstructure above plinth level up to floor V level in all shapes and sizes in : Cement mortar 1:6 (1 cement : 6 coarse sand) | D27: m3 | E27: 38 | G27: Rupees | H27: 0
A28: 11 | B28: 21.1.1.2 | C28: Providing and fixing aluminium work for doors, windows, ventilators and partitions with extruded built up standard tubular sections/ appropriate Z sections and other sections of approved make conforming to IS: 733 and IS: 1285, fixing with dash fasteners of required dia and size, including necessary filling up the gaps at junctions, i.e. at top, bottom and sides with required EPDM rubber/ neoprene gasket etc. Aluminium sections shall be smooth, rust free, straight, mitred and jointed mechanically wherever required including cleat angle, Aluminium snap beading for glazing / paneling, C.P. brass / stainless steel screws, all complete as per architectural drawings and the directions of Engineer-in-charge. (Glazing, paneling and dash fasteners to be paid for separately) : For fixed portion Powder coated aluminium (minimum thickness of powder coating 50 micron) | D28: kg | E28: 91 | G28: Rupees | H28: 0
A29: 12 | B29: 21.1.2.2 | C29: For shutters of doors, windows & ventilators including providing and fixing hinges/ pivots and making provision for fixing of fittings wherever required including the cost of EPDM rubber / neoprene gasket required (Fittings shall be paid for separately). Powder coated aluminium (minimum thickness of powder coating 50 micron) | D29: kg | E29: 76 | G29: Rupees | H29: 0
A30: 13 | B30: 21.2.2 | C30: Providing and fixing 12mm thick prelaminated particle board flat pressed three layer or graded wood particle board conforming to IS: 12823 Grade l Type ll, in panelling fixed in aluminum doors, windows shutters and partition frames with C.P. brass / stainless steel screws etc. complete as per architectural drawings and directions of engineer-in-charge. Pre-laminated particle board with decorative lamination on both sides. | D30: m2 | E30: 3 | G30: Rupees | H30: 0
A31: 14 | B31: 21.3.2 | C31: Providing and fixing glazing in aluminium/UPVC door, window, ventilator shutters and partitions etc. with EPDM rubber / neoprene gasket etc. complete as per the architectural drawings and the directions of engineer-in-charge . (Cost of aluminium snap beading shall be paid in basic item): With float glass panes of 6 mm thickness | D31: m2 | E31: 12 | G31: Rupees | H31: 0
A32: 15 | B32: 21.13 | C32: Providing and fixing 100mm brass locks (best make of approved quality) for aluminium doors including necessary cutting and making good etc. complete | D32: Each | E32: 1 | G32: Rupees | H32: 0
A33: 16 | B33: 9.100.1 | C33: Providing and fixing aluminium handles, ISI marked, anodised (anodic coating not less than grade AC 10 as per IS : 1868) transparent or dyed to required colour or shade, with necessary screws etc. complete : 125mm | D33: Each | E33: 2 | G33: Rupees | H33: 0
A34: 17 | B34: 9.97.2 | C34: Providing and fixing aluminium tower bolts, ISI marked, anodised (anodic coating not less than grade AC 10 as per IS : 1868 ) transparent or dyed to required colour or shade, with necessary screws etc. complete : 250 X 10 mm | D34: Each | E34: 3 | G34: Rupees | H34: 0
A35: 18 | B35: 9.101.2 | C35: Providing and fixing aluminium hanging floor door stopper, ISI marked, anodised (anodic coating not less than grade AC 10 as per IS : 1868) Transparent or dyed to required colour and shade, with necessary screws etc. complete. Twin rubber stopper | D35: Each | E35: 1 | G35: Rupees | H35: 0
A36: 19 | B36: 10.16.1 | C36: Steel work in built up tubular (round, square or rectangular hollow tubes etc.) trusses etc., including cutting, hoisting, fixing in position and applying a priming coat of approved steel primer, including welding and bolted withspecial shaped washers etc. complete. | D36: kg | E36: 2250 | G36: Rupees | H36: 0
A37: 20 | B37: 9.48.2 | C37: Providing and fixing M.S. grills of required pattern in frames of windows etc. with M.S. flats, square or round bars etc. including priming coat with approved steel primer all complete.Fixed to openings /wooden frames with rawl plugs screws etc. | D37: kg | E37: 225 | G37: Rupees | H37: 0
A38: 21 | B38: 10.17 | C38: Providing and fixing M.S. fan clamp type I or II of 16 mm dia M.S. bar bent to shape with hooked ends in R.C.C. slabs, beams during laying including painting the exposed portion of loop, all as per standard design complete. | D38: Each | E38: 2 | G38: Rupees | H38: 0
A39: 22 | B39: 13.2.1 | C39: 15 mm cement plaster on the rough side of single or half brick wall of mix: 1:4 (1 cement: 4 fine sand) to the outside of walls | D39: m2 | E39: 190 | G39: Rupees | H39: 0
A40: 23 | B40: 13.4.1 | C40: 12 mm cement plaster on single brick/block or half brick/block wall of mix : 1:4 (1 cement: 4 coarse sand) to the inside of walls | D40: m2 | E40: 150 | G40: Rupees | H40: 0
A41: 24 | B41: 13.16.1 | C41: 6 mm cement plaster of mix : 1:3 (1 cement: 3 fine sand) for under side of roof slab and beams | D41: m2 | E41: 195 | G41: Rupees | H41: 0
A42: 25 | B42: 13.9.1 + 13.21 | C42: Cement plaster 1:3 (1 cement: 3 coarse sand) finished with a floating coat of neat cement.12 mm cement plaster including providing and mixing water proofing material in cement plaster work in proportion recommended by the manufacturers. to the top surface of sunshade | D42: m2 | E42: 130 | G42: Rupees | H42: 0
A43: 26 | B43: 13.43.1 | C43: Applying one coat of water thinnable cement primer of approved brand and manufacture on wall surface : | D43: m2 | E43: 345 | G43: Rupees | H43: 0
A44: 27 | B44: 13.47.1 | C44: Finishing walls with Premium Acrylic Smooth exterior paint with Silicone additives of required shade New work (Two or more coats applied @ 1.43 ltr/ 10 sqm. over and including priming coat of exterior primer applied @ 2.20 kg/ 10 sqm). | D44: m2 | E44: 206 | G44: Rupees | H44: 0
A45: 28 | B45: 13.44.1 | C45: Finishing walls with water proofing cement paint of required shade :New work (Two or more coats applied @ 3.84 kg/10 sqm) | D45: m2 | E45: 345 | G45: Rupees | H45: 0
A46: 29 | B46: 13.61.1 | C46: Painting with synthetic enamel paint of approved brand and manufacture to give an even shade :Two or more coats on new work. | D46: m2 | E46: 120 | G46: Rupees | H46: 0
A47: 30 | B47: 11.20.3 | C47: Chequerred precast cement concrete tiles 22 mm thick in footpath & courtyard, jointed with neat cement slurry mixed with pigment to match the shade of tiles including rubbing and cleaning etc. complete, on 20 mm thick bed of cement mortar 1:4 (1 cement: 4 coarse sand). Dark shade using ordinary cement. | D47: m2 | E47: 7 | G47: Rupees | H47: 0
A48: 31 | B48: 10.6.1 | C48: Supplying and fixing rolling shutters of approved make, made of required size M.S. laths, interlocked together through their entire length and jointed together at the end by end locks, mounted on specially designed pipe shaft with brackets, side guides and arrangements for inside and outside locking with push and pull operation complete, including the cost of providing and fixing necessary 27.5 cm long wire springs manufactured from high tensile steel wire of adequate strength conforming to IS: 4454 - part 1 and M.S. top cover of required thickness for rolling shutters. 80x1.25 mm M.S. laths with 1.25 mm thick top cover | D48: m2 | E48: 18 | G48: Rupees | H48: 0
A49: 32 | B49: 10.7 | C49: Providing and fixing ball bearing for rolling shutters. | D49: Each | E49: 4 | G49: Rupees | H49: 0
A50: 33 | B50: 10.9 | C50: Extra for providing grilled rolling shutters manufactured out of 8 mm dia. M.S. bar instead of laths as per design approved by Engineer-in-charge.(area of grill to be measured). | D50: m2 | E50: 12 | G50: Rupees | H50: 0
A51: 34 | B51: 12.5 | C51: Providing and fixing precoated galvanised iron profile sheets (size, shape and pitch of corrugation as approved by Engineer-in-charge) 0.50 mm (+ 0.05 %) total coated thickness with zinc coating 120 grams per sqm as per IS: 277, in 240 mpa steel grade, 5-7 microns epoxy primer on both side of the sheet and polyester top coat 15-18 microns. Sheet should have protective guard film of 25 microns minimum to avoid scratches during transportation and should be supplied in single length upto 12 metre or as desired by Engineerin- charge. The sheet shall be fixed using self drilling /self tapping screws of size (5.5x 55 mm) with EPDM seal, complete upto any pitch in horizontal/ vertical or curved surfaces, excluding the cost of purlins, rafters and trusses and including cutting to size and shape wherever required. | D51: m2 | E51: 101 | G51: Rupees | H51: 0
A52: 35 | B52: 11.3.1 | C52: Cement concrete flooring 1:2:4 (1 cement : 2 coarse sand : 4 graded stone aggregate) finished with a floating coat of neat cement, including cement slurry, but excluding the cost of nosing of steps etc. complete: 40 mm thick with 20 mm nominal size stone aggregate | D52: m2 | E52: 165 | G52: Rupees | H52: 0
C53: Total | G53: =FnConvert(H53) -> Rupees | H53: =SUM(H4:H52) -> 0

Sheet PLUMBING
A1: CONSTRUCTION OF NEW PROPOSED OUT PATIENT BLOCK FOR GENERAL HOSPITAL, ALAPPUZHA -PART I
A2: ABSTRACT OF ESTIMATE - PLUMBING WORKS
A3: Item No | B3: DSR code | C3: Details of items | D3: Unit | E3: Quantity | F3: Rate (Rs.) in figures | G3: Rate (Rs.) in words | H3: Amount (Rs.)
A4: 1 | B4: 17.1.1 | C4: Providing and fixing water closet squatting pan (Indian type W.C. pan ) with 100mm sand cast Iron P or S trap, 10 litre low level white P.V.C. flushing cistern, including flush pipe, with manually controlled device (handle lever) conforming to IS : 7231, with all fittings and fixtures complete including cutting and making good the walls and floors wherever required : White Vitreous china Orissa pattern W.C. pan of size 580x440mm with integral type foot rests. (Make: Hindware, Jaquar, Cera). Materials should be selected by the Engineer in charge | D4: Each | E4: 4 | G4: =FnConvert(F4) -> Rupees | H4: =F4*E4 -> 0
A5: 2 | B5: 17.81 | C5: Providing and fixing floor mounted, white vitreous china single piece, double traps syphonic water closet of approved brand/ make, shape, size and pattern including integrated white vitreous china cistern of capacity 10 litres with dual flushing system, including all fittings and fixtures with seat cover, cistern fittings, nuts, bolts and gasket etc including making connection with the existing P/S trap, complete in all respect as per directions of Engineer-in-Charge.. Make: Hindware, Cera, Jaquar etc. | D5: Each | E5: 74 | G5: Rupees | H5: =F5*E5 -> 0
A6: 3 | B6: 17.5 | C6: Providing and fixing white vitreous china flat back half stall urinal of size 580x380x350mm with white PVC automatic flushing cistern, with fittings, standard size C.P. brass flush pipe, spreaders with unions and clamps (all in C.P. brass) with waste fitting as per IS : 2556, C.I. trap with outlet grating and other couplings in C.P. brass including painting of fittings and cutting and making good the walls and floors wherever required : (Make: Hindware, Jaquar, Cera): Materials should be selected by the Engineer in charge | G6: Rupees | H6: 0
A7: a | B7: 17.5.1 | C7: Single half stall urinal with 5 litre P.V.C. automatic flushing cistern. | D7: Each | E7: 2 | G7: Rupees | H7: 0
A8: b | B8: 17.5.2 | C8: Range of two half stall urinals with 5 litre P.V.C. automatic flushing cistern | D8: Each | E8: 2 | G8: Rupees | H8: 0
A9: c | B9: 17.5.3 | C9: Range of three half stall urinals with 10 litre P.V.C. automatic flushing cistern. | D9: Each | E9: 19 | G9: Rupees | H9: 0
A10: 4 | B10: 8.10.2 | C10: Providing and fixing stone slab table rubbed, edges rounded and polished of size 75x50 cm deep and 1.8 cm thick fixed in urinal partitions by cutting a chase of appropriate width with chase cutter and embedding the stone in the chase with epoxy grout or with cement concrete 1:2:4 (1 cement : 2 coarse sand : 4 graded stone aggregate 6 mm nominal size) as per direction of Engineer-in-charge and finished smooth.Granite Stone of approved shade. | D10: Sqm | E10: 32 | G10: Rupees | H10: 0
A11: 5 | B11: MR | C11: Providing and fixing wash basin (counter type) with CI / MS brackets, 15mm CP brass Pillar taps, 32mm CP brass waste of standard pattern, including painting of fittings and brackets, cutting and making good the walls wherever required.: White Vitreous China Wash basin size 630 x 450mm with a single 15mm C.P brass piller tap. Make: Hindware, Cera, Jaquar etc.., (Lowest retail price of basin not less than Rs. 3000/each and Pillar tap not less than Rs. 1500/each. Materials to be selected by the Engineer in charge) | D11: Each | E11: 182 | G11: Rupees | H11: 0 | I11: =G11 -> Rupees
A12: 6 | B12: 17.10.1.1 | C12: Providing and fixing Stainless Steel A ISI 304 (18/8) kitchen sink as per IS 13983 with C.I. brackets and stainless steel plug 40 mm including painting of fittings and brackets, cutting and making good the walls wherever required : Kitchen sink with drain board 510x1040 mm bowl depth 250 mm(Make: Hindware, Jaquar, Parryware): Materials should be selected by the Engineer in charge | D12: Each | E12: 15 | G12: Rupees | H12: 0
A13: 7 | B13: 17.28.2.2 | C13: Providing and fixing P.V.C. waste pipe for sink or wash basin including P.V.C. waste fittings complete.Flexible pipe 40 mm dia | D13: Each | E13: 197 | G13: Rupees | H13: 0
A14: 8 | B14: 17.32.2 | C14: Providing and fixing mirror of superior glass (of approved quality) and of required shape and size with plastic moulded frame of approved make and shade with 6 mm thick hard board backing :Rectangular shape 453x357mm | H14: 0
A15: a | B15: 17.32.2 | C15: Rectangular shape 453x357mm | D15: Each | E15: 106 | G15: Rupees | H15: 0
A16: b | B16: 17.32.4 | C16: Rectangular shape 1500x450 mm | D16: Each | E16: 28 | G16: Rupees | H16: 0
A17: 9 | B17: 17.34.1 | C17: Providing and fixing toilet paper holder :C.P. Brass | D17: Each | E17: 152 | G17: Rupees | H17: 0
A18: 10 | B18: 17.69.2 | C18: Providing and fixing PTMT Waste Coupling for sink, of approved quality and colour.Waste coupling 38 mm dia of 83 mm length and 77mm breadth, weighing not less than 60gms. | D18: Each | E18: 15 | G18: Rupees | H18: 0
A19: 11 | B19: 17.73.2 | C19: Providing and fixing PTMT towel rail complete with brackets fixed to wooden cleats with CP brass screws with concealed fitting arrangement of approved quality and colour.600mm long towel rail with total length of 645mm, width 78mm and effective height of 88mm, weighing not less than 190gms. | D19: Each | E19: 223 | G19: Rupees | H19: 0
A20: 12 | B20: 18.7 | C20: Providing and fixing Chlorinated Polyvinyl Chloride (CPVC) pipes, having thermal stability for hot & cold water supply including all CPVC plain & brass threaded fittings including fixing the pipe with clamps at 1.00 m spacing. This includes jointing of pipes & fittings with one step CPVC solvent cement and testing of joints complete as per direction of Engineer in Charge. Make: Supreme, Finolex, Astral Internal work - Exposed on wall | H20: 0
A21: a | B21: 18.7.1 | C21: 15 mm nominal outer dia .Pipes. | D21: Metre | E21: 120 | G21: Rupees | H21: 0
A22: b | B22: 18.7.2 | C22: 20 mm nominal outer dia .Pipes. | D22: Metre | E22: 635 | G22: Rupees | H22: 0
A23: c | B23: 18.7.3 | C23: 25 mm nominal outer dia .Pipes | D23: Metre | E23: 1185 | G23: Rupees | H23: 0
A24: d | B24: 18.7.4 | C24: 32 mm nominal outer dia .Pipes. | D24: Metre | E24: 220 | G24: Rupees | H24: 0
A25: e | B25: 18.7.5 | C25: 40 mm nominal outer dia .Pipes. | D25: Metre | E25: 450 | G25: Rupees | H25: 0
A26: f | B26: 18.7.6 | C26: 50 mm nominal outer dia .Pipes | D26: Metre | E26: 110 | G26: Rupees | H26: 0
A27: g | B27: 18.9.8 analysis | C27: 75 mm nominal outer dia .Pipes | D27: Metre | E27: 275 | G27: Rupees | H27: 0
A28: h | B28: 18.9.9 analysis | C28: 100 mm nominal outer dia .Pipes | D28: Metre | E28: 275 | G28: Rupees | H28: 0
A29: 13 | B29: 18.8 | C29: Providing and fixing Chlorinated Polyvinyl Chloride (CPVC) pipes, having thermal stability for hot & cold water supply including all CPVC plain & brass threaded fittings i/c fixing the pipe with clamps at 1.00 m spacing. This includes jointing of pipes & fittings with one step CPVC solvent cement and the cost of cutting chases and making good the same including testing of joints complete as per direction of Engineer in Charge. Make: Supreme, Finolex, Astral Concealed work including cutting chases and making good the walls etc. | H29: 0
A30: a | B30: 18.8.1 | C30: 15 mm nominal outer dia .Pipes | D30: Metre | E30: 1030 | G30: Rupees | H30: 0
A31: b | B31: 18.8.2 | C31: 20 mm nominal outer dia .Pipes | D31: Metre | E31: 1120 | G31: Rupees | H31: 0
A32: c | B32: 18.8.3 | C32: 25 mm nominal outer dia .Pipes. | D32: Metre | E32: 350 | G32: Rupees | H32: 0
A33: d | B33: 18.8.4 | C33: 32 mm nominal outer dia .Pipes. | D33: Metre | E33: 30 | G33: Rupees | H33: 0
A34: 14 | B34: 18.9 | C34: Providing and fixing Chlorinated Polyvinyl Chloride (CPVC) pipes, having thermal stability for hot & cold water supply including all CPVC plain & brass threaded fittings This includes jointing of pipes & fittings with one step CPVC solvent cement ,trenching ,refilling & testing of joints complete as per direction of Engineer in Charge.Make: Supreme, Finolex, Astral External work | H34: 0
A35: a | B35: 18.9.2 | C35: 20 mm nominal outer dia .Pipes. | D35: Metre | E35: 10 | G35: Rupees | H35: 0
A36: b | B36: 18.9.3 | C36: 25 mm nominal outer dia .Pipes. | D36: Metre | E36: 10 | G36: Rupees | H36: 0
A37: c | B37: 18.9.4 | C37: 32 mm nominal outer dia .Pipes. | D37: Metre | E37: 30 | G37: Rupees | H37: 0
A38: d | B38: 18.9.5 | C38: 40 mm nominal outer dia .Pipes. | D38: Metre | E38: 30 | G38: Rupees | H38: 0
A39: e | B39: 18.9.6 | C39: 50 mm nominal outer dia .Pipes. | D39: Metre | E39: 220 | G39: Rupees | H39: 0
A40: f | B40: 18.9.7 | C40: 62.50 mm nominal inner dia Pipes | D40: Metre | E40: 220 | G40: Rupees | H40: 0
A41: 15 | B41: 18.17 | C41: Providing and fixing gun metal gate valve with C.I. wheel of approved quality (screwed end) : | H41: 0
A42: a | B42: 18.17.1A | C42: 20 mm nominal bore | D42: Each | E42: 40 | G42: Rupees | H42: 0
A43: a | B43: 18.17.1 | C43: 25 mm nominal bore | D43: Each | E43: 40 | G43: Rupees | H43: 0
A44: b | B44: 18.17.2 | C44: 32 mm nominal bore | D44: Each | E44: 20 | G44: Rupees | H44: 0
A45: c | B45: 18.17.3 | C45: 40 mm nominal bore | D45: Each | E45: 10 | G45: Rupees | H45: 0
A46: d | B46: 18.17.4 | C46: 50 mm nominal bore | D46: Each | E46: 10 | G46: Rupees | H46: 0
A47: e | B47: 18.17.5 | C47: 65 mm nominal bore | D47: Each | E47: 4 | G47: Rupees | H47: 0
A48: f | B48: 18.17.6 | C48: 80 mm nominal bore | D48: Each | E48: 4 | G48: Rupees | H48: 0
A49: 16 | B49: 18.18 | C49: Providing and fixing ball valve (brass) of approved quality, High or low pressure, with plastic floats complete | H49: 0
A50: a | B50: 18.18.1 | C50: 15 mm nominal bore | D50: Each | E50: 1 | G50: Rupees | H50: 0
A51: b | B51: 18.18.2 | C51: 20 mm nominal bore | D51: Each | E51: 3 | G51: Rupees | H51: 0
A52: c | B52: 18.18.3 | C52: 25 mm nominal bore | D52: Each | E52: 3 | G52: Rupees | H52: 0
A53: 17 | B53: 18.21 | C53: Providing and fixing uplasticised PVC connection pipe with brass unions : | H53: 0
A54: a | B54: 18.21.1.1 | C54: 30 cm length 15 mm nominal bore | D54: Each | E54: 195 | G54: Rupees | H54: 0
A55: b | B55: 18.21.2.1 | C55: 45 cm length 15 mm nominal bore | D55: Each | E55: 155 | G55: Rupees | H55: 0
A56: 18 | B56: 18.33.1 | C56: Constructing masonry Chamber 60x60x75 cm inside, in brick work in cement mortar 1:4 (1 cement : 4 coarse sand) for sluice valve, with C.I. surface box 100mm. top diameter, 160 mm bottom diameter and 180 mm deep ( inside) with chained lid and RCC top slab 1:2:4 mix (1 cement :2 coarse sand : 4 graded stone aggregate 20mm nominal size ) , i/c necessary excavation, foundation concrete 1:5:10 (1 cement : 5 fine sand : 10 graded stone aggregate 40 mm nominal size) and inside plastering with cement mortar 1:3 (1 cement : 3 coarse sand) 12 mm thick finished with a floating coat of neat cement complete as per standard design : With common burnt clay F.P.S.(non modular) bricks of class designation 7.5. | D56: Each | E56: 1 | G56: Rupees | H56: 0
A57: 19 | B57: 18.37.1 | C57: Constructing masonry Chamber 60x45x50 cm inside, in brick work in cement mortar 1:4 (1 cement : 4 coarse sand) for water meter complete with C.I. double flap surface box 400x200x200 mm (inside) with locking arrangement and RCC top slab 1:2:4 mix (1 cement : 2 coarse sand : 4 graded stone aggregate 20 mm nominal size) , i/c necessary excavation, foundation concrete 1:5:10 ( 1 cement : 5 fine sand:10 graded stone aggregate 40 mm nominal size) and inside plastering with cement mortar 1:3 (1 cement : 3 coarse sand) 12 mm thick finished with a floating coat of neat cement complete as per standard design : With common burnt clay F.P.S.(non modular) bricks of class designation 7.5. | D57: Each | E57: 1 | G57: Rupees | H57: 0
A58: 20 | B58: MR | C58: Providing and fixing C.P. brass long body bib cock (Sink cock)of approved quality conforming to IS standards and weighing not less than 690 gms. 15 mm nominal bore (Lowest retail price not less than 1800/each. Materials to be selected by the Engineer in charge) Make: Jauqar, Hindware, , crome. | D58: Each | E58: 114 | G58: Rupees | H58: 0 | I58: =G58 -> Rupees
A59: 21 | B59: MR | C59: Providing and fixing C.P. brass stop cock (concealed) of standard design and of approved make conforming to IS:8931.:15 mm nominal bore. (Lowest retail price not less than 1000/each.: Make:Jauqar, Hindware, , crome | D59: Each | E59: 17 | G59: Rupees | H59: 0 | I59: =G59 -> Rupees
A60: 22 | B60: MR | C60: Providing and fixing C.P. brass angle valve for basin mixer and geyser points of approved quality conforming to IS:8931 a) 15 mm nominal bore:15mm nominal bore: (Lowest retail price not less than 850/each. Make:Jauqar, Hindware, crome | D60: Each | E60: 417 | G60: Rupees | H60: 0 | I60: =G60 -> Rupees
A61: 23 | B61: MR | C61: Providing and fixing SS grating with rim including setting in floor with white cement mortar and making good the floor (Chilli make) 125mm dia (Lowest retail price not less than 120/each.Make: Supreme, Finolex, Cera, crome etc.., | D61: Each | E61: 222 | G61: Rupees | H61: 0 | I61: =G61 -> Rupees
A62: 24 | B62: MR | C62: Providing and fixing of over head shower 150mm dia with shower flange 170 mm long, including shower head and shower arm conforming to I.S Specification of approved make as per directions including all lead and lift etc., complete. (Lowest retail price not less than 1500/each. Materials to be selected by the Engineer in charge) Make: Crabtree ,Cera, Jaquar etc.., | D62: Each | E62: 17 | G62: Rupees | H62: 0 | I62: =G62 -> Rupees
A63: 25 | B63: 18.65 | C63: Providing and fixing PTMT soap Dish Holder having length of 138mm, breadth 102mm, height of 75mm with concealed fitting arrangements. Weighing not less than 106 gms. | D63: Each | E63: 290 | G63: Rupees | H63: 0
A64: 26 | B64: 18.76.1 | C64: Cutting holes up to 30x30 cm in walls including making good the same: With common burnt clay F.P.S. (non modular) bricks. | D64: Each | E64: 150 | G64: Rupees | H64: 0
A65: 27 | B65: 18.77 | C65: Cutting holes up to 15x15cm in R.C.C. floors and roofs for passing drain pipe etc. and repairing the hole after insertion of drain pipe etc. with cement concrete 1:2:4 (1 cement :2 coarse sand : 4 graded stone aggregate 20 mm nominal size) including finishing complete so as to make it leak proof. | D65: Each | E65: 400 | G65: Rupees | H65: 0
A66: 28 | B66: 12.41.2 | C66: Providing and fixing on wall face unplasticised Rigid PVC rain water pipes conforming to IS : 13592 Type A including jointing with seal ring conforming to IS : 5382 leaving 10 mm gap for thermal expansion.(i) Single socketed pipes. 110 mm diameter | D66: Metre | E66: 600 | G66: Rupees | H66: 0
A67: 29 | B67: 12.42 | C67: Providing and fixing on wall face unplasticised - PVC moulded fittings/ accessories for unplasticised Rigid PVC rain water pipes conforming to IS : 13592 Type A including jointing with seal ring conforming to IS : 5382 leaving 10 mm gap for thermal expansion. | H67: 0
A68: a | B68: 12.42.1.2 | C68: Coupler: 110 mm | D68: Each | E68: 150 | G68: =FnConvert(F68) -> Rupees | H68: 0
A69: b | B69: 12.42.3.2 | C69: Single tee with door: 110x110x110 mm | D69: Each | E69: 24 | G69: Rupees | H69: =F69*E69 -> 0
A70: c | B70: 12.42.5.2 | C70: Bend :110 mm | D70: Each | E70: 120 | G70: Rupees | H70: 0
A71: d | B71: 12.42.6.2 | C71: 110 mm Shoe | D71: Each | E71: 24 | G71: Rupees | H71: 0
A72: 30 | B72: 12.44 | C72: Providing and fixing to the inlet mouth of rain water pipe cast iron grating 15 cm diameter and weighing not less than 440 grams. | D72: Each | E72: 24 | G72: Rupees | H72: 0
A73: 31 | B73: 12.43.2 | C73: Providing and fixing unplasticised -PVC pipe clips of approved design to unplasticised - PVC rain water pipes by means of 50x50x50mm hard wood plugs, screwed with M.S. screws of required length including cutting brick work and fixing in cement mortar 1:4 (1 cement : 4 coarse sand) and making good the wall etc. complete. 110 mm | D73: Each | E73: 600 | G73: Rupees | H73: 0
A74: 32 | B74: 19.4 | C74: Providing and fixing square-mouth S.W. gully trap class SP-1 complete with C.I. grating brick masonry chamber with water tight C.I. cover with frame of 300 x300 mm size (inside) the weight of cover to be not less than 4.50 kg and frame to be not less than 2.70 kg as per standard design : 100x100 mm size P type With common burnt clay F.P.S. (non modular) bricks of class designation 7.5 | H74: 0
A75: a | B75: 19.4.1.1 | C75: 100x100 mm size P type With common burnt clay F.P.S. (non modular) bricks of class designation 7.5 | D75: Each | E75: 15 | G75: Rupees | H75: 0
A76: b | B76: 19.4.2.1 | C76: 150 x 100 mm size P type. With common burnt clay F.P.S. (non modular) bricks of class designation 7.5 | D76: Each | E76: 6 | G76: Rupees | H76: 0
A77: c | B77: 19.4.3.1 | C77: 180x150 mm size P type With common burnt clay F.P.S. (non modular) bricks of class designation 7.5 | D77: Each | E77: 6 | G77: Rupees | H77: 0
A78: 33 | B78: 2.10.1.2 | C78: Excavating trenches of required width for pipes, cables, etc including excavation for sockets, and dressing of sides, ramming of bottoms, depth upto 1.5 m including getting out the excavated soil, and then returning the soil as required, in layers not exceeding 20 cm in depth, including consolidating each deposited layer by ramming, watering, etc. and disposing of surplus excavated soil as directed, within a lead of 50 m :All kinds of soil:Pipes, cables etc. exceeding 80 mm dia. but not exceeding 300 mm dia. | D78: Metre | E78: 60 | G78: Rupees | H78: 0
A79: 34 | C79: Providing and laying non-pressure NP2 class (light duty) R.C.C. pipes with collars jointed with stiff mixture of cement mortar in the proportion of 1:2 (1 cement : 2 fine sand) including testing of joints etc. complete : | H79: 0
A80: a | B80: 19.6.3 | C80: 250 mm dia. R.C.C. pipe | D80: Metre | E80: 60 | G80: Rupees | H80: 0
A81: 35 | B81: 19.7 | C81: Constructing brick masonry manhole in cement mortar 1:4 ( 1 cement : 4 coarse sand ) with R.C.C. top slab with 1:2:4 mix (1 cement : 2 coarse sand : 4 graded stone aggregate 20 mm nominal size), foundation concrete 1:4:8 mix (1 cement : 4 coarse sand : 8 graded stone aggregate 40mm nominal size), inside plastering 12mm thick with cement mortar 1:3 (1 cement : 3 coarse sand) finished with floating coat of neat cement and making channels in cement concrete 1:2:4 (1 cement : 2 coarse sand : 4 graded stone aggregate 20mm nominal size) finished with a floating coat of neat cement complete as per standard design : | G81: Rupees | H81: 0
A82: a | B82: 19.7.1.1 | C82: Inside size 90x80 cm and 45 cm deep including C.I. cover with frame (light duty) 455x610 mm internal dimensions, total weight of cover and frame to be not less than 38 kg (weight of cover 23 kg and weight of frame 15 kg) : With common burnt clay F.P.S. (non modular) bricks of class designation 7.5 | D82: Each | E82: 20 | G82: Rupees | H82: 0
A83: b | B83: 19.7.3.1 | C83: Inside size 120x90 cm and 90 cm deep including C.I. cover with frame (heavy duty) 560 mm internal diameter, total weight of cover and frame to be not less than 208 kg (weight of cover 108 kg and weight of frame 100 kg) : With common burnt clay F.P.S. (non modular) bricks of class designation 7.5 | D83: Each | E83: 10 | G83: Rupees | H83: 0
A84: 36 | B84: 19.8 | C84: Extra for depth for manholes
A85: a | B85: 19.8.1.1 | C85: Size 90x80 cm With common burnt clay F.P.S. (non modular) bricks of class designation 7.5 | D85: Metre | E85: 15 | G85: Rupees | H85: 0
A86: b | B86: 19.8.2.1 | C86: Size 120x90 cm With common burnt clay F.P.S. (non modular) bricks of class designation 7.5 | D86: Metre | E86: 10 | G86: Rupees | H86: 0
A87: 37 | B87: 19.16 | C87: Providing orange colour safety foot rest of minimum 6 mm thick plastic encapsulated as per IS : 10910 on 12mm dia steel bar conforming to IS : 1786 having minimum cross section as 23 mmx25mm and over all minimum length 263 mm and width as 165mm with minimum 112 mm space between protruded legs having 2 mm tread on top surface by ribbing or chequering besides necessary and adequate anchoring projections on tail length on 138 mm as per standard drawing and suitable to with stand the bend test and chemical resistance test as per specifications and having manufacture's permanent identification mark to be visible even after fixing, including fixing in manholes with 30x20x15 cm cement concrete block 1:3:6 (1 cement : 3 coarse sand : 6 graded stone aggregate 20 mm nominal size) complete as per design. | D87: Each | E87: 120 | G87: Rupees | H87: 0
A88: 38 | B88: LMR | C88: Providing, Fixing, Testing & Commissioning of full way brass valve of brass body with threaded / flanged joints complete with nuts, bolts, gaskets, washers etc.15mm dia bronze valve | D88: Each | E88: 40 | G88: Rupees | H88: 0 | I88: =G88 -> Rupees
A89: 39 | B89: MR | C89: Supplying and fixing Wash Basin with one pair mounting brackets, EWC & Cistern complete with fittings & seat cover, hinged rail, grab rails and one no of faucet for WB with Rack Bolt, Flexible Tube for pillar Tap & Waste Coupling Designed for people with special needs (Handicapped/ Physically disabled People) P trap, Angle valve, including fittings and brackets, cutting and making good the walls wherever required, including cost & conveyance of all materials, labour charges, sundries etc complete as directed by the Engineer in charge.(Materials should be selected by the Engineer in charge).(Make Hindware No. 70002- or equivalent make of quality & quantity of items) | D89: Each | E89: 13 | G89: Rupees | H89: 0 | I89: =G89 -> Rupees
A90: 40 | B90: MR | C90: Providing & fixing of CP Health faucet. Hand operated spray unit (instand type).Make:Jauqar, Hindware, Parryware, crome., (Lowest retail price not less than 1200/each. Materials to be selected by the Engineer in charge) | D90: Set | E90: 87 | G90: Rupees | H90: 0 | I90: =G90 -> Rupees
A91: 41 | B91: M.R. | C91: Providing and fixing UPVC SWR pipe for soil, waste and vent pipe to IS : 13592 of SWR quality, including all fittings, like: Bends, Tees, Elbows, Collars, junction, inspection doors, clamps for fixing walls and slabs, flanged pipes for providing slab core cutting portion, vent cowls, offsets, access pipes, jointing with rubber ring / solvent cement by application of leak proof adhesive like FRP paste including cutting holes in walls and floors, chasing walls and floors and making good. clipping to walls and slabs, trenching, refilling etc. complete Make: Supreme, Finolex, Prince | I91: 0
A92: a) | B92: MR | C92: 50mm dia UPVC SWR Type B pipe | D92: Mtr. | E92: 330 | G92: Rupees | H92: 0 | I92: Rupees
A93: b) | B93: M.R. | C93: 63mm dia UPVC SWR Type B pipe | D93: Mtr. | E93: 605 | G93: Rupees | H93: 0 | I93: Rupees
A94: c) | B94: M.R. | C94: 75mm dia UPVC SWR Type B pipe | D94: Mtr. | E94: 550 | G94: Rupees | H94: 0 | I94: Rupees
A95: d) | B95: MR | C95: 90mm dia UPVC SWR Type B pipe | D95: Mtr. | E95: 445 | G95: Rupees | H95: 0 | I95: Rupees
A96: e) | B96: M.R. | C96: 110mm dia UPVC SWR Type B pipe | D96: Mtr. | E96: 680 | G96: Rupees | H96: 0 | I96: Rupees
A97: f) | B97: M.R. | C97: 160mm dia UPVC SWR Type B pipe | D97: Mtr. | E97: 370 | G97: Rupees | H97: 0 | I97: Rupees
A98: g | B98: MR | C98: 200mm dia UPVC SWR Type B pipe | D98: Mtr. | E98: 220 | G98: Rupees | H98: 0 | I98: Rupees
A99: 42 | B99: MR | C99: Providing and fixing PVC pipe 10kg/cm2 including all fittings, like : Bends, Tees, Elbows, Collars etc.jointing with rubber ring / solvent cement by application of leak proof adhesive like FRP paste including cutting holes in walls and floors and making good. clipping to walls and slabs, trenching, refilling etc. complete Make: Supreme, Finolex, Prince
A100: a | B100: MR | C100: 75mm PVC pipe 10kg/cm2 | D100: Mr | E100: 110 | G100: Rupees | H100: 0 | I100: =G100 -> Rupees
A101: 43 | B101: M.R. | C101: Providing and fixing PVC floor trap self cleansing design with or without vent arm, suitable dia. inlet and out etc. complete including cutting and making good the walls and floors. Make: Supreme, Finolex, Prince. | D101: Each | E101: 222 | G101: Rupees | H101: 0 | I101: Rupees
A102: 44 | B102: LMR | C102: Providing and fixing C.I. M.H.cover with frame (Heavy duty) 560 mm internal diameter, total weight of cover and frame to be not less than 208 kg (weight of cover 108 kg and weight of frame 100 kg) :, | D102: Each | E102: 5 | G102: Rupees | H102: 0 | I102: =G102 -> Rupees
A103: 45 | B103: MR | C103: Supply, erection and commissioning of 5HP three phase monobloc pump with bronze impressler with required head and discharge | D103: Each | E103: 4 | G103: Rupees | H103: 0 | I103: Rupees
C104: Total amount | G104: =FnConvert(H104) -> Rupees | H104: =SUM(H4:H103) -> 0 | I104: =ROUND(SUM(I4:I103),0) -> 0

Sheet Electrical
A1: CONSTRUCTION OF NEW PROPOSED OUT PATIENT BLOCK FOR GENERAL HOSPITAL, ALAPPUZHA -PART I
A2: ABSTRACT OF ESTIMATE - ELECTRICAL WORKS
A3: Item No | B3: DSR code | C3: Details of items | D3: Unit | E3: Quantity | F3: Rate (Rs.) in figures | G3: Rate (Rs.) in words | H3: Amount (Rs.)
A4: 1. Wiring
A5: 1.1 | B5: 1.10.3 | C5: Wiring for light point / fan point / exhaust fan point / call bell point with 1.5 sq.mm FRLS PVC insulated copper conductor single core cable in surface/recessed medium Type PVC conduit with modular switch, modular plate, suitable GI box and earthing the point with 1.5 sqmm, FRLS PVC insulated copper conductor single core cable etc. as required. | D5: Point | E5: 1585 | G5: =FnConvert(F5) -> Rupees | H5: =ROUND(E5*F5,0) -> 0
A6: 1.2 | B6: 1.11 | C6: Wiring for twin control light point with 1.5sq.mm FRLS PVC insulated copper conductor singlecore cable in surface/ recessed PVC conduct, 2 way modular switch, modular plate, suitable GI box and earthing the point with 1.5 Sq mm FRLS PVC insulated coppper conductor single core cable etc as required | D6: Point | E6: 25 | G6: Rupees | H6: =ROUND(E6*F6,0) -> 0
A7: 1.3 | B7: 1.14 | C7: Wiring for circuit/submain wiring along with earth wire with the following sizes of FRLS PVC insulated copper conductor, single core cable in surface/recessed PVC conduit as required.
A8: 1.3.1 | B8: 1.14.1 | C8: 2 x 1.5 sq.mm + 1x1.5 sq.mm earth wire | D8: m | E8: 11100 | G8: Rupees | H8: 0
A9: 1.3.2 | B9: 1.14.2 | C9: 2 x 2.5 sq.mm + 1x 2.5 sq.mm earth wire | D9: m | E9: 20200 | G9: Rupees | H9: 0
A10: 1.3.3 | B10: 1.14.3 | C10: 2 x 4 sq.mm +1x 4 sq.mm earth wire | D10: m | E10: 10100 | G10: Rupees | H10: 0
A11: 1.3.4 | B11: 1.14.4 | C11: 2 X 6 sqmm + 1 x 6 sqmm earth wire | D11: m | E11: 1800 | G11: Rupees | H11: 0
A12: 1.3.5 | B12: 1.14.9 | C12: 4 x 6 sqmm + 2 x 6 sqmm earth wire | D12: m | E12: 740 | G12: Rupees | H12: 0
A13: 1.4 | B13: 1.21 | C13: Supplying and fixing of following sizes of medium class PVC conduit along with accessories in surface/recess including cutting the wall and making good the same in case of recessed conduit as required.
A14: 1.4.1 | B14: 1.21.1 | C14: 20 mm | D14: m | E14: 150 | G14: Rupees | H14: 0
A15: 1.4.2 | B15: 1.21.2 | C15: 25 mm | D15: m | E15: 150 | G15: Rupees | H15: 0
A16: 1.4.3 | B16: 1.21.3 | C16: 32 mm | D16: m | E16: 260 | G16: Rupees | H16: 0
A17: 1.4.4 | B17: 1.21.4 | C17: 40 mm | D17: m | E17: 80 | G17: Rupees | H17: 0
A18: 1.5 | B18: 1.25 | C18: Supplying and fixing stepped type electronic fan regulator on the existing modular plate switch box including connections but excluding modular plate etc. as required. | D18: Each | E18: 340 | G18: Rupees | H18: 0
A19: 1.6 | B19: 1.26 | C19: Supplying and fixing modular blanking plate on the existing modular plate & switch box excluding modular plate as required. | D19: Each | E19: 290 | G19: Rupees | H19: 0
A20: 1.7 | B20: 1.31 | C20: Supplying and fixing suitable size GI box with modular plate and cover in front on surface or in recess, including providing and fixing 3 pin 5/6 amps modular socket outlet and 5/6 amps modular switch, connection etc. as required. | D20: Each | E20: 725 | G20: Rupees | H20: 0
A21: 1.8 | B21: 1.32 | C21: Supplying and fixing suitable size GI box with modular plate and cover in front on surface or in recess, including providing and fixing 6 pin 5/6 & 15/16 amps modular socket outlet and 15/16 amps modular switch, connection etc. as required. | D21: Each | E21: 265 | G21: Rupees | H21: 0
A22: 1.9 | B22: 1.33 | C22: Supply and fixing 3 pin, 6A ceiling rose on the existing junction box / wooden block including connection etc as required. | D22: Each | E22: 835 | G22: Rupees | H22: 0
A23: 1.1 | B23: 1.38 | C23: Supply and fixing call bell / buzzer suitable for single phase, 230 volts, complete as required. | D23: Each | E23: 20 | G23: Rupees | H23: 0
A24: 1.11 | B24: 1.41 | C24: Installation, testing and commissioning of prewired, fluorescent fittings / compact flourescent fitting / LED batten of all types, complete with all accessories and tube etc. directly on ceiling /wall, including connections with 1.5 sq.mm FRLS PVC insulated, copper conductor, single core cable and earthing etc. as required. | D24: Each | E24: 550 | G24: Rupees | H24: 0
A25: 1.12 | B25: 1.42 | C25: Installation, testing and commissioning of pre-wired, fluorescent fitting / compact fluorescent fitting / LED batten of all types, complete with all accessories and tube etc. including supplying and fixing ball and socket arrangement, 2 no. down rods of 20 mm dia X 1.6 mm thick steel conduit upto 30 cm length, painting and wiring the down rods and connection with 1.5 sq. mm FRLS PVC insulated, copper conductor, single core cable and earthing etc. as required. | D25: Each | E25: 60 | G25: Rupees | H25: 0
A26: 1.13 | B26: 1.44 | C26: Installation, testing and commissioning of ceiling fan including wiring the down rod of standard length (upto 30 cm.) with 1.5 sq.mm FRLS PVC insulated, copper conductor, single core cable etc. as required. | D26: Each | E26: 340 | G26: Rupees | H26: 0
A27: 1.14 | B27: 1.48 | C27: Supply and fixing extra conduit down rod of 20 cm length GI pipe, 15 mm dia, heavy gauge including painting etc as required. (Note: More than 5cm length shall be rounded to the nearest 10cm and 5cm or less shall be ignored). | D27: Each | E27: 1360 | G27: Rupees | H27: 0
A28: 1.15 | B28: 1.50.1 | C28: Installation of exhaust fan upto 450mm sweep in the existing opening, including making good the damage, connection, testing, commissioning etc. as required. | D28: Each | E28: 90 | G28: Rupees | H28: 0
A29: 1.16 | B29: 1.55.3 | C29: Wiring for group controlled (looped) light point/fan point/exhaust fan point/ call bell point (without independent switch etc.) with 1.5 sq. mm FRLS PVC insulated copper conductor single core cable in surface/ recessed PVC conduit, and earthing the point with 1.5 sq. mm FRLS PVC insulated copper conductor single core cable etc. as required. | D29: Point | E29: 800 | G29: Rupees | H29: 0
A30: 1.17 | B30: 1.56 | C30: Supplying and fixing suitable size GI box with modular plate and cover in front on surface or in recess, including providing and fixing 2 nos 3 pin 5/6 amps modular socket outlet and 2nos 5/6 amps modular switch, connection etc. as required. (for light plugs to be used in non residential buildings.) | D30: Each | E30: 265 | G30: Rupees | H30: 0
A31: 1.18 | B31: 1.57 | C31: Supplying & fixing suitable size GI box wih modular plate and cover in front on surface or in recess including providing and fixing 25 A modular socket outlet and 25 A modular SP MCB, “C” curve including connections, painting etc. as required. | D31: Each | E31: 12 | G31: Rupees | H31: 0
A33: 2. MCCB, MCB & DBs
A34: 2.1 | B34: 2.2 | C34: Providing and fixing Following rating and breaking capacity and pole MCCB exisitng cubicle panel board including drilling holes in cubicle panel, making connections etc as required.
A35: 2.1.1 | B35: 2.2.1 | C35: 100 Amp ,16 KA,TP MCCB | D35: Nos | E35: 2 | G35: Rupees | H35: 0
A36: 2.1.2 | B36: 2.2.2 | C36: 125 Amp ,16 KA,TP MCCB | D36: Nos | E36: 2 | G36: Rupees | H36: 0
A37: 2.2 | B37: 2.3 | C37: Supplying and fixing following way single pole and neutral, sheet steel, MCB distribution board, 240 volts, on surface/ recess complete with tinned copper busbar, neutral busbar, earth bar, din bar, interconnection, powder painted including earthing etc. as required. (But without MCB/ RCCB/ Isolator)
A38: 2.2.1 | B38: 2.3.2 | C38: 8 way double door | D38: Nos | E38: 2 | G38: Rupees | H38: 0
A39: 2.2.2 | B39: 2.3.3 | C39: 12 way double door | D39: Nos | E39: 4 | G39: Rupees | H39: 0
A40: 2.2.3 | B40: 2.3.4 | C40: 16 way double door | D40: Nos | E40: 6 | G40: Rupees | H40: 0
A41: 2.3 | B41: 2.4 | C41: Supplying and fixing following way horizontal type three pole and neutral, sheet steel, MCB distribution board, 415 volts, on surface/ recess complete with tinned copper busbar, neutral busbar, earth bar, din bar, interconnection, powder painted including earthing etc. as required. (But without MCB/ RCCB/ Isolator)
A42: 2.3.1 | B42: 2.4.1 | C42: 4 way Double Door | D42: Nos | E42: 15 | G42: Rupees | H42: 0
A43: 2.3.2 | B43: 2.4.2 | C43: 6 way Double Door | D43: Nos | E43: 37 | G43: Rupees | H43: 0
A44: 2.3.3 | B44: 2.4.3 | C44: 8 way Double Door | D44: Nos | E44: 13 | G44: Rupees | H44: 0
A45: 2.4 | B45: 2.5 | C45: Supplying and fixing following way surface / recess mounted vertical type, 415 volt, TPN MCB distribution board of sheet steel, dust protected, duly powder painted, inclusive of 200amps tinned copper busbar, common neutral link, earth bar, din bar, for mounting MCB's, (but without MCB's and incomer), as required. (Note: Vertical type MCB TPDB is normally used where 3 phase outlets are required). | H45: 0
A46: 2.4.1 | B46: 2.5.1 | C46: 4 way Double door | D46: Each | E46: 20 | G46: Rupees | H46: 0
A47: 2.4.2 | B47: 2.5.2 | C47: 8 way Double door | D47: Each | E47: 6 | G47: Rupees | H47: 0
A48: 2.5 | B48: 2.1 | C48: Supplying and fixing 5 amps to 32 amps rating, 240/415 volts, "C" curve, miniature circuit breaker suitable for inductive load of following poles in the existing MCB DB complete with connections, testing and commissioning etc. as required. | H48: 0
A49: 2.5.1 | B49: 2.10.1 | C49: Single pole | D49: Each | E49: 1270 | G49: Rupees | H49: 0
A50: 2.5.2 | B50: 2.10.3 | C50: Double pole | D50: Each | E50: 6 | G50: Rupees | H50: 0
A51: 2.5.3 | B51: 2.10.4 | C51: Triple pole | D51: Each | E51: 40 | G51: Rupees | H51: 0
A52: 2.5.4 | B52: 2.10.5 | C52: Triple pole and neutral | D52: Each | E52: 8 | G52: Rupees | H52: 0
A53: 2.6 | B53: 2.11 | C53: Supplying and fixing single pole blanking plate in the existing MCB DB complete etc. as required. | D53: Each | E53: 190 | G53: Rupees | H53: 0
A54: 2.7 | B54: 2.12 | C54: Supplying and fixing following rating, double pole, 240 volts, isolator in the existing MCB DB complete with connections, testing and commissioning etc. as required. | H54: 0
A55: 2.7.1 | B55: 2.12.1 | C55: 40 amps | D55: Each | E55: 6 | G55: Rupees | H55: 0
A56: 2.7.2 | B56: 2.12.2 | C56: 63 amps | D56: Each | E56: 6 | G56: Rupees | H56: 0
A57: 2.8 | B57: 2.13 | C57: Supplying and fixing following rating, four pole, 415 volts, isolator in the existing MCB DB complete with connections, testing and commissioning etc. as required. | H57: 0
A58: 2.8.1 | B58: 2.13.1 | C58: 40 amps | D58: Each | E58: 68 | G58: Rupees | H58: 0
A59: 2.8.2 | B59: 2.13.2 | C59: 63 amps | D59: Each | E59: 26 | G59: Rupees | H59: 0
A60: 2.9 | B60: 2.14 | C60: Supplying and fixing following rating, double pole, (single phase and neutral), 240 volts, residual current circuit breaker (RCCB), having a sensitivity current upto 300 milliamperes in the existing MCB DB complete with connections, testing and commissioning etc. as required. | H60: 0
A61: 2.9.1 | B61: 2.14.1 | C61: 25 amps | D61: Each | E61: 2 | G61: Rupees | H61: 0
A62: 2.9.2 | B62: 2.14.2 | C62: 40 amps | D62: Each | E62: 4 | G62: Rupees | H62: 0
A63: 2.9.3 | B63: 2.14.3 | C63: 63 amps | D63: Each | E63: 6 | G63: Rupees | H63: 0
A64: 2.1 | B64: 2.15 | C64: Supplying and fixing following rating, four pole, (three phase and neutral), 415 volts, residual current circuit breaker (RCCB), having a sensitivity current upto 300 milliamperes in the existing MCB DB complete with connections, testing and commissioning etc. as required.
A65: 2.10.1 | B65: 2.15.1 | C65: 25 amps | D65: Each | E65: 28 | G65: Rupees | H65: 0
A66: 2.10.2 | B66: 2.15.2 | C66: 40 amps | D66: Each | E66: 36 | G66: Rupees | H66: 0
A67: 2.10.3 | B67: 2.15.3 | C67: 63 amps | D67: Each | E67: 12 | G67: Rupees | H67: 0
A68: 2.11 | B68: 2.16 | C68: Supplying and fixing DP sheet steel enclosure on surface / recess along with 25/32 amps 240 volts, "C" curve DP MCB complete with connections, testing and commissioining etc as required. | D68: Each | E68: 5 | G68: Rupees | H68: 0
A69: 2.12 | B69: 2.17 | C69: Supplying and fixing TPN sheet steel enclosure on surface / recess along with 16/25/32 amps 415 volts, "C" curve TPN MCB complete with connections, testing and commissioining etc as required. | D69: Each | E69: 8 | G69: =FnConvert(F69) -> Rupees | H69: 0
A70: 2.13 | B70: 2.18 | C70: Supplying and fixing 20 amps, 240 volts, SPN industrial type, socket outlet, with 2 pole and earth, metal enclosed plug top along with 20 amps `C' series, SP, MCB in sheet steel enclosure on surface or in recess, with chained metal cover for the socket outlet and complete with connections testing and commissioning etc, as required. | D70: Each | E70: 8 | G70: Rupees | H70: =ROUND(E70*F70,0) -> 0
A71: 2.14 | B71: 2.2 | C71: Supplying and fixing 30 amps, 415 volts, TPN industrial type, socket outlet, with 4 pole and earth, metal enclosed plug top along with 30amps `C' series, TPN, MCB in sheet steel enclosure on surface or in recess, with chained metal cover for the socket outlet and complete with connections testing and commissioning etc, as required. | D71: Each | E71: 4 | G71: Rupees | H71: 0
A74: 3. Cable Tray
A75: 3.1 | B75: 4.1 | C75: Supply and installing following size of perforated hot dipped GI cable trays(galvanisation thickness not less than 50 microns) with perforations not more that 17.5% in convenient sections, jointed with connectors, suspended from the ceiling with GI suspenders / fixed to walls with suitable GI clamps, including bolts and nuts, bends, reducers, Tees, cross members etc as required. | H75: 0
A76: 3.1.1 | B76: 4.6.2 | C76: 150 mm width x 50 mm depth x 1.6 mm thickness | D76: m | E76: 660 | G76: Rupees | H76: 0
A77: 3.1.2 | B77: 4.6.3 | C77: 225 mm width x 50 mm depth x 1.6 mm thickness | D77: m | E77: 350 | G77: Rupees | H77: 0
A78: 3.1.3 | B78: 4.6.4 | C78: 300 mm width x 50 mm depth x 1.6 mm thickness | D78: m | E78: 180 | G78: Rupees | H78: 0
A79: 3.1.4 | B79: 4.6.10 | C79: 450 mm width x 62.5 mm depth x 2.0 mm thickness | D79: m | E79: 140 | G79: Rupees | H79: 0
H80: 0
A81: 4. Earthing | H81: 0
A82: 4.1 | B82: 5.6 | C82: Earthing with copper earth plate 600 mm X 600 mm X 3 mm thick including accessories, and providing masonry enclosure with cover plate having locking arrangement and watering pipe of 2.7 metre long etc. with charcoal/ coke and salt as required. | D82: Set | E82: 35 | G82: Rupees | H82: 0
A83: 4.2 | B83: 5.8 | C83: Supplying and laying 25 mm X 5 mm copper strip at 0.50 metre below ground as strip earth electrode, including connection/ terminating with nut, bolt, spring, washer etc. as required. (Jointing shall be done by overlapping and with 2 sets of brass nut bolt & spring washer spaced at 50mm) | D83: m | E83: 890 | G83: Rupees | H83: 0
A84: 4.3 | B84: 5.14 | C84: Providing and fixing 25 mm X 5 mm copper strip on surface or in recess for connections etc. as required. | D84: m | E84: 350 | G84: Rupees | H84: 0
A85: 4.4 | B85: 5.15 | C85: Providing and fixing 25 mm X 5 mm G.I. strip on surface or in recess for connections etc. as required. | D85: m | E85: 2100 | G85: Rupees | H85: 0
A86: 4.5 | B86: 5.18 | C86: Providing and fixing 6 SWG dia G.I. wire on surface or in recess for loop earthing along with existing surface / recessed conduit / submain wiring / cable as required. | D86: m | E86: 480 | G86: Rupees | H86: 0
A87: 4.6 | B87: 5.19 | C87: Providing and fixing 4 mm dia copper wire on surface or in recess for loop earthing along with existing surface / recessed conduit / submain wiring / cable as required. | D87: m | E87: 860 | G87: Rupees | H87: 0
A88: 4.7 | B88: 5.2 | C88: Providing and fixing earth bus of 50 mm x 5 mm copper strip on surface for connections etc as required. | D88: m | E88: 110 | G88: Rupees | H88: 0
H89: 0
A90: 5. MV Cable Laying | H90: 0
A91: 5.1 | B91: 7.1 | C91: Laying of one number PVC insulated and PVC sheathed / XLPE power cable of 1.1 KV grade of following size direct in ground including excavation, sand cushioning, protective covering and refilling the trench etc as required. | H91: 0
A92: 5.1.1 | B92: 7.1.1 | C92: Upto 35 sq. mm | D92: m | E92: 765 | G92: Rupees | H92: 0
A93: 5.1.2 | B93: 7.1.2 | C93: Above 35 sq. mm and upto 95 sq. mm | D93: m | E93: 50 | G93: Rupees | H93: 0
A94: 5.1.3 | B94: 7.1.3 | C94: Above 95 sq. mm and upto 185 sq. mm | D94: m | E94: 130 | G94: Rupees | H94: 0
A95: 5.1.4 | B95: 7.1.4 | C95: Above 185 sq. mm and upto 400 sq. mm | D95: m | E95: 200 | G95: Rupees | H95: 0
A96: 5.2 | B96: 7.2 | C96: Laying of one number additional PVC insulated and PVC sheathed / XLPE power cable of 1.1 KV grade of following size direct in ground in the same trench in one tier horizontal formation including excavation, sand cushioning, protective covering but excluding and refilling the trench etc as required. | H96: 0
A97: 5.2.1 | B97: 7.2.1 | C97: Upto 35 sq. mm | D97: m | E97: 50 | G97: Rupees | H97: 0
A98: 5.2.2 | B98: 7.2.2 | C98: Above 35 sq. mm and upto 95 sq. mm | D98: m | E98: 40 | G98: Rupees | H98: 0
A99: 5.2.3 | B99: 7.2.3 | C99: Above 95 sq. mm and upto 185 sq. mm | D99: m | E99: 200 | G99: Rupees | H99: 0
A100: 5.2.4 | B100: 7.2.4 | C100: Above 185 sq. mm and upto 400 sq. mm | D100: m | E100: 100 | G100: Rupees | H100: 0
A101: 5.3 | B101: 7.5 | C101: Laying of one number PVC insulated and PVC sheathed / XLPE power cable of 1.1 KV grade of following size in the existing RCC/ HUME/ METAL pipe as required. | H101: 0
A102: 5.3.1 | B102: 7.5.1 | C102: Upto 35 sq. mm | D102: m | E102: 120 | G102: Rupees | H102: 0
A103: 5.3.2 | B103: 7.5.2 | C103: Above 35 sq. mm and upto 95 sq. mm | D103: m | E103: 30 | G103: Rupees | H103: 0
A104: 5.3.3 | B104: 7.5.3 | C104: Above 95 sq. mm and upto 185 sq. mm | D104: m | E104: 300 | G104: Rupees | H104: 0
A105: 5.3.4 | B105: 7.5.4 | C105: Above 185 sq. mm and upto 400 sq. mm | D105: m | E105: 50 | G105: Rupees | H105: 0
A106: 5.4 | B106: 7.6 | C106: Laying of one number PVC insulated and PVC sheathed / XLPE power cable of 1.1 KV grade of following size in the existing open duct as required. | H106: 0
A107: 5.4.1 | B107: 7.6.1 | C107: Upto 35 sq. mm | D107: m | E107: 90 | G107: Rupees | H107: 0
A108: 5.4.2 | B108: 7.6.2 | C108: Above 35 sq. mm and upto 95 sq. mm | D108: m | E108: 20 | G108: Rupees | H108: 0
A109: 5.4.3 | B109: 7.6.3 | C109: Above 95 sq. mm and upto 185 sq. mm | D109: m | E109: 350 | G109: Rupees | H109: 0
A110: 5.4.4 | B110: 7.6.4 | C110: Above 185 sq. mm and upto 400 sq. mm | D110: m | E110: 425 | G110: Rupees | H110: 0
A111: 5.5 | B111: 7.7 | C111: Laying and fixing of one number PVC insulated and PVC sheathed / XLPE power cable of 1.1 KV grade of following size on wall surface as required. | H111: 0
A112: 5.5.1 | B112: 7.7.1 | C112: Upto 35 sq. mm (clamped with 1mm thick saddle) | D112: m | E112: 1650 | G112: Rupees | H112: 0
A113: 5.5.2 | B113: 7.7.2 | C113: Above 35 sq. mm and upto 95 sq. mm (clamped with 25x3mm MS flat clamp) | D113: m | E113: 150 | G113: Rupees | H113: 0
A114: 5.5.3 | B114: 7.7.3 | C114: Above 95 sq. mm and upto 185 sq. mm (clamped with 25/40x3mm MS flat clamp) | D114: m | E114: 350 | G114: Rupees | H114: 0
A115: 5.5.4 | B115: 7.7.4 | C115: Above 185 sq. mm and upto 400 sq. mm (clamped with 40x3mm MS flat clamp) | D115: m | E115: 125 | G115: Rupees | H115: 0
A116: 5.6 | B116: 7.8 | C116: Laying and fixing of one number PVC insulated and PVC sheathed / XLPE power cable of 1.1 KV grade of following size on cable tray as required. | H116: 0
A117: 5.6.1 | B117: 7.8.1 | C117: Upto 35 sq. mm (clamped with 1mm thick saddle) | D117: m | E117: 3850 | G117: Rupees | H117: 0
A118: 5.6.2 | B118: 7.8.2 | C118: Above 35 sq. mm and upto 95 sq. mm (clamped with 25x3mm MS flat clamp) | D118: m | E118: 300 | G118: Rupees | H118: 0
A119: 5.6.3 | B119: 7.8.3 | C119: Above 95 sq. mm and upto 185 sq. mm (clamped with 25/40x3mm MS flat clamp) | D119: m | E119: 725 | G119: Rupees | H119: 0
A120: 5.6.4 | B120: 7.8.4 | C120: Above 185 sq. mm and upto 400 sq. mm (clamped with 40x3mm MS flat clamp) | D120: m | E120: 200 | G120: Rupees | H120: 0
A121: 5.7 | B121: 7.9 | C121: Supplying and making cable route marker with cement concrete 1:2:4 (1 cement : 2 coarse sand : 4 graded stone aggregate 20 mm nominal size ) of size 60 cm X 60 cm at the bottom and 50 cm X 50 cm at the top with a thickness of 10cm including inscription duly engraved as required. | D121: each | E121: 35 | G121: Rupees | H121: 0
H122: 0
A123: 6. HT Cable Laying | H123: 0
A124: 6.1 | B124: 8.1 | C124: Laying of one number PVC insulated and PVC sheathed / XLPE power cable of 11 KV grade of following size direct in ground including excavation, sand cushioning, protective covering and refilling the trench etc as required. | H124: 0
A125: 6.1.1 | B125: 8.1.2 | C125: Above 120 sq. mm and upto 400 sq. mm | D125: m | E125: 240 | G125: Rupees | H125: 0
A126: 6.2 | B126: 8.3 | C126: Laying of one number PVC insulated and PVC sheathed / XLPE power cable of 11 KV grade of following size in the existing RCC/ HUME/ METAL pipe as required. | H126: 0
A127: 6.2.1 | B127: 8.3.2 | C127: Above 120 sq. mm and upto 400 sq. mm | D127: m | E127: 50 | G127: Rupees | H127: 0
A128: 6.3 | C128: Laying of one number PVC insulated and PVC sheathed / XLPE power cable of 11 KV grade of following size in the existing masonry open duct as required. | H128: 0
A129: 6.3.1 | B129: 8.4.2 | C129: Above 120 sq. mm and upto 400 sq. mm | D129: m | E129: 80 | G129: Rupees | H129: 0
A131: 7. MV Cable Jointing & End Termination
A132: 7.1 | B132: 9.1 | C132: Supplying and making end termination with brass compression gland and aluminium for following size of PVC insulated and PVC sheathed / XLPE aluminium conductor cable of 1.1 KV grade as required.
A133: 7.1.1 | B133: 9.1.31 | C133: 3.5 C x 400 sq.mm | D133: Nos | E133: 32 | G133: =FnConvert(F133) -> Rupees | H133: 0
A134: 7.1.2 | B134: 9.1.30 | C134: 3.5 C x 300 sq.mm | D134: Nos | E134: 6 | G134: Rupees | H134: =ROUND(E134*F134,0) -> 0
A135: 7.1.3 | B135: 9.1.29 | C135: 3.5 C x 240 sq.mm | D135: Nos | E135: 10 | G135: Rupees | H135: 0
A136: 7.1.4 | B136: 9.1.27 | C136: 3.5 C x 185 sq.mm | D136: Nos | E136: 44 | G136: Rupees | H136: 0
A137: 7.1.5 | B137: 9.1.26 | C137: 3.5 C x 150 sq.mm | D137: Nos | E137: 14 | G137: Rupees | H137: 0
A138: 7.1.6 | B138: 9.1.25 | C138: 3.5 C x 120 sq.mm | D138: Nos | E138: 8 | G138: Rupees | H138: 0
A139: 7.1.7 | B139: 9.1.24 | C139: 3.5 C x 95 sq.mm | D139: Nos | E139: 4 | G139: Rupees | H139: 0
A140: 7.1.8 | B140: 9.1.23 | C140: 3.5 C x 70 sq.mm | D140: Nos | E140: 6 | G140: Rupees | H140: 0
A141: 7.1.9 | B141: 9.1.22 | C141: 3.5 C x 50 sq.mm | D141: Nos | E141: 6 | G141: Rupees | H141: 0
A142: 7.1.10 | B142: 9.1.21 | C142: 3.5 C x 35 sq.mm | D142: Nos | E142: 6 | G142: Rupees | H142: 0
A143: 7.1.11 | B143: 9.1.20 | C143: 3.5 C x 25 sq.mm | D143: Nos | E143: 34 | G143: Rupees | H143: 0
A144: 7.1.12 | B144: 9.1.34 | C144: 4 x 25 sqmm | D144: Nos | E144: 6 | G144: Rupees | H144: 0
A145: 7.1.13 | B145: 9.1.33 | C145: 4 x 16 sqmm | D145: Nos | E145: 74 | G145: Rupees | H145: 0
A146: 7.1.14 | B146: 9.1.32 | C146: 4 x 10 sq.mm | D146: Nos | E146: 58 | G146: Rupees | H146: 0
A147: 7.1.15 | B147: 9.1.3 | C147: 2 x 16 sqmm | D147: Nos | E147: 10 | G147: Rupees | H147: 0
A148: 7.1.16 | B148: 9.1.2 | C148: 2 x 10 sqmm | D148: Nos | E148: 12 | G148: Rupees | H148: 0
A149: 7.1.17 | B149: 9.1.1 | C149: 2 x 6 sqmm | D149: Nos | E149: 12 | G149: Rupees | H149: 0
H150: 0
A151: 8. HV Cable Jointing & End Termination
A152: 8.1 | B152: 10.4 | C152: Supplying and making indoor cable end termination with heat shrinkable jointing kit complete with all accessories including lugs suitable for following size of 3 core, XLPE aluminium conductor cable of 11 KV grade as required :
A153: 8.1.1 | B153: 10.4.2 | C153: 150 sq.mm | D153: Each | E153: 4 | G153: Rupees | H153: 0
A154: 8.1.2 | B154: 10.4.3 | C154: 240 sq. mm | D154: Each | E154: 2 | G154: Rupees | H154: 0
A155: 8.2 | B155: 10.5 | C155: Supplying and making outdoor cable end termination with heat shrinkable jointing kit complete with all accessories including lugs suitable for following size of 3 core, XLPE aluminium conductor cable of 11 KV grade as required : | H155: 0
A156: 8.2.1 | B156: 10.5.3 | C156: 240 sq. mm | D156: Each | E156: 2 | G156: Rupees | H156: 0
A158: 9. Miscellaneous civil Items
A159: 9.1 | B159: 10.2 (SR civil) | C159: Supply and installing of DG set stack, outdoor busduct support using angular structure, channel, I section, necessary nut and bolt and all required accessories for erecting exhaust pipe from 2 nos DG set. The design of the stack with foundation shall be got approved before fabrication. The foundation for the stack shall be measured separately. | D159: Kg | E159: 8000 | G159: Rupees | H159: 0
A160: 9.2 | B160: 14.13 | C160: Providing, laying and fixing following dia G.I. pipe (medium class) in ground complete with G.I. fittings including trenching (75 cm deep)and re-filling etc as required
A161: 9.2.1 | B161: 14.13.1 | C161: 50 mm dia | D161: m | E161: 20 | G161: Rupees | H161: 0
A162: 9.2.2 | B162: 14.13.3 | C162: 100 mm dia | D162: m | E162: 30 | G162: Rupees | H162: 0
A163: 9.2.3 | B163: 14.13.4 | C163: 150 mm dia | D163: m | E163: 40 | G163: Rupees | H163: 0
A164: 9.3 | B164: 14.14 | C164: Providing, laying and fixing following dia RCC pipe NP2 class (light duty) in ground complete with RCC collars, jointing with cement mortar 1:2 (1 cement : 2 fine sand) including trenching (75 cm deep) and refilling etc as required.
A165: 9.3.1 | B165: 14.14.1 | C165: 100 mm dia | D165: m | E165: 50 | G165: Rupees | H165: 0
A166: 9.3.2 | B166: 14.14.2 | C166: 150 mm dia | D166: m | E166: 80 | G166: Rupees | H166: 0
A167: 9.3.3 | B167: 14.14.4 | C167: 300 mm dia | D167: m | E167: 160 | G167: Rupees | H167: 0
A169: 10. Lighting Controls
A171: 10.1 | B171: 15.1 | C171: Supplying, installation, testing and commissioning of Passive Infrared (PIR) technology based occupancy sensor having high preformance, non regulating programmable type, suitable for connected load upto 10 Amp , for mounting height up to 2.8 mtr and for 5 m diameter coverage area along with necessary fixing arrangements i/c programming at site etc. complete as required. | D171: Each | E171: 40 | G171: Rupees | H171: 0
A172: 10.2 | B172: 15.4 | C172: Supplying, installation, testing & commissioning of Astronomical time switch of following configuration to be mounted in feeder pillars / Lighting DBs for automatic switching On & Off of street lights at sun set & sun rise or twilight (Auto ON, Auto Off, Auto modes) with manual override facility with 12/24 hour display format with suitable battery and indication for relay status i/c programming at site complete as required. | H172: 0
B173: 15.4.3 | C173: 3 output (1 output per phase) and suitable for three phase supply | D173: Each | E173: 3 | G173: Rupees | H173: 0
A175: 11. HT Panel & Transformer
A177: 11.1 | C177: Supply,fabrication, erection, testing & commissioning of 11 KV DP structure using required size of ISMB for poles and required size cross channel with ISMC for supporting structure for 11kV components, 11 KV pin, disc and stay insulators, supports, jumpers '/interconnecting conductors with 0'SWG Cu, 25x3mm braided copper earthing for non current moving part like handle of AB switch etc. The item includes erection of DP structure on suitable concrete foundation and painting with one coat of metal primer after fabrication and two coats of aluminium enamel paint after erection complete and consists of the following. The cost of the civil foundation shall be measured along with civil items. The design of the foundation shall be got approved from Engineer-in-charge before execution. | H177: 0
C178: 11KV,400 A single brake,TP, gang operated AB switch with operating handle & locking mechanism - 1 set
C179: 11 KV Lighting Arrestors - 1 set
C180: 11 KV Drop out fuses - 1 set
C181: The consumers DP structure shall be braced with state electricity board DP structure if required & interconnection shall be done with 0 SWG Cu wire.
C182: The DP structure shall be with all necessary accessories for connecting 11kV cable as per particular specification & drawing. The 11kV DP structure shall be done as per the requirement of statutory authority. | D182: Job | E182: 2 | G182: Rupees | H182: 0
A184: 11.2 | C184: Supply, installation, testing & commissioing of 11kV outdoor type CT/PT unit with CT rating suitable as per Kerala State Electricty Department , class 0.2S, 15VA CT & 11kV/110V class 0.2S 100VA PT to be mounted on to the DP structure. The item also include supply & installation of TOD meter in a suitable weather proof sheet steel enclosure (14SWG) in 600mm plinth including Test terminal block, control fuses & 10C 2.5sqmm armoured copper cable between CT/PT unit & TOD meter. The work shall be as per state electricity board norms. The cost of the civil foundation shall be measured along with civil items. The design of the foundation shall be got approved from Engineer-in-charge before execution. | D184: Job | E184: 1 | G184: Rupees | H184: 0
A186: 11.3 | C186: Supply, fabricating & erection of 1.8 mtr high chain link fencing (50mm cross link) over 600 mm high brick masonry, using 4 mm thick GI chain link with a framework of 50x50x6 mm MS angle between vertical posts of ISMC 75x50mm at 2400 mm interval, which are fixed to the concrete footing (1:2:4) of size 450x450x200 mm (above GL) with adequate footing depth, between the brick / block masonry. Brick / block masonry (345 mm thick) and 200 mm from ground level for foundation & plinth in cement mortar (1:6). The brick masonry is to be pointed using cement mortar 1:3 to have a flush finish. Earth strip shall be connected to the fencing for its earthing.The MS framework for chain link fencing is finished using zinc chromate primer & 2 coats of synthetic enamel paint. 1.5 mtr wide gate shall be provided with suitable locking arrangements.The rate shall be inclusive of all materials, labour, lead, lift, etc including excavation works and fabrication and assembly works including all nuts, bolts & other miscellaneuos items, etc.complete | D186: m | E186: 20 | G186: Rupees | H186: 0
C187: HT CABLE | H187: 0
A188: 11.4 | C188: Supply of 3C x 240 sqmm 11kV (E) grade XLPE insulated PVC sheathed compact circular armoured aluminium conductor HT power cable, insulation screened with extruded semi conducting compound in combination with copper tape suitable for 11kV earthed system confirming to relavent standard. | D188: m | E188: 270 | G188: Rupees | H188: 0
A189: 11.5 | C189: Supply of 3C x 150 sqmm 11kV (E) grade XLPE insulated PVC sheathed compact circular armoured aluminium conductor HT power cable, insulation screened with extruded semi conducting compound in combination with copper tape suitable for 11kV earthed system confirming to relavent standard. | D189: m | E189: 40 | G189: Rupees | H189: 0
A190: 11.6 | C190: INDOOR HT PANEL
C191: Supply, installation, testing and commissioning of Indoor HT VCB 3 panel unit, floor mounted, fabricated with 2mm thick CRCA sheet suitably reinforced, powder coated, with segregated HT & LT compartment consisting of
C192: Incomer
C193: One no. 11 kV, 630A, TP, 500 MVA, VCB, with suitably interlocked earth switch, having horizontal draw out and isolation. The VCB shall be fitted with motorized spring mechanism for closing , ON, OFF LED /mechanical indication lamp, emergency trip, Microprocessor based Protection relays (3 OC & 1 SC), high speed tripping relay, trip circuit supervision relay, safety shutter etc. The breaker shall be complete with closing coil, tripping coil and shunt trip. Providing necessary power pack (in-built) also forms part of the scope. The panel shall be provided with the required no. of auxiliary contacts with 4NO+4NC spare contacts.
C194: Outgoing
C195: Two nos. 11 kV, 630A, TP, 350 MVA, VCB, having horizontal draw out and isolation. The VCB shall be fitted with motorized spring mechanism for closing with ON, OFF LED / mechanical indication lamp, emergency trip, Microprocessor based Protection relays (3 OC & 1 SC), high speed tripping relay, trip circuit supervision relay, auxillary relay for Transformer, safety shutter etc. The breaker shall be complete with closing coil, tripping coil and shunt trip. Providing necessary power pack (in-built) also forms part of the scope. The panel shall be provided with the required no. of auxiliary contacts with 4NO+4NC spare contacts.
H196: 0
C197: Components in each incomer and outgoing panels shall also include, but not limited to the follwing items. | H197: 0
C198: 1 no. Trip neutral close (T-N-C) switch. | H198: =ROUND(E198*F198,0) -> 0
C199: 1 no. Analogue volt meter scaled 0-15KV with selector switch | H199: =ROUND(E199*F199,0) -> 0
C200: 1 no. Analogue ammeter scaled 0-50 A with selector switch | H200: =ROUND(E200*F200,0) -> 0
C201: 1 set On,Off, Trip, Trip healthy, spring charge indication lamp
C202: 1 set panel earth bus.
C203: 1 set Inbuilt Power pack of 110V AC input with DC output for control & indication
C204: 1 set Draw out type 3 limb, 11 kV/110V, 100VA, class 0.5, epoxy cast resin potential transformer with necessary HT & LT fuses.
C205: 1 set Epoxy resin cast CT with suitable ratio as per demand load, with 15VA, class 0.5 for metering & 15VA class 5P10 for protection
C206: 1 no Panel heater with a control switch and illumination lamp with door switch.
C207: 1 set Test terminal block.
C208: 1 set 630 A TP copper bus having a current density of 1.2A per sqmm duly sleeved with all accessories and insulators complete as required.
C209: 1 set 8 window solid state alarm annunciator with test, acknowledge, rest push buttom with hooter.
C210: The panel shall be subjected to all routine tests as per IS/IEC standards. Type test certificate of identical panel shall be submitted.
C211: The VCB & panel shall be provided with all necessary standard safety feature as per IS & door interlocks such as breaker cannot be drawn out when breaker is in ON position and similarly breaker cannot be closed unless it is fully in drawn in condition.
... 335 more rows

Sheet ELV
A1: `
A2: CCONSTRUCTION OF NEW PROPOSED OUT PATIENT BLOCK FOR GENERAL HOSPITAL, ALAPPUZHA -PART I
A3: ESTIMATE - ELV WORKS
A4: Item No | B4: DSR code | C4: Details of items | D4: Unit | E4: Quantity | F4: Rate (Rs.) in figures | G4: Rate (Rs.) in words | H4: Amount (Rs.)
A5: CCTV SURVEILLANCE SYSTEM - IP TYPE
B6: 2016 | C6: DSR ITEMS
A7: 1 | B7: 1.21.2 | C7: Supplying and fixing of 25 mm Medium class PVC conduit along with accessories in surface/recess including cutting the wall and making good the same in case of recessed conduit as required. | D7: mtrs | E7: 4500 | G7: =FnConvert(F7) -> Rupees | H7: =ROUND(F7*E7,0) -> 0
A8: 2 | B8: 1.53 | C8: Supply and drawing of UTP 4 pair Cat 6 LAN cable in the existing surface/recessed PVC conduit as required.
B9: 1.53.1 | C9: one run | D9: mtrs | E9: 5500 | G9: Rupees | H9: =ROUND(F9*E9,0) -> 0
A10: 3 | C10: Supplying and installing following size of perforated GI cable trays(galvanisation thickness not less than 50 microns) with perforation not more than 17.5%, in convenient sections, joined with connectors, suspended from the ceiling with GI suspenders including bolts & nuts, required bends, tees, reduces etc as required.
B11: 4.6.4 | C11: 300 mm width X 50 mm depth X 1.6 mm thickness | D11: mtrs | E11: 50 | G11: Rupees | H11: 0
C12: SUB TOTAL FOR DSR ITEMS
C13: NON DSR ITEMS
A14: 4 | B14: LMR | C14: Supply, installation, testing and commissioning of IP based IR WDR minidome day night colour Camera, 1/3" progressive CMOS, 4 MP, 3 - 10 mm MFZ, night vision compatible,IR range upto 15 mtrs PoE, inbuilt micro SD card,Ethernet port, H.264, IP 66, ONVIF, UL, FCC & CE certified. All mounting accessories shall be included | D14: No | E14: 55 | G14: Rupees | H14: 0
A15: 5 | B15: LMR | C15: Supply, installation, testing and commissioning of IP based IR PTZ camera, 1/3" CMOS, 2 Megapixel,30X zoom, WDR, IR range of 200 Meters, inbuilt micro SD card,,Ethernet port,TDN, PoE, DWDR, BLC, AGC, DNR, OSD,H.264 High Profile dual-stream, ONVIF, Wall/corner Mount, IP-66. CE, FCC, C-Tick certified. All mounting accessories and mounting arm suitable for the location shall be included | D15: No | E15: 3 | G15: Rupees | H15: 0
A16: 6 | B16: LMR | C16: Supply,installation, testing and commissioning of IP Network Video Recorders 16 channel with 16 ports, 2 SATA, audio 1 input 1 output, video 1 HDMI 1 VGA, recording resolution 5MP/3MP/1080P, 720P/ D1 @ 30 fps, network throughput 200 Mbps from IPC and 128 Mbps to Client, Smart search supported, Remote access by DDNS & P2P, 4 channel alarm input and 2 channel relay output, 2 USB ports, ONVIF, UL & CE certified. | D16: No | E16: 4 | G16: Rupees | H16: 0
A17: 7 | B17: LMR | C17: Supply, installation, testing and commissioning of 20 100/1000 SFP ports + 4 Combo 10/100/1000BASE-T/SFP ports + 4 10G SFP+ ports, L2 Management Switch - Core Switch | D17: No | E17: 1 | G17: Rupees | H17: 0
A18: 8 | B18: LMR | C18: Supply, installation, testing and commissioning of 24 port- Edge PoE switch | D18: No | E18: 7 | G18: Rupees | H18: 0
A19: 9 | B19: LMR | C19: Supply, installation, testing and commissioning of Patch Panel UTP Keystone- 24 Port- Fully loaded (Cat 5e,Cat 6 & Cat 6 A ) | D19: No | E19: 7 | G19: Rupees | H19: 0
A20: 10 | B20: LMR | C20: Supply and installation of Cat 6 UTP patch cord, 1 mtr | D20: No | E20: 200 | G20: Rupees | H20: 0
A21: 11 | B21: LMR | C21: Supply, installation, testing and commissioning of Server PC, Intel i7 processor, 24 inch LED monitor, Gigabit LAN port, USB port, 8GB DDR3 RAM,1TB HDD,1GB dual graphic card, 100/1000 LAN ports, optical mouse, Keyboard, DVD Writer. Genuine Win 8.1 Pro - Down grade to Win 7 professional, 24 inch LED monitor | D21: No | E21: 1 | G21: Rupees | H21: 0
A22: 12 | B22: LMR | C22: Supply, installation, testing and commissioning of Professional Joystick designed for Surveillance application as compatible with the above mentioned system. UL+CE+FCC certification minimum. | D22: No | E22: 1 | G22: Rupees | H22: 0
A23: 13 | B23: LMR | C23: Supply, installation, testing and commissioning of Surveillance / ESATA compatible Hard Disk of 4TB capacity to achieve the total storage for the NVR server | D23: No | E23: 10 | G23: Rupees | H23: 0
A24: 14 | B24: LMR | C24: Supply, Installation, Testing & Commissioning of 42 inch full HD LED monitor with resolution 1920X1080 pixel including wall mounting accessories (location: central control room).Material shall be UL/CE listed | D24: No | E24: 2 | G24: Rupees | H24: 0
A25: 15 | B25: LMR | C25: Supply and installation of wall mounted 6U rack including cable manager, power supply units etc.to accommodate ethernet switch and patch panel at each floor | D25: No | E25: 7 | G25: Rupees | H25: 0
A26: 16 | B26: LMR | C26: Supply and installation of wall mounted 22U rack including cable manager, power supply units etc.to accommodate NVR, ethernet switch patch panel etc in control rooom | D26: No | E26: 1 | G26: Rupees | H26: 0
A29: FIRE DETECTION AND ALARM SYSTEM - ADDRESSABLE TYPE
C30: DSR ITEMS
A31: 17 | C31: Supplying and installing following size of perforated GI cable trays (galvanisation thickness not less than 50 microns) with perforation not more than 17.5%, in convenient sections, joined with connectors, suspended from the ceiling with GI suspenders including bolts & nuts, required bends, tees, reduces etc as required.
B32: 4.6.4 | C32: 300 mm width X 50 mm depth X 1.6 mm thickness | D32: mtrs | E32: 30 | G32: Rupees | H32: 0
C34: NON DSR ITEMS
A35: 18 | B35: LMR | C35: Supply, installation, testing & commissioning of Addressable Fire Alarm Control Panel with battery back up for 24 hours normal operation and 30 minutes alarm operation.The Panel shall be 4 or 5 loop capacity.The panel shall consist of 80 character LCD display, RS 485 network cards , loop cards, BMS interface module through any protocol available in market (bacnet, modbus etc.), Printer port, in built battery, power supply unit etc.Panel shall have capacity to connect 198 to 250 devices per loop. The panel shall have 80 character LCD unit to indicate all events with address and shall comply standards of BS5839 or approval from LPCB/UL. It shall be possible to do the configuration and programming with out using server or dongle during commissioning. | D35: No | E35: 2 | G35: Rupees | H35: 0
A36: 19 | B36: LMR | C36: Supply,Installation,Testing & Commissioning of Addressable Smoke detector having multiple sensitivity mode adjustment (range of obscuration) complete with base, Junction box, cable termination by using gland & locknut and other accessories as required.(Location of use: Above & below false ceiling) | D36: No | E36: 391 | G36: Rupees | H36: 0
A37: 20 | B37: LMR | C37: Supply,Installation,Testing & Commissioning of Addressable Multi sensor detector having multiple sensitivity mode adjustment (range of obscuration) complete with base, Junction box, cable termination by using gland & locknut and other accessories as required. (Multi Sensor Detector)The device shall comply standards of BS5839 or approval from LPCB/UL | D37: No | E37: 21 | G37: Rupees | H37: 0
A38: 21 | B38: LMR | C38: Supply,Installation,Testing & Commissioning of Addressable heat detector. The device shall comply standards of BS5839 or approval from LPCB/UL | D38: No | E38: 5 | G38: Rupees | H38: 0
A39: 22 | B39: LMR | C39: Supply,Installation,Testing & Commissioning of Response indicator for all detectors located above false ceiling | D39: No | E39: 74 | G39: Rupees | H39: 0
A40: 23 | B40: LMR | C40: Supply,Installation,Testing & Commissioning of Addressable Fault isolator module in case of short circuit de linking or loose circuits between two successive fault isolators including cable termination by using gland & locknut. It shall be capable of monitoring shorted loop circuit and automatically restore communications when abnormal condition is corrected.The device shall comply standards of BS5839 or approval from LPCB/UL | D40: No | E40: 40 | G40: Rupees | H40: 0
A41: 24 | B41: LMR | C41: Supply,Installation,Testing & Commissioning of Addressable monitor module including cable termination by using gland & locknut. It shall be capable of providing voltfree contact rated at 24v DC, 2A.It shall communicate between flow switches / tamper switches installed in fire protection system & FACP and avail status of the system.The device shall comply standards of BS5839 or approval from LPCB/UL | D41: No | E41: 4 | G41: Rupees | H41: 0
A42: 24 | B42: LMR | C42: Supply,Installation,Testing & Commissioning of Addressable Control/Relay Module including cable termination by using gland & locknut. It shall be capable of providing voltfree contact rated at 24v DC, 2A.It shall communicate between Access control doors/ AHU/Lift Shut off and avail status of the system.The Control/Relay Module shall be UL Listed. | D42: No | E42: 11 | G42: Rupees | H42: 0
A43: 25 | B43: LMR | C43: Supply,Installation,Testing & Commissioning of Addressable type Horn / Strobe upto 95dBA @ 3m for audible annunciation and 75cd flashing at 1 Hz for visual indication.The device shall comply standards of BS5839 or approval from LPCB/UL | D43: No | E43: 36 | G43: Rupees | H43: 0
A44: 26 | B44: LMR | C44: Supply,Installation,Testing & Commissioning of Addressable Single action Manual pull station having an integrally mounted addressable module that monitors and reports contact status.It shall be red in colour.The device shall comply standards of BS5839 or approval from LPCB/UL | D44: No | E44: 36 | G44: Rupees | H44: 0
A45: 27 | B45: LMR | C45: Supply laying and termination of 2 Core x 1.5 Sq.mm cable, Armoured, FRLS, PVC Insulated copper cable along with all accessories. Cable shall be terminated in devices and control panel by using properly sized cable gland & locknut. Cable shall be installed on wall/slab by using GI saddles at regular interval as per the specifications. | D45: Mtrs | E45: 6500 | G45: Rupees | H45: 0
C46: SUB TOTAL FOR NON DSR ITEMS
A48: PUBLIC ADDRESS SYSTEM
C49: NON DSR ITEMS
A50: 28 | B50: LMR | C50: Supply, installation, testing & commissioning of column loudspeaker 10-15W | D50: No | E50: 72 | G50: Rupees | H50: 0
A51: 29 | B51: LMR | C51: Supply, installation, testing & commissioning of 6 watts ceiling speakers | D51: No | E51: 15 | G51: Rupees | H51: 0
A52: 30 | B52: LMR | C52: Supply, installation, testing & commissioning of voice alarm call Station with all cables and accessories | D52: No | E52: 1 | G52: Rupees | H52: 0
A53: 31 | B53: LMR | C53: Supply, installation, testing & commissioning of voice alarm keypad - Extension to voice alarm call station with all cables and accessories | D53: No | E53: 2 | G53: Rupees | H53: 0
A54: 32 | B54: LMR | C54: Supply, installation, testing & commissioning of voice alarm controller with all cables and accessories | D54: No | E54: 1 | G54: Rupees | H54: 0
A55: 33 | B55: LMR | C55: Supply, installation, testing & commissioning of voice alarm router with all cables and accessories | D55: No | E55: 2 | G55: Rupees | H55: 0
A56: 34 | B56: LMR | C56: Supply, installation, testing & commissioning of 240W Booster Amplifier, 4 channel with all cables and accessories | D56: No | E56: 4 | G56: Rupees | H56: 0
A57: 35 | B57: LMR | C57: Supply, Installation, Testing & Commissioning of Paging Microphone, goose neck type | D57: No | E57: 1 | G57: Rupees | H57: 0
A58: 36 | B58: LMR | C58: Supply, installation, testing & commissioning of MP3 Player for audio playback only | D58: No | E58: 1 | G58: Rupees | H58: 0
A59: 37 | B59: LMR | C59: Supply, laying and termination of Shielded Cat 6 cable with all necessary accessories (To be used for interconnecting head end equipments in the control room. Cut lengths of suitable size may be used with end terminations.The rate includes cable with all accessories and labour charges) | D59: Meter | E59: 100 | G59: Rupees | H59: 0
A60: 38 | B60: LMR | C60: Supply, laying and termination of 2 Core x 1.5 Sq.mm Armoured Al.Mylar Screened FRLS Twin Twisted PVC Insulated cable along with all accessories. Accessories include cable glands, locknuts,saddle clips, cable tie & other hardwares to achieve cable termination and installation. Cable shall be terminated in speakers and amplifiers | D60: Meter | E60: 5000 | G60: Rupees | H60: 0
A61: 39 | B61: LMR | C61: Supply, installation, testing & commissioning of standard AV rack with 600mm Width, 800 mm Outer Depth and 36U Height | D61: No | E61: 1 | G61: Rupees | H61: 0
A64: TELEPHONE, DATA AND TV SYSTEM
C65: DATA SYSTEM
C66: DSR ITEMS
A67: 40 | B67: 1.21.2 | C67: Supplying and fixing of 25 mm Medium class PVC conduit along with accessories in surface/recess including cutting the wall and making good the same in case of recessed conduit as required. | D67: mtrs | E67: 11000 | G67: Rupees | H67: 0
A68: 41 | B68: 1.21.3 | C68: Supplying and fixing of 32 mm Medium class PVC conduit along with accessories in surface/recess including cutting the wall and making good the same in case of recessed conduit as required. | D68: mtrs | E68: 1000 | G68: Rupees | H68: 0
C69: Supplying and fixing of GI box of following size modules, alongwith modular base & cover plate for modular switches in recess etc as required.
A70: 42 | B70: 1.27.1 | C70: 1 or 2 Module (75mmX75mm) | D70: No | E70: 160 | G70: Rupees | H70: 0
B71: 1.53 | C71: Supply and drawing of UTP 4 pair Cat 6 LAN cable in the existing surface/recessed PVC conduit as required. | H71: 0
A72: 43 | B72: 1.53.1 | C72: one run | D72: mtrs | E72: 5000 | G72: =FnConvert(F72) -> Rupees | H72: =ROUND(F72*E72,0) -> 0
A73: 44 | B73: 1.53.2 | C73: two run | D73: mtrs | E73: 4000 | G73: Rupees | H73: 0
A74: 45 | B74: 1.53.3 | C74: three run | D74: mtrs | E74: 5000 | G74: Rupees | H74: 0
C75: Supplying and installing following size of perforated GI cable trays(galvanisation thickness not less than 50 microns) with perforation not more than 17.5%, in convenient sections, joined with connectors, suspended from the ceiling with GI suspenders including bolts & nuts, required bends, tees, reduces etc as required.
A76: 46 | B76: 4.6.2 | C76: 150 mm width X 50 mm depth X 1.6 mm thickness | D76: mtrs | E76: 70 | G76: Rupees | H76: 0
A77: 47 | B77: 4.6.4 | C77: 300 mm width X 50 mm depth X 1.6 mm thickness | D77: mtrs | E77: 70 | G77: Rupees | H77: 0
C78: SUB TOTAL FOR DSR ITEMS
C79: NON DSR ITEMS
C80: Supplying and fixing following modular switch/ socket on the existing modular plate & switch box including connections but excluding modular plate etc as required.
A81: 48 | B81: LMR | C81: RJ 45 socket | D81: No | E81: 160 | G81: Rupees | H81: 0
A82: 49 | B82: LMR | C82: Supply and installation of Cat-6 shuttered 24 port patch panel | D82: No | E82: 12 | G82: Rupees | H82: 0
A83: 50 | B83: LMR | C83: SITC of 24 port unmanaged ethernet switch | D83: No | E83: 12 | G83: Rupees | H83: 0
A84: 51 | B84: LMR | C84: SITC of 24 port L2 managed ethernet switch | D84: No | E84: 1 | G84: Rupees | H84: 0
A85: 52 | B85: LMR | C85: Supply and installation of 9U rack with Front glass door, Rear Perforated door with handle Lock & key. Front/Rear 19" mounting angles, top, bottom open, RAL 9005 with all other accessories | D85: No | E85: 8 | G85: Rupees | H85: 0
C88: TELEPHONE SYSTEM
C89: DSR ITEMS
A90: 52 | B90: 1.18.2 | C90: Supplying and drawing 2 pair, 0.5 sq mm FR PVC insulated copper conductor, un armoured telephone cable in the existing surface/recessed steel/ PVC conduit. | D90: mtrs | E90: 14000 | G90: Rupees | H90: 0
A91: 53 | B91: 1.21.2 | C91: Supplying and fixing of 25 mm Medium class PVC conduit along with accessories in surface/recess including cutting the wall and making good the same in case of recessed conduit as required. | D91: mtrs | E91: 12000 | G91: Rupees | H91: 0
A92: 54 | B92: 1.21.3 | C92: Supplying and fixing of 32 mm Medium class PVC conduit along with accessories in surface/recess including cutting the wall and making good the same in case of recessed conduit as required. | D92: mtrs | E92: 1000 | G92: Rupees | H92: 0
A93: 55 | C93: Supplying and fixing following modular switch/ socket on the existing modular plate & switch box including connections but excluding modular plate etc as required.
B94: 1.24.6 | C94: Telephone socket | D94: No | E94: 180 | G94: Rupees | H94: 0
A95: 56 | C95: Supplying and fixing of GI box of following size modules, alongwith modular base & cover plate for modular switches in recess etc as required.
B96: 1.27.1 | C96: 1 or 2 module( 75 mmx75 mm) | D96: No | E96: 180 | G96: Rupees | H96: 0
C97: Supplying and installing following size of perforated GI cable trays(galvanisation thickness not less than 50 microns) with perforation not more than 17.5%, in convenient sections, joined with connectors, suspended from the ceiling with GI suspenders including bolts & nuts, required bends, tees, reduces etc as required.
A98: 57 | B98: 4.6.2 | C98: 150 mm width X 50 mm depth X 1.6 mm thickness | D98: mtrs | E98: 70 | G98: Rupees | H98: 0
A99: 58 | B99: 4.6.4 | C99: 300 mm width X 50 mm depth X 1.6 mm thickness | D99: mtrs | E99: 70 | G99: Rupees | H99: 0
C100: SUB TOTAL FOR DSR ITEMS
C101: NON DSR ITEMS
A102: 59 | B102: LMR | C102: Supply,laying and termination of 20 pair telephone cable, 0.5mm copper PVC insulated,unarmoured telephone cable drawn in the existing cable tray | D102: mtrs | E102: 1500 | G102: Rupees | H102: 0
A103: 60 | B103: LMR | C103: Supply,laying and termination of 10 pair telephone cable, 0.5mm copper PVC insulated,unarmoured telephone cable drawn in the existing cable tray | D103: mtrs | E103: 200 | G103: Rupees | H103: 0
A104: 61 | B104: LMR | C104: Supply,laying and termination of 20 pair telephone terminal block housed in engineering plastic box with transparent hinged door | D104: No | E104: 12 | G104: Rupees | H104: 0
A105: 62 | B105: LMR | C105: Supply,laying and termination of 10 pair telephone terminal block housed in engineering plastic box with transparent hinged door | D105: No | E105: 3 | G105: Rupees | H105: 0
A106: 63 | B106: LMR | C106: Supply,installation,testring and commissioning of EPABX with the following specifications: 1.208 Analog Extensions with CLI Expandable to 512 Ports 2. 08 Port Analog trunk with CLI and Power Failure Transfer and with Protection modules. 3. 02 PRI. 4. 02 nos Operator Console with 30 Direct selection Keys each. 5. 08 Port Voice Guidance to announce Extension Busy status, Wake up call announcement and other important telephone features, Auto Attendant facility for Welcome message announcement. 6. 02Nos -500 pair MDF(wall mountable) 7. 01 No. Call Billing and monitoring Software. 8. Charger/UPS with Batteries for backup of 1 hour. | D106: No | E106: 1 | G106: Rupees | H106: 0
C109: TOKEN SYSTEM
C110: NON DSR ITEMS
C111: SITC of following items for and as required to make the system complete and operational in all respects complete as per specification, drawings and standard as required.
A112: 64 | B112: LMR | C112: QMS Server: 6 core 64 bit, 16GB RAM SAS RAID Controller, 2x 6TB Enterprise SATA 2x Gigabit Ethernet, IPMI 2.0 with KVM over LAN 1 x Keyboard, 1 x Mouse, 1 x 21.5” LED display, Enterprise Linux, Single Phase OBO Class C SPD and Enclosure. Location: central control room | D112: No | E112: 1 | G112: Rupees | H112: 0
A113: 65 | B113: LMR | C113: LAN Switch: L2 Network Switch (Fiber up link + CAT6/Fiber ports) 24 Port 10/100 Layer 2 Unmanaged/Semi managed with built in fiber adapter, Single Phase OBO Class C SPD and Enclosure.Location: central control room | D113: No | E113: 1 | G113: Rupees | H113: 0
A114: 66 | B114: LMR | C114: LAN Switch: Network Switch 16 Port 10/100 Layer 2 Unmanaged, Single Phase OBO Class C SPD and Enclosure. Location: each floor | D114: No | E114: 7 | G114: Rupees | H114: 0
A115: 67 | B115: LMR | C115: LAN Repeater Switch: Network Switch 8 Port 10/100 Layer 2 Unmanaged, Single Phase OBO Class C SPD and Enclosure. Location: each floor | D115: No | E115: 7 | G115: Rupees | H115: 0
A116: 68 | B116: LMR | C116: Manageable Wifi Access Point for Network connectivity | D116: No | E116: 18 | G116: Rupees | H116: 0
A117: 69 | B117: LMR | C117: Administrator PC: 4Core 64bit CPU, 8GB, 500GB, minimum 19” LED Backlit, DVD Drive, 120W power supply, Windows 10 Pro, 3year warranty, with Wifi with Ticket dispenser and inkjet Printer, Single Phase OBO Class C SPD and Enclosure. Location: central control room | D117: No | E117: 1 | G117: Rupees | H117: 0
A118: 70 | B118: LMR | C118: Android tablet compatible with QMS software with minimuim Android 6 version. Location: consultation rooms/pharmacy/nurse station in lab etc. | D118: No | E118: 75 | G118: Rupees | H118: 0
A119: 71 | B119: LMR | C119: Kiosk PC: Rugged Touch Screen, dual core 64bit, 4GB Ram, 500GB HDD, Windows 10 Pro, 1 years onsite warranty, Single Phase OBO Class C SPD and Enclosure. Location: entry area in ground floor | D119: No | E119: 6 | G119: Rupees | H119: 0
A120: 72 | B120: LMR | C120: LCD Display Unit with Controller and Sounder,Single Phase OBO Class C SPD and Enclosure. Location: reg. counters | D120: No | E120: 23 | G120: Rupees | H120: 0
A121: 73 | B121: LMR | C121: Ticket / Token dispenser Unit (Wall Mounted / Free Standing) with necessary accessories. Location: near kisk PC | D121: No | E121: 3 | G121: Rupees | H121: 0
A122: 74 | B122: LMR | C122: 32” LCD Display with necessary mounting kits and Digital Controller and other accessories. Location: waiting areas | D122: No | E122: 47 | G122: Rupees | H122: 0
A123: 75 | B123: LMR | C123: Conduits, wiring and other accessories supply, fixing of pvc conduit of suitable size, drawing & termination of 23 AWG CAT 6 cable, supply and fixing of suitable sized metallic/PVC enclosure and other accessories necessary to complete the wiring as required at the existing hospital building | D123: mtrs | E123: 9500 | G123: Rupees | H123: 0
A124: 76 | B124: LMR | C124: Development,Integration, Testing and commissioning of QMS software with all provision to interface with the Hospital Information System | E124: 1 | G124: Rupees | H124: 0
C125: Total Amount | G125: =FnConvert(H125) -> Rupees | H125: =SUM(H7:H124) -> 0

Sheet Fire
A1: CONSTRUCTION OF NEW PROPOSED OUT PATIENT BLOCK FOR GENERAL HOSPITAL, ALAPPUZHA -PART I
A3: ABSTRACT OF ESTIMATE - FIRE FIGHTING SYSTEM
A4: Sl. No | B4: DSR No. | C4: DESCRIPTION | D4: UNIT | E4: QTY | F4: Rate (Rs.) in figures | G4: Rate (Rs.) in words | H4: Amount (Rs.)
A5: 1 | C5: FIRE FIGHTING SYSTEM
A6: 1.1 | B6: MR | C6: Supply, installation, testing and commissioning of electrically driven high pressure centrifugal fire hydrant / sprinkler pump, suitable for automatic operation consisting of the following:
C7: a) Horizontal, split casing, high pressure singlestage, singleoutlet, centrifugal pump, suitable for operation on 415 volts ± 6%, 3 phase, 50 HZ AC supply. The installation shall be complete with flexible coupling and coupling guard as required. Fire pump shall have CI casing, CS diffusers, bronze impeller (hard finished and dynamically balanced) and SS (304) Shaft with mechanical seal, capable for delivering 2280 LPM at outlet head of 68.m & suitable HP and ensure a minimum pressure of 3.5 Kg/Sqcm at the farthest or top most hydrant/sprinkler. The installation shall be complete with necessary pressure gauge with gun metal shut off cock on delivery side. (The pump should be tested and assembled for bench mark at factory and shall be approved by the Local fire Authority).
C8: Pump shall be capable of furnishing not less than 150% of rated capacity at a head of not less than 65% of the rated head. The shut off head shall not exceed 120% of rated head.
C9: b. Squirrel cage induction motor, TEFC type suitable for operation on 415 volts, 3 phase 50 HZ A.C supply, for the above pump with synchronous speed of 2900 RPM, conforming to IP 55 protection & class F insulation. The motor shall conform to IS 325-1978 (up to date) with flexible coupling and coupling guard complete as required.
C10: c. Common base plate for (a) and (b) from M.S. Channel for required size.
C11: d. Suitable cement concrete foundation with cement concrete plaster (design and drawing to be provided by the Contractor while the foundation will be done by others) complete with anti-vibration arrangement of cushy foot mountings and provide necesssary earthing as per IS standards. | D11: Set | E11: 2 | G11: =FnConvert(F11) -> Rupees | H11: =ROUND(E11*F11,0) -> 0
A12: 1.2 | B12: MR | C12: Supply, installation, testing and commissioning of jockey pump (pressurisation pump) comprising of the following: | H12: =ROUND(E12*F12,0) -> 0
C13: a.Verical inline centrifugal pump, suitable for operation on 415 volts ± 6%, 3 phase, 50 HZ A.C supply. The installation shall be complete with Flexible coupling and coupling guard, complete as required. Jockey pump shall be of stainless steel construction. | H13: 0
C14: The pump head and base shall be CI GG20 construction and impellers, diffusers, shaft sleeve, seal bush & pump shaft shall be in SS 304 material. The pump shall be provided with mechanical seal The system shall be complete with necessary pressure gauge with gun metal shut off cock on delivery side (The pump should be tested and assembled for bench mark at factory and shall be approved by the Local fire Authority). | H14: 0
C15: b. Squirrel cage induction motor TEFC type for operation on 415 V, 3 phase 50 HZ AC supply for the above pump with a synchronous speed of 2900 R.P.M. with flexible coupling and coupling guard etc. as required. | H15: 0
C16: c. Common base plate for (a) and (b) from M.S. channel as required size. | H16: 0
C17: d. Suitable cement concrete foundation with plaster, complete with Antivibration arrangement of cushy foot mounting and provide necesssary earthing as per IS standards. | H17: 0
C18: For pump defined above & of duty as follows : | H18: 0
C19: Hydrant & Sprinkler System | H19: 0
C20: Flow : 180 LPM | H20: 0
C21: Head : 68m | D21: Set | E21: 2 | G21: =FnConvert(F21) -> Rupees | H21: 0
A22: 1.3 | B22: MR | C22: Supply, installation, testing and commissioning of Diesel Engine driven high pressure centrifugal fire hydrant / sprinkler pump, suitable for automatic operation consisting of the following: | H22: 0
C23: a) Horizontal type, centifugal, split casing pump of cast iron body and bronze impeller with stainless steel shaft, mechanical seal to ensure a minimum pressure of 3.5 kg/sq.cm at the highest and farthest outlet at specified flow of 2280 lpm at 68 m head conforming to IS 1520 | H23: 0
C24: b) Suitable HP, 1500 RPM water cooled with radiator, diesel engine conforming to relevant BS & IS standard complete with auto starting mechanism, 12 Volts electric starting equipment, suitable batteries, battery charger, diesel tank of adequate capacity to run the pump for 4 hrs, control panel for diesel engine pump, exhaust pipe extended upto 1 m outside pump house duly insulated with 50 mm thick glass wool with 1.0 mm thick aluminium sheet cladding, residential silencer, instruments and protection as per specification, stop solenoid for auto stop in the event of fault with audio indications, pained with post office red colour etc. as required. | H24: 0
C25: c. Common base plate for (a) and (b) from M.S. Channel for required size. | H25: 0
C26: d. Suitable cement concrete foundation with cement concrete plaster (design and drawing to be provided by the Contractor while the foundation will be done by others) complete with anti-vibration arrangement of cushy foot mountings and provide necesssary earthing as per IS standards. | D26: Set | E26: 1 | G26: =FnConvert(F26) -> Rupees | H26: 0
A27: 1.4 | B27: MR | C27: CONTROL PANEL | H27: 0
C28: Fabrication, Supplying, Installation, Testing and Commissioning of Electrical control panel of cubical construction, floor mounted type, fabricated out of 2mm. thick CRCA sheet, compartmentalized with hinged lockable doors, dust and vermin proof, powder coated of approved shade after 7 tank treatment process, cable alley, inter connection, having switchgears and accessories mounting and internal wiring, earth terminals, numbering etc. complete in all respect, suitable for operation on 415 V, 3 phase, 50 Hz. AC supply with enclosure protection class IP 42 required. | H28: 0
C29: (A) COMMON PANEL IN FIRE PUMP HOUSE | H29: 0
C30: INCOMER (a)250Amps. TPN isolator | H30: 0
C31: (b) Voltmeter (0-500 Volts) with selector switch. | H31: 0
C32: (c) Ammeter (0-250 Amps) with selector switch & CT's etc. | H32: 0
C33: (d)Set of 3 Phase indicating lamp. | H33: 0
C34: (e)Set of Al. bus bar 250Amps. | H34: 0
C35: OUT GOING | H35: 0
C36: (a) Main Fire pump 200Amps. TPN isolator for suitable HP fully automatic star delta starter with over load protection, current sensing type single phase preventer complete with all accessories and internal wiring required for automatic operation, selector switch for local/remote, auto/manual/ OFF operation. | H36: 0
C37: (b) Jockey pump | H37: 0
C38: 32 Amps. TPN fuses for two Jockey Pumps fully DOL starter with over load protection, current sensing type single phase preventer complete with all accessories and internal wiring required for automatic operation, selector switch for local/remote, auto/manual/ OFF operation. | H38: 0
C39: (c)Diesel Engine Control. | H39: 0
C40: (a) 2 Pole MCB 16Amps | H40: 0
C41: PLC Control for Diesel Engine comprising:- | H41: 0
C42: (i)Auto/Manual selector switch & 3 attempt starting device, timers and relays as required, push buttons, start/stop in manual mode. | H42: 0
C43: (ii)Indication lamp for High/Low Lub. Oil pressure, High Water Temp. and Engine ON indication. | H43: 0
C44: (iii)SMF Battery VRLA type with charger suitable for 12 V/ 24 V DC with boost and tickle selector switch, 0-30 V DC volt meter, 0-20A DC Ammeter | H44: 0
C45: (iv)All standard relays and accessories for automatic operation of diesel engine. | H45: 0
C46: e) All automatic operation of Main Pump, Sprinkler Pump & Jockey Pump as per IS/CPWD specification attached | D46: No | E46: 1 | G46: =FnConvert(F46) -> Rupees | H46: 0
A47: 1.5 | B47: MR | C47: POWER CABLING | H47: 0
C48: Supply and Laying of below sized XLPE insulated PVC sheathed Aluminum conductor armored cabling to the incoming and outgoing of fire pump panel including necessary termination, glanding, necessary connections etc | H48: 0
A49: 1.5.1 | C49: 3.5 x 95 sq mm | D49: Meters | E49: 100 | G49: =FnConvert(F49) -> Rupees | H49: 0
A50: 1.5.2 | C50: 3.5 x 70 sq mm | D50: Meters | E50: 75 | G50: Rupees | H50: 0
A51: 1.5.3 | C51: 3 x 16 sq mm | D51: Meters | E51: 55 | G51: Rupees | H51: 0
A52: 1.6 | B52: MR | C52: Providing & fixing MS Class ‘C’ diesel engine exhaust pipe (including all fittings, clamps, steel support) of suitable dia for the engine. The pipe shall be provided with 12 mm thick supercera ceramic fibre rope | D52: RM | E52: 40 | G52: Rupees | H52: 0
A53: 1.7 | B53: MR | C53: Providing, fixing, testing and commissioning of precharged air vessel (size 450 mm dia & 2000 mm height) for pressurization of hydrant / sprinkler system complete with adequate pressure switches (as per design / requirement) with valves to operate as per operating sequences including 25 mm dia drain valve, air release valve with stop cock on the top, 25 mm dia inlet with isolating valve duly painted from inside and outside complete as required. | D53: Nos. | E53: 1 | G53: Rupees | H53: 0
A54: 1.8 | B54: MR | C54: Supply, installation, testing and commissioning of industrial type pressure switch having 1/4" BSP(F) connection IP:32 enclosure protection, phosphor bronze bellows as sensing element, SDPT contact system, switch rating 6A Inductive/lOA resistive 380 V AC, 0.2A Inductive/10A resistive 250V DC suit with ball valve etc. complete as required. | D54: No. | E54: 5 | G54: Rupees | H54: 0
A55: 1.9 | B55: MR | C55: Providing and fixing in position the industrial type pressure gauges with gun metal/brass valve complete as required . | D55: No. | E55: 9 | G55: Rupees | H55: 0
A56: 1.1 | B56: MR | C56: Supplying and applying thick readymade wrapping & coating 4mm thick material over one coat of coal tar primer for underground pipes | D56: Sq.Mtr | E56: 245 | G56: Rupees | H56: 0
A57: 1.11 | B57: MR | C57: Providing and fixing forged brass ball valve with forged brass ball suitable for operating pressure of not less than 16 kg / sq.cm of the following size. | H57: 0
A58: 1.11.1 | C58: 50 mm dia | D58: No. | E58: 2 | G58: =FnConvert(F58) -> Rupees | H58: 0
A59: 1.11.2 | C59: 25 mm dia | D59: No. | E59: 18 | G59: =FnConvert(F59) -> Rupees | H59: 0
A60: 1.12 | B60: MR | C60: Supplying, fixing, testing and commissioning of following BUTTERFLY VALVE (MANUAL) with C I body SS disc nitrile sheet & O ring & PN 16 pressure rating as specified | H60: 0
A61: 1.12.1 | C61: 150 mm dia | D61: No | E61: 22 | G61: =FnConvert(F61) -> Rupees | H61: 0
A62: 1.12.2 | C62: 100 mm dia | D62: No | E62: 18 | G62: =FnConvert(F62) -> Rupees | H62: 0
A63: 1.12.3 | C63: 80 mm dia | D63: No | E63: 2 | G63: =FnConvert(F63) -> Rupees | H63: 0
A64: 1.13 | B64: MR | C64: Supplying, fixing, testing and commissioning of following NON - RETURN VALVE with dual plate of C I body SS plates vulcanized NBR seal flanged end & PN16 pressure rating as specified | H64: 0
A65: 1.13.1 | C65: 150 mm dia | D65: No | E65: 8 | G65: =FnConvert(F65) -> Rupees | H65: 0
A66: 1.13.2 | C66: 100 mm dia | D66: No | E66: 2 | G66: =FnConvert(F66) -> Rupees | H66: 0
A67: 1.14 | B67: MR | C67: Providing and fixing CI `Y' strainer suitable for operating pressure of 16 Kg / sqcm with SS 304 perforated sheet basket including rubber gasket, flanges, nuts, bolts and washers, complete as required. | H67: 0
A68: 1.14.1 | C68: 150 mm dia | D68: No. | E68: 3 | G68: =FnConvert(F68) -> Rupees | H68: 0
A69: 1.14.2 | C69: 100 mm dia | D69: No. | E69: 2 | G69: =FnConvert(F69) -> Rupees | H69: 0
A70: 1.15 | B70: MR | C70: Providing and fixing of spring loaded relief valve suitable for pressure of 16 Kg / sqcm including flanges nuts bolt and washer etc. complete as required. | H70: 0
A71: 1.15.1 | C71: 25 mm dia | D71: No. | E71: 6 | G71: =FnConvert(F71) -> Rupees | H71: 0
A72: 1.16 | B72: MR | C72: Providing & fixing SS fire hydrant single landing valve with 80 mm NB. flanged inlet, brass spindle controlled 63 mm dia female instantaneous outlet type. SS coupling, blank cap, chain, twist release type lug & all accessories Conforming to IS standards with ISI mark. Including fixing with anchor fastner and flanged tapping from wet riser. | D72: No. | E72: 24 | G72: Rupees | H72: 0
A73: 1.17 | B73: MR | C73: Providing & fixing swinging type First Aid hose reel in red colour drum with 30 mts. long and 19 mm dia heavy duty thermoplastic water hose, globe valve stop cock, terminating with SS coupling & nozzle of 6mm outlet with shut off valve confirming to IS:12585 complete with MS socket for tap-off, drum and brackets (including painting) for fixing on wall with anchor fastner, bolts & nuts conforming to IS:884-1969 complete as required. | D73: No. | E73: 14 | G73: Rupees | H73: 0
A74: 1.18 | B74: MR | C74: Providing & fixing non-perlocating, rubber reinforced lined fire hose pipe (as per IS : 636, Type A) of 63 mm dia and length as described below. The hose shall be rated for brust pressure of 35.7 Kg/sqcm. Hose shall be complete with ISI marked brass male & female coupling (IS:903) bound & rivetted to hose pipe with copper rivets & 1.5 mm copper wire. | H74: 0
B75: MR | C75: 15 m length | D75: No. | E75: 48 | G75: Rupees | H75: 0
A76: 1.19 | B76: MR | C76: Providing and Fixing SS 63 mm dia instantaneous pattern branch short pipe, 20 mm dia nozzle conforming to IS standard, suitable for inter connection to hose pipe coupling complete as required. | D76: No. | E76: 24 | G76: Rupees | H76: =ROUND(E76*F76,0) -> 0
A77: 1.2 | B77: MR | C77: Providing and fixing standard firemans axe with heavy rubber handle. | D77: No. | E77: 14 | G77: Rupees | H77: 0
A78: 1.21 | B78: MR | C78: Supply, installation, testing and commissioning of weather proof hose cabinet having the size of 750x600x250mm made of 16gauge MS Sheet with full front front glass door and locking arrangements suitable to accommodate 2 nos 15m long hose pipes and 1 No. branch pipe. The cabinet shall be painted to scarlet red color outside and white inside. | D78: No. | E78: 14 | G78: Rupees | H78: 0
A79: 1.22 | B79: MR | C79: Providing and fixing pre fabricated weather proof lockable cabinet of size not less than 0.9 x 0.6 x 0.45 mtr made out of MS sheet of 16 gauge thickness having central opening and 4 mm thick glazed glass doors (Two No.) suitably marked on the outside with the letters "FIRE HOSE" including necessary locking arrangement and shall be painted with one coat of primer and two coats of synthetic enamel paint of approved shade. | H79: 0
B80: MR | C80: The cabinet shall be suitable to accommodate 2 No. 15 mtr long Hose pipe & 2 No. branch pipe nozzle. It shall be mounted on raised Brick platform complete as required. (Cost shall be inclusive of providing break glass box containing key for the cabinet along with hammer). | D80: No. | E80: 10 | G80: Rupees | H80: 0
A81: 1.23 | B81: MR | C81: Providing & fixing SS fire brigade connection (suction collecting head) consisting of 4 No. 63 mm dia instantaneous type male couplings with built-in check valves, 1 No. 150 mm dia sluice valve, (1 No. 150 mm dia non-return valve) and 150 mm dia flanged outlet complete with bolts, nuts and rubber insertions as required and as per IS standards | D81: No. | E81: 1 | G81: Rupees | H81: 0
A82: 1.24 | B82: MR | C82: Providing & fixing SS fire brigade suction hose coupling (draw-out connection) with nut for female coupling as per IS standards complete with 100 mm dia GI suction pipe and 100 mm dia foot valve (to be connected to static tank). Provision of GI drop pipe and foot valve shall be made in all the fire water static storage tanks (4 No.) (GI pipe to be paid separately through appropriate item while cost of foot valve to be included). | D82: No. | E82: 1 | G82: Rupees | H82: 0
A83: 1.25 | B83: MR | C83: Providing & fixing MS cabinet (to enclose suction collecting head and draw-out connection as per Item above) fabricated from 16 g MS sheet with full front glass door and locking arrangement duly painted with one coat of primer and two or more coats of synthetic enamel paint of approved make and shade and suitably mounted on a raised masonry paltform as required (Approx 0.6 m x 0.6 m x 0.45 m) | D83: No. | E83: 2 | G83: Rupees | H83: 0
A84: 1.26 | B84: MR | C84: Providing,laying and fixing following dia RCC NP2 class (light duty) in ground complete with RCC collars, jointing with cement mortar 1:2 (1 cement : 2 fine sand) including trenching (75 cm deep) and refilling etc. as required | H84: 0
A85: 1.26.1 | C85: 500 mm dia | D85: metre | E85: 50 | G85: Rupees | H85: 0
H86: 0
A87: 1.27 | B87: MR | C87: Providing, laying, jointing and testing of following sizes of MS 'C' class pipes, heavy grade, conforming to IS-1239 with all accessories like all fittings (for pipes upto 50mm dia threaded forged steel fittings and for pipes above 50 mm dia MS fitting with welded joint shall be used) including tees, elbows, reducers, union, flanges, rubber gaskets, GI nuts bolts, washer including supporting / fixing the pipe on floor/wall/ceiling with clamps, hangers (using anchor fastners) as per specification. Pipe sleeve of suitable higher size shall be provided wherever the pipes are crossing the walls / floors and sealing the sleeves with glass wool in between & fire sealent compound at either end all as per Project Manager’s requirements including cutting holes and chases in brick, RCC work and making good the same to original conditions complete in all respects. | H87: 0
C88: All hangers, clamps, brackets etc. shall be of galvanized iron unless specified otherwise and then supply of the same shall also be included for rates under this head. Welding of any kind on the galvanized support / hanger shall not be permitted. | H88: 0
C89: Providing two coats of synthetic enamel paint of approved shade over a coat of primer. Prior to application of primer the surface should be cleaned for any dirt, rusts, rough substance etc. Including painting of legends both direction arrow | H89: 0
A90: 1.27.1 | C90: 25 mm dia | D90: RM | E90: 1478 | G90: Rupees | H90: 0
A91: 1.27.2 | C91: 32 mm dia | D91: RM | E91: 236 | G91: Rupees | H91: 0
A92: 1.27.3 | C92: 40 mm dia | D92: RM | E92: 264 | G92: Rupees | H92: 0
A93: 1.27.4 | C93: 50 mm dia | D93: RM | E93: 366 | G93: Rupees | H93: 0
A94: 1.27.5 | C94: 65 mm dia | D94: RM | E94: 612 | G94: Rupees | H94: 0
A95: 1.27.6 | C95: 80 mm dia | D95: RM | E95: 180 | G95: Rupees | H95: 0
A96: 1.27.7 | C96: 100 mm dia | D96: RM | E96: 150 | G96: Rupees | H96: 0
A97: 1.27.8 | C97: 150 mm dia | D97: RM | E97: 900 | G97: Rupees | H97: 0
A98: 1.27.9 | C98: 200 mm dia | D98: RM | E98: 10 | G98: Rupees | H98: 0
A99: 1.28 | B99: MR | C99: Supply, installation, testing and commissioning of electrically operated water flow switches (Vane type) including tamper switch and accessories, complete with tap off socket arrangement as required, with potential free contact with 2 Nos. NONC. | D99: No. | E99: 4 | G99: Rupees | H99: 0
A100: 1.29 | B100: MR | C100: Providing & Fixing of Installation Control Valve with turbine type Mechanic Alarm Gong to be connected with control valve, drain & test valve and all other necessary components as per manufacturer's specifications complete as required | D100: No. | E100: 1 | G100: Rupees | H100: 0
A101: 1.3 | B101: MR | C101: Providing & fixing brass quartzoid sprinklers (UL approved) of 15 mm dia size, suitable for sustaining the pressure on the seat & water hammer effect. The type & temperature rating shall be as follows : | H101: 0
A102: 1.31 | C102: Supply, installation, testing and commissioning of approved make 15mm dia brass Sprinkler heads, quick response, designed to operate at 68 deg. Celsius etc. with necessery fittings etc of Pendant type | D102: No. | E102: 684 | G102: Rupees | H102: 0
A103: 1.32 | B103: MR | C103: Supply, installation, testing and commissioning of approved make 15mm dia brass Sprinkler heads designed to operate at 68 deg. Celsius etc. with necessery fittings etc of Sidewall extended coverage sprinkler quick response type. | D103: No. | E103: 110 | G103: Rupees | H103: 0
A104: 1.33 | B104: MR | C104: Supply, installation, testing and commissioning of approved make 15mm dia brass Sprinkler heads, quick response, designed to operate at 68 deg. Celsius etc. with necessery fittings etc of upright type. | D104: No. | E104: 100 | G104: Rupees | H104: 0
A105: 1.34 | B105: MR | C105: Supplying, fixing, testing & commissioning of Sprinkler Flexible Hose 1000 mm in length, Unbraided, UL Listed along with all necessary accessories like Nipple threaded , Reducing Nipple threaded, Large Bracket with Bolt, Small Bracket with Bolt, clamps,reduser collar,Meter Square Bar etc complete as per spec. | D105: No. | E105: 684 | G105: Rupees | H105: 0
A106: 1.35 | B106: MR | C106: Providing and fixing C.I Sluice valves(with cap) complete with bolts, nuts, rubber insertions etc.(Class-II) | H106: 0
C107: 200 mm dia | D107: No. | E107: 2 | G107: Rupees | H107: 0
H108: 0
A109: 2 | C109: FIRE EXTINGUISHERS | H109: 0
A110: 2.1 | B110: MR | C110: Supply, installation, testing and commissioning of following types of extinguisher with provision of wall bracket (fixed with anchor fastner) or floor mounted. | H110: 0
A111: 2.1.1 | C111: ISI marked (IS:940) portable chemical fire extinguisher, water (gas pressure) type capacity 9 litres with gun metal cap and nozzle and complete in all respects including initial fill and wall suspension brackets | D111: No. | E111: 14 | G111: Rupees | H111: 0
A112: 2.2 | B112: MR | C112: ISI marked (IS:2878) Fire Extinguisher, Carbon-di-oxide type capacity 4.5 Kg. Flat base including valve, discharge hose of not less than 10 mm dia, 1M long and complete in all respects including initial fill with CO2 gas conforming to IS:307-1966 filled to a filling rate of not more than 0.667 and wall suspension bracket. | D112: No. | E112: 42 | G112: Rupees | H112: 0
A113: 2.3 | B113: MR | C113: ABC (Powder Type) Fire Extinguisher. In HP Mild Steel Cylinders ISI marked fitted with pressure indicating gauge, internal tube, squeeze lever type valve fully charged with ABC powder (Mono Ammonium Phosphate) pressured by Nitrogen complete in all respects including wall suspension bracket and confoming to IS:1349-1993. | H113: 0
A114: 2.3.1 | C114: 2 Kg | D114: No. | E114: 42 | G114: Rupees | H114: 0
A115: 2.3.2 | C115: 4 Kg | D115: No. | E115: 35 | G115: Rupees | H115: 0
A116: 2.4 | B116: MR | C116: Mechanical Foam type Fire Extinguisher. In HP Mild Steel Cylinders ISI marked fitted with pressure indicating gauge, internal tube, squeeze lever type valve fully charged complete in all respects including wall suspension bracket / trolley mounted and confoming to IS:910 | H116: 0
C117: 50 Litres (trolley mounted) | D117: No. | E117: 1 | G117: Rupees | H117: 0
A118: 2.5 | B118: MR | C118: Supply & installation of Clean agent Fire Extinguisher 4 Kgs. Capacity with wall hook built in 1 piece with body and bottom. Mild Steel Body of 1.6 mm thickness with pressure gauge, refillable device and safety release device CE Certified Brass valve suitable for B and C Classes of Fire complete with Charge of Saclon II Eco (Gas) is also known as HFC Blend A, It is a blend of Hydro Fluoro carbon and organic detossificant essence P 26. The Extinguisher shall have pressure gauge for indicating inside pressure with opening and closing lever of squeeze grip type with tamper proof seal. The Extinguisher is externally epoxy powder coated as per IS: 5 Colour Shade No. 538 complete with wall bracket. Fire Extinguisher as per IS:15683-2006 with ISI Mark. (For operation theatre & ICU) | D118: No. | E118: 2 | G118: Rupees | H118: 0
A119: 2.6 | B119: MR | C119: Supplying and installing at approved location approved make fire buckets of 24 gauge galvanized steel sheet, standard 9 litre capacity and of round bottom shape, painted white inside and red outside and black on the bottom, inscribed with letters “FIRE” in black and gold. Cost shall be inclusive of providing MS stand for 2 nos of fire buckes, or , duly painted over a coat of primer. | D119: No. | E119: 3 | G119: Rupees | H119: 0
C120: GRAND TOTAL | G120: =FnConvert(H120) -> Rupees | H120: =SUM(H11:H119) -> 0

Sheet Signage
A1: CONSTRUCTION OF NEW PROPOSED OUT PATIENT BLOCK FOR GENERAL HOSPITAL, ALAPPUZHA -PART I
A3: ABSTRACT OF ESTIMATE - SIGNAGE WORKS
A4: Sl. No | B4: DSR No. | C4: DESCRIPTION | D4: UNIT | E4: QTY | F4: Rate (Rs.) in figures | G4: Rate (Rs.) in words | H4: Amount (Rs.)
A6: 1 | C6: FIRE SIGNAGES | F6: 0
A7: 1.1 | C7: Providing and installing in position the following type of sign boards made out of 3mm thick rigid PVC board with computer cut with texts written to recommended height in photolumiscent material complete vide technical specifications with mirror fasteners. Sizes and mounting height of the board shall be as per technical specification.
A8: 1.1.1 | C8: Signage with printed "IN CASE OF FIRE, USE STAIRS UNLESS INSTRUCTED OTHERWISE" of 1.5cm height letters in red with white back ground.The size of the board shall be 25cm x 30 cm and shall be fixed at the height of 2 mts. from finished floor near Manual call points.Auto Glo | D8: No. | E8: 21 | G8: =FnConvert(F8) -> Rupees | H8: =ROUND(F8*E8,0) -> 0
A9: 1.1.1 | C9: Life safety related signage's (EXIT, DIRECTION ARROWs i.e., left ,right ,straight ,down up, Both way )as per site condition. The size of the board shall be 10cm x 30 cm | D9: No. | E9: 140 | G9: Rupees | H9: =ROUND(F9*E9,0) -> 0
A10: 1.2 | C10: Providing and fixing in position the signage's " FIRE ORDER" it should contain the following matter on 3mm thick "Opaque" PVC foam board of computerized cut, PVC non-reflective self adhesive vinyl painted foam board of 4'' x 12''. | H10: 0
A11: 1.2.1 | C11: Alert the security at security room by actuating manual call point located at strategic locations.auto glo | D11: No | E11: 14 | G11: Rupees | H11: 0
A12: 1.2.2 | C12: Evacuate the occupants by using fire exits and emergency exits only and assemble at assembly point.auto glo | D12: No | E12: 14 | G12: Rupees | H12: 0
A13: 1.2.3 | C13: Be calm and do not give any room from panic, walk, do not run. | D13: No | E13: 14 | G13: Rupees | H13: 0
A14: 1.2.4 | C14: Action by security/reception upon receipt of information through fire alarm or fire detectors or by using public address system. | D14: No | E14: 1 | G14: Rupees | H14: 0
A15: 1.2.5 | C15: Alert the security / occupants / staff by using public address system. | D15: No | E15: 7 | G15: Rupees | H15: 0
A16: 1.2.6 | C16: Inform fire control through any one of the following phone numbers: | D16: No | E16: 14 | G16: Rupees | H16: 0
A17: 1.2.7 | C17: Refer evacuation plan from evacuating standard people. | D17: No | E17: 14 | G17: Rupees | H17: 0
A18: 1.2.8 | C18: Main master board site identification size | D18: No | E18: 7 | G18: Rupees | H18: 0
A19: 1.2.9 | C19: Assembly point 12"x12" | D19: No | E19: 1 | G19: Rupees | H19: 0
C20: TOTAL of FIRE SIGNAGE | G20: =FnConvert(H20) -> Rupees | H20: =SUM(H8:H19) -> 0

Sheet calculation sheet (hidden)
C2: Pile | D2: Pile cap | E2: Columns | F2: Lintels | G2: Beams | H2: sunshade | I2: slab | J2: Drain wall+slab | K2: Drain slab | L2: sump & pump room | M2: Lift wall | N2: Total
B3: Upto plinth | C3: 1675 | D3: 941.28 | E3: 17.54 | G3: 131.18 | I3: =238.86+5.81 -> 244.67 | J3: 57.62 | K3: 23 | L3: 101.81 | M3: 11.64 | N3: =E3+G3+I3+D3+M3+L3+J3+H3 -> 1505.74 | O3: 1515 | P3: =O3-N3 -> 9.26
B4: Ground floor | E4: 100.93 | F4: 20.57 | G4: 113.39 | H4: 39.79 | I4: 313.52 | L4: 94.6 | N4: =E4+F4+G4+H4+I4+J4+K4+L4+M4 -> 682.8 | O4: 685 | P4: 2.2 | Q4: ok
B5: First floor | E5: 93.3 | F5: 21.98 | G5: 112.28 | H5: 44.33 | I5: 273.37 | N5: =E5+F5+G5+H5+I5+J5+K5+L5+M5 -> 545.26 | O5: 550 | P5: 4.74 | Q5: ok
B6: Second floor | E6: 92.54 | F6: 19.81 | G6: 109.49 | H6: 44.96 | I6: 264.67 | N6: 531.47 | O6: 535 | P6: 3.53 | Q6: ok
B7: Third floor | E7: 92.54 | F7: 19.42 | G7: 111.2 | H7: 44.96 | I7: 264.3 | N7: 532.42 | O7: 535 | P7: 2.58 | Q7: ok
B8: Fourth Floor | E8: 92.54 | F8: 21.48 | G8: 111.54 | H8: 44.96 | I8: 264.05 | N8: 534.57 | O8: 540 | P8: 5.43 | Q8: ok
B9: Fifth Floor | E9: 92.54 | F9: 19.87 | G9: 111.33 | H9: 44.96 | I9: 263.7 | N9: 532.4 | O9: 535 | P9: 2.6 | Q9: ok
B10: Sixth Floor | E10: 92.54 | F10: 20.8 | G10: 107.4 | H10: 114.62 | I10: 275.56 | N10: 610.92 | O10: 615 | P10: 4.08 | Q10: ok
B11: Terrace | E11: 23.64 | F11: 3.75 | G11: 14.06 | H11: 0 | I11: =72.7 -> 72.7 | N11: 114.15 | O11: 115 | P11: 0.85 | Q11: ok
B12: Total | C12: =SUM(C3:C11) -> 1675 | D12: 941.28 | E12: 698.11 | F12: 147.68 | G12: 921.87 | H12: 378.58 | I12: 2236.54 | J12: 57.62 | K12: 23 | L12: 196.41 | M12: 11.64 | N12: 5589.73 | O12: =SUM(O4:O11) -> 4110
B13: Total as per rft sheet | C13: 1675 | D13: 950 | E13: 711 | F13: 144 | G13: 933 | H13: 380 | I13: 2238 | J13: 60 | K13: 23 | L13: 197 | M13: 12
B14: difference | C14: =C13-C12 -> 0 | D14: =D13-D12 -> 8.72 | E14: 12.89 | F14: -3.68 | G14: 11.13 | H14: 1.42 | I14: 1.46 | J14: 2.38 | K14: 0 | L14: 0.59 | M14: 0.36
C15: 100 | D15: 150 | E15: 200 | F15: 90 | G15: 150 | H15: 90 | I15: 120 | J15: 90 | K15: 120 | L15: 120 | M15: 120
C16: =C15*C13 -> 167500 | D16: =D15*D13 -> 142500 | E16: 142200 | F16: 12960 | G16: 139950 | H16: 34200 | I16: 268560 | J16: 5400 | K16: 2760 | L16: 23640 | M16: 1440
C17: =C16+D16+E16+F16+G16+H16+I16+K16+J16+L16+M16 -> 941110
B21: Final for steel
C23: Pile | D23: Pile cap | E23: Columns | F23: Lintels | G23: Beams | H23: sunshade | I23: slab | J23: Drain wall+slab | K23: Drain slab | L23: sump & pump room | M23: Lift wall | N23: Total
B24: Upto plinth | C24: 1675 | D24: =8.72+941.28 -> 950 | E24: 17.5 | G24: 131.2 | I24: 244.7 | J24: 58 | K24: 23 | L24: 101.8 | M24: 12 | N24: =E24+G24+I24+D24+M24+L24+J24+H24 -> 1515.2 | O24: 1515 | P24: =O24-N24 -> -0.2 | R24: 244.67 | S24: 244.7
B25: Ground floor | E25: 102 | F25: 20.57 | G25: 114 | H25: 39.79 | I25: 313.44 | L25: 95.2 | N25: =E25+F25+G25+H25+I25+J25+K25+L25+M25 -> 685 | O25: 685 | P25: 0 | Q25: ok | R25: 313.52 | S25: 313.55
B26: First floor | E26: 94.5 | F26: 21.98 | G26: 115 | H26: =0.65+44.33 -> 44.98 | I26: 273.4 | N26: =E26+F26+G26+H26+I26+J26+K26+L26+M26 -> 549.86 | O26: 550 | P26: 0.14 | Q26: ok | R26: 273.37 | S26: 273.4
B27: Second floor | E27: 94.5 | F27: 19.81 | G27: 110.5 | H27: =0.23+44.96 -> 45.19 | I27: 265 | N27: 535 | O27: 535 | P27: 0 | Q27: ok | R27: 264.67 | S27: 265
B28: Third floor | E28: 94.5 | F28: 19.42 | G28: 111.5 | H28: =0.16+44.96 -> 45.12 | I28: 264.46 | N28: 535 | O28: 535 | P28: 0 | Q28: ok | R28: 264.3 | S28: 264.35
B29: Fourth Floor | E29: 94 | F29: 21.48 | G29: 114.3 | H29: =0.26+44.96 -> 45.22 | I29: 265 | N29: 540 | O29: 540 | P29: 0 | Q29: ok | R29: 264.05 | S29: 265
B30: Fifth Floor | E30: 95 | F30: 19.87 | G30: 111.35 | H30: =0.12+44.96 -> 45.08 | I30: 263.7 | N30: 535 | O30: 535 | P30: 0 | Q30: ok | R30: 263.7 | S30: 263.7
B31: Sixth Floor | E31: 95 | F31: =20.8-3.68 -> 17.12 | G31: 110.65 | H31: 114.62 | I31: 275.6 | N31: 612.99 | O31: 615 | P31: 2.01 | Q31: ok | R31: 275.56 | S31: 275.6
B32: Terrace | E32: 24 | F32: 3.75 | G32: 14.5 | H32: 0 | I32: 72.7 | N32: 114.95 | O32: 115 | P32: 0.05 | Q32: ok | R32: 72.7 | S32: 72.7
B33: Total | C33: =SUM(C24:C32) -> 1675 | D33: 950 | E33: 711 | F33: 144 | G33: 933 | H33: 380 | I33: 2238 | J33: 58 | K33: 23 | L33: 197 | M33: 12 | N33: 5623 | O33: 5625 | R33: 2236.54 | S33: =SUM(S24:S32) -> 2238
B34: Total as per rft sheet | C34: 1675 | D34: 950 | E34: 711 | F34: 144 | G34: 933 | H34: 380 | I34: 2238 | J34: 60 | K34: 23 | L34: 197 | M34: 12
B35: difference | C35: =C34-C33 -> 0 | D35: =D34-D33 -> 0 | E35: 0 | F35: 0 | G35: 0 | H35: 0 | I35: 0 | J35: 2 | K35: 0 | L35: 0 | M35: 0
C36: 100 | D36: 150 | E36: 200 | F36: 90 | G36: 150 | H36: 90 | I36: 120 | J36: 90 | K36: 120 | L36: 120 | M36: 120
C37: =C36*C34 -> 167500 | D37: =D36*D34 -> 142500 | E37: 142200 | F37: 12960 | G37: 139950 | H37: 34200 | I37: 268560 | J37: 5400 | K37: 2760 | L37: 23640 | M37: 1440
C38: =C37+D37+E37+F37+G37+H37+I37+K37+J37+L37+M37 -> 941110
B39: Final for concrete
C41: Pile | D41: Pile cap | E41: Columns | F41: Lintels | G41: Beams | H41: sunshade | I41: slab | J41: Drain wall+slab | K41: Drain slab | L41: sump & pump room | M41: Lift wall | N41: Total
B42: Upto plinth | C42: 1675 | D42: =8.72+941.28 -> 950 | E42: 17.5 | G42: 131.2 | I42: 244.7 | J42: =0.18+57.62 -> 57.8 | K42: 23 | L42: 101.8 | M42: 12 | N42: =E42+G42+I42+D42+M42+L42+J42+H42 -> 1515 | O42: 1515 | P42: =O42-N42 -> 0 | R42: 244.67 | S42: 244.7
B43: Ground floor | E43: 102 | F43: 20.57 | G43: 114 | H43: 39.79 | I43: 313.44 | L43: 95.2 | N43: =E43+F43+G43+H43+I43+J43+K43+L43+M43 -> 685 | O43: 685 | P43: 0 | Q43: ok | R43: 313.52 | S43: 313.55
B44: First floor | E44: 94.5 | F44: =21.98+0.02 -> 22 | G44: 115 | H44: =0.65+44.33+0.12 -> 45.1 | I44: 273.4 | N44: =E44+F44+G44+H44+I44+J44+K44+L44+M44 -> 550 | O44: 550 | P44: 0 | Q44: ok | R44: 273.37 | S44: 273.4
B45: Second floor | E45: 94.5 | F45: 19.81 | G45: 110.5 | H45: =0.23+44.96 -> 45.19 | I45: 265 | N45: 535 | O45: 535 | P45: 0 | Q45: ok | R45: 264.67 | S45: 265
B46: Third floor | E46: 94.5 | F46: 19.42 | G46: 111.5 | H46: =0.16+44.96 -> 45.12 | I46: 264.46 | N46: 535 | O46: 535 | P46: 0 | Q46: ok | R46: 264.3 | S46: 264.35
B47: Fourth Floor | E47: 94 | F47: 21.48 | G47: 114.3 | H47: =0.26+44.96 -> 45.22 | I47: 265 | N47: 540 | O47: 540 | P47: 0 | Q47: ok | R47: 264.05 | S47: 265
B48: Fifth Floor | E48: 95 | F48: 19.87 | G48: 111.35 | H48: =0.12+44.96 -> 45.08 | I48: 263.7 | N48: 535 | O48: 535 | P48: 0 | Q48: ok | R48: 263.7 | S48: 263.7
B49: Sixth Floor | E49: 95 | F49: =20.8 -> 20.8 | G49: =110.65-1.67 -> 108.98 | H49: 114.62 | I49: 275.6 | N49: 615 | O49: 615 | P49: 0 | Q49: ok | R49: 275.56 | S49: 275.6
B50: Terrace | E50: 24 | F50: 3.75 | G50: 14.55 | H50: 0 | I50: 72.7 | N50: 115 | O50: 115 | P50: 0 | Q50: ok | R50: 72.7 | S50: 72.7
B51: Total | C51: =SUM(C42:C50) -> 1675 | D51: 950 | E51: 711 | F51: 147.7 | G51: 931.38 | H51: 380.12 | I51: 2238 | J51: 57.8 | K51: 23 | L51: 197 | M51: 12 | N51: 5625 | O51: 5625 | R51: 2236.54 | S51: =SUM(S42:S50) -> 2238

Sheet Sheet1 (hidden)
A2: Description | B2: Nos | C2: Nos | D2: L | E2: B | F2: D | G2: Qty | H2: 1 | I2: Remarks
A3: Raft | H3: 1 | I3: Raft
A4: Porch area | B4: 1 | C4: 1 | D4: 9.23 | E4: 13.11 | F4: 0.3 | G4: =ROUND(PRODUCT(B4:F4),2) -> 36.3 | H4: 1 | I4: Raft
A5: Central area | B5: 1 | C5: 1 | D5: 41.65 | E5: 27.23 | F5: 0.3 | G5: 340.24 | H5: 1 | I5: Raft
A6: Block B & C area | B6: 1 | C6: 1 | D6: 29.58 | E6: 14.04 | F6: 0.3 | G6: 124.59 | H6: 1 | I6: Raft
A7: Block B & C area | B7: 1 | C7: 1 | D7: 13.26 | E7: 6.92 | F7: 0.3 | G7: 27.53 | H7: 1 | I7: Raft
A8: Block B & C area | B8: 1 | C8: 1 | D8: 5.43 | E8: 1.22 | F8: 0.3 | G8: 1.99 | H8: 1 | I8: Raft
A9: Block G & F area | B9: 1 | C9: 1 | D9: 29.58 | E9: 15.55 | F9: 0.3 | G9: 137.99 | H9: 1 | I9: Raft
A10: Block G & F area | B10: 1 | C10: 1 | D10: 13.26 | E10: 6.91 | F10: 0.3 | G10: 27.49 | H10: 1 | I10: Raft
A11: Block G & F area | B11: 1 | C11: 1 | D11: 5.43 | E11: 1.24 | F11: 0.3 | G11: 2.02 | H11: 1 | I11: Raft
A12: B/w ramp & doctors entry | B12: 1 | C12: 1 | D12: 6.81 | E12: 19.42 | F12: 0.3 | G12: 39.68 | H12: 1 | I12: Raft
A13: Block D & E area | B13: 1 | C13: 1 | D13: 29.9 | E13: 41.42 | F13: 0.3 | G13: 371.54 | H13: 1 | I13: Raft
A14: Ramp | B14: 1 | C14: 1 | D14: 31.35 | E14: 6.81 | F14: 0.3 | G14: 64.05 | H14: 1 | I14: Raft
A15: Raft Beams | H15: 1 | I15: Raft beam
A16: Along Grid A/8-26 | B16: 1 | C16: 1 | D16: 26.65 | E16: 0.5 | F16: 0.7 | G16: 9.33 | H16: 1 | I16: Raft beam
A17: Along Grid B/8-15 | B17: 1 | C17: 1 | D17: 19.92 | E17: 0.5 | F17: 0.7 | G17: 6.97 | H17: 1 | I17: Raft beam
A18: Along Grid D/1-12 | B18: 1 | C18: 1 | D18: 30.51 | E18: 0.5 | F18: 0.7 | G18: 10.68 | H18: 1 | I18: Raft beam
A19: Along Grid D/13-12 | B19: 1 | C19: 1 | D19: 5.1 | E19: 0.5 | F19: 0.7 | G19: 1.79 | H19: 1 | I19: Raft beam
A20: Along Grid E/8-15 | B20: 1 | C20: 1 | D20: 19.67 | E20: 0.5 | F20: 0.7 | G20: 6.88 | H20: 1 | I20: Raft beam
A21: Along Grid F/8-11 | B21: 1 | C21: 1 | D21: 4.29 | E21: 0.5 | F21: 0.7 | G21: 1.5 | H21: 1 | I21: Raft beam
A22: Along Grid H/4-25 | B22: 1 | C22: 1 | D22: 62.68 | E22: 0.5 | F22: 0.7 | G22: 21.94 | H22: 1 | I22: Raft beam
A23: Along Grid I/4-23 | B23: 1 | C23: 1 | D23: 55.7 | E23: 0.5 | F23: 0.7 | G23: 19.5 | H23: 1 | I23: Raft beam
A24: Along Grid J/13-14 | B24: 1 | C24: 1 | D24: 5.83 | E24: 0.5 | F24: 0.7 | G24: 2.04 | H24: 1 | I24: Raft beam
A25: Along Grid L/13-14 | B25: 1 | C25: 1 | D25: 5.49 | E25: 0.5 | F25: 0.7 | G25: 1.92 | H25: 1 | I25: Raft beam
A26: Along Grid M/4-10 | B26: 1 | C26: 1 | D26: 15.81 | E26: 0.5 | F26: 0.7 | G26: 5.53 | H26: 1 | I26: Raft beam
A27: Along Grid M/15-23 | B27: 1 | C27: 1 | D27: 22.13 | E27: 0.5 | F27: 0.7 | G27: 7.75 | H27: 1 | I27: Raft beam
A28: Along Grid H/19-25 | B28: 1 | C28: 1 | D28: 21.55 | E28: 0.5 | F28: 0.7 | G28: 7.54 | H28: 1 | I28: Raft beam
A29: Along Grid D/19-26 | B29: 1 | C29: 1 | D29: 22.81 | E29: 0.5 | F29: 0.7 | G29: 7.98 | H29: 1 | I29: Raft beam
A30: Along Grid B/15-18 | B30: 1 | C30: 1 | D30: 6.48 | E30: 0.5 | F30: 0.9 | G30: 2.92 | H30: 1 | I30: Raft beam
A31: Along Grid D/15-18 | B31: 1 | C31: 1 | D31: 6.48 | E31: 0.5 | F31: 0.9 | G31: 2.92 | H31: 1 | I31: Raft beam
A32: Along Grid E/15-26 | B32: 1 | C32: 1 | D32: 30.14 | E32: 0.5 | F32: 0.9 | G32: 13.56 | H32: 1 | I32: Raft beam
A33: Along Grid F/15-26 | B33: 1 | C33: 1 | D33: 30.14 | E33: 0.5 | F33: 0.9 | G33: 13.56 | H33: 1 | I33: Raft beam
A34: Along Grid E/1-8 | B34: 1 | C34: 1 | D34: 22.15 | E34: 0.5 | F34: 0.9 | G34: 9.97 | H34: 1 | I34: Raft beam
A35: Along Grid F/2-8 | B35: 1 | C35: 1 | D35: 21.24 | E35: 0.5 | F35: 0.9 | G35: 9.56 | H35: 1 | I35: Raft beam
A36: Along Grid H/2-4 | B36: 1 | C36: 1 | D36: 7.2 | E36: 0.5 | F36: 0.9 | G36: 3.24 | H36: 1 | I36: Raft beam
A37: Along Grid J/4-12 | B37: 1 | C37: 1 | D37: 21.85 | E37: 0.5 | F37: 0.9 | G37: 9.83 | H37: 1 | I37: Raft beam
A38: Along Grid J/15-23 | B38: 1 | C38: 1 | D38: 21.85 | E38: 0.5 | F38: 0.9 | G38: 9.83 | H38: 1 | I38: Raft beam
A39: Along Grid K/4-23 | B39: 1 | C39: 1 | D39: 55.73 | E39: 0.5 | F39: 0.9 | G39: 25.08 | H39: 1 | I39: Raft beam
A40: Along Grid L/4-12 | B40: 1 | C40: 1 | D40: 21.9 | E40: 0.5 | F40: 0.9 | G40: 9.86 | H40: 1 | I40: Raft beam
A41: Along Grid M/10-15 | B41: 1 | C41: 1 | D41: 18.55 | E41: 0.5 | F41: 0.9 | G41: 8.35 | H41: 1 | I41: Raft beam
A42: Along Grid L/15-23 | B42: 1 | C42: 1 | D42: 21.12 | E42: 0.5 | F42: 0.9 | G42: 9.5 | H42: 1 | I42: Raft beam
A43: Along Grid Q/10-15 | B43: 1 | C43: 1 | D43: 18.21 | E43: 0.5 | F43: 0.9 | G43: 8.19 | H43: 1 | I43: Raft beam
A44: Along Grid R/5-21 | B44: 1 | C44: 1 | D44: 40.4 | E44: 0.5 | F44: 0.9 | G44: 18.18 | H44: 1 | I44: Raft beam
A45: Along Grid S/5-21 | B45: 1 | C45: 1 | D45: 40.4 | E45: 0.5 | F45: 0.9 | G45: 18.18 | H45: 1 | I45: Raft beam
A46: Along Grid T/5-21 | B46: 1 | C46: 1 | D46: 40.4 | E46: 0.5 | F46: 0.9 | G46: 18.18 | H46: 1 | I46: Raft beam
A47: Along Grid U/5-21 | B47: 1 | C47: 1 | D47: 40.4 | E47: 0.5 | F47: 0.9 | G47: 18.18 | H47: 1 | I47: Raft beam
A48: Along Grid V/5-21 | B48: 1 | C48: 1 | D48: 40.4 | E48: 0.5 | F48: 0.9 | G48: 18.18 | H48: 1 | I48: Raft beam
A49: Along Grid W/5-21 | B49: 1 | C49: 1 | D49: 40.4 | E49: 0.5 | F49: 0.9 | G49: 18.18 | H49: 1 | I49: Raft beam
A50: Along Grid 3/D-I | B50: 1 | C50: 1 | D50: 12.55 | E50: 0.5 | F50: 0.9 | G50: 5.65 | H50: 1 | I50: Raft beam
A51: Along Grid 5/D-I | B51: 1 | C51: 1 | D51: 12.55 | E51: 0.5 | F51: 0.9 | G51: 5.65 | H51: 1 | I51: Raft beam
A52: Along Grid 22/D-I | B52: 1 | C52: 1 | D52: 12.55 | E52: 0.5 | F52: 0.9 | G52: 5.65 | H52: 1 | I52: Raft beam
A53: Along Grid 24/D-I | B53: 1 | C53: 1 | D53: 12.55 | E53: 0.5 | F53: 0.9 | G53: 5.65 | H53: 1 | I53: Raft beam
A54: Along Grid 11/M-Q | B54: 1 | C54: 1 | D54: 6.91 | E54: 0.5 | F54: 0.9 | G54: 3.11 | H54: 1 | I54: Raft beam
A55: Along Grid 12/M-Q | B55: 1 | C55: 1 | D55: 6.91 | E55: 0.5 | F55: 0.9 | G55: 3.11 | H55: 1 | I55: Raft beam
A56: Along Grid 13/M-Q | B56: 1 | C56: 1 | D56: 6.91 | E56: 0.5 | F56: 0.9 | G56: 3.11 | H56: 1 | I56: Raft beam
A57: Along Grid 14/M-Q | B57: 1 | C57: 1 | D57: 6.91 | E57: 0.5 | F57: 0.9 | G57: 3.11 | H57: 1 | I57: Raft beam
A58: Along Grid 5/R-W | B58: 1 | C58: 1 | D58: 29.3 | E58: 0.5 | F58: 0.9 | G58: 13.19 | H58: 1 | I58: Raft beam
A59: Along Grid 8/R-W | B59: 1 | C59: 1 | D59: 29.3 | E59: 0.5 | F59: 0.9 | G59: 13.19 | H59: 1 | I59: Raft beam
A60: Along Grid 10/R-W | B60: 1 | C60: 1 | D60: 29.3 | E60: 0.5 | F60: 0.9 | G60: 13.19 | H60: 1 | I60: Raft beam
A61: Along Grid 12/R-W | B61: 1 | C61: 1 | D61: 29.3 | E61: 0.5 | F61: 0.9 | G61: 13.19 | H61: 1 | I61: Raft beam
A62: Along Grid 13/R-W | B62: 1 | C62: 1 | D62: 29.3 | E62: 0.5 | F62: 0.9 | G62: 13.19 | H62: 1 | I62: Raft beam
A63: Along Grid 16/R-W | B63: 1 | C63: 1 | D63: 29.3 | E63: 0.5 | F63: 0.9 | G63: 13.19 | H63: 1 | I63: Raft beam
A64: Along Grid 18/R-W | B64: 1 | C64: 1 | D64: 29.3 | E64: 0.5 | F64: 0.9 | G64: 13.19 | H64: 1 | I64: Raft beam
A65: Along Grid 20/R-W | B65: 1 | C65: 1 | D65: 29.3 | E65: 0.5 | F65: 0.9 | G65: 13.19 | H65: 1 | I65: Raft beam
A66: Along Grid 1/D-E | B66: 1 | C66: 1 | D66: 4.78 | E66: 0.5 | F66: 0.7 | G66: 1.67 | H66: 1 | I66: Raft beam
A67: Along Grid 2/E-I | B67: 1 | C67: 1 | D67: 8.06 | E67: 0.5 | F67: 0.7 | G67: 2.82 | H67: 1 | I67: Raft beam
A68: Along Grid 4/D-M | B68: 1 | C68: 1 | D68: 28.98 | E68: 0.5 | F68: 0.7 | G68: 10.14 | H68: 1 | I68: Raft beam
A69: Along Grid 5/I-M | B69: 1 | C69: 1 | D69: 16.2 | E69: 0.5 | F69: 0.7 | G69: 5.67 | H69: 1 | I69: Raft beam
A70: Along Grid 6/D-M | B70: 1 | C70: 1 | D70: 28.98 | E70: 0.5 | F70: 0.7 | G70: 10.14 | H70: 1 | I70: Raft beam
A71: Along Grid 7/D-G | B71: 1 | C71: 1 | D71: 8.6 | E71: 0.5 | F71: 0.7 | G71: 3.01 | H71: 1 | I71: Raft beam
A72: Along Grid 8/A-F | B72: 1 | C72: 1 | D72: 20 | E72: 0.5 | F72: 0.7 | G72: 7 | H72: 1 | I72: Raft beam
A73: Along Grid 9/G-H | B73: 1 | C73: 1 | D73: 4.5 | E73: 0.5 | F73: 0.7 | G73: 1.58 | H73: 1 | I73: Raft beam
A74: Along Grid 10/G-H | B74: 1 | C74: 1 | D74: 4.68 | E74: 0.5 | F74: 0.7 | G74: 1.64 | H74: 1 | I74: Raft beam
A75: Along Grid 10/A-H | B75: 1 | C75: 1 | D75: 24.56 | E75: 0.5 | F75: 0.7 | G75: 8.6 | H75: 1 | I75: Raft beam
A76: Along Grid 11/A-H | B76: 1 | C76: 1 | D76: 24.56 | E76: 0.5 | F76: 0.7 | G76: 8.6 | H76: 1 | I76: Raft beam
A77: Along Grid 12/A-H | B77: 1 | C77: 1 | D77: 24.56 | E77: 0.5 | F77: 0.7 | G77: 8.6 | H77: 1 | I77: Raft beam
A78: Along Grid 13/A-H | B78: 1 | C78: 1 | D78: 24.56 | E78: 0.5 | F78: 0.7 | G78: 8.6 | H78: 1 | I78: Raft beam
A79: Along Grid 14/A-H | B79: 1 | C79: 1 | D79: 24.56 | E79: 0.5 | F79: 0.7 | G79: 8.6 | H79: 1 | I79: Raft beam
A80: Along Grid 15/A-H | B80: 1 | C80: 1 | D80: 24.56 | E80: 0.5 | F80: 0.7 | G80: 8.6 | H80: 1 | I80: Raft beam
A81: Along Grid 18/A-H | B81: 1 | C81: 1 | D81: 24.56 | E81: 0.5 | F81: 0.7 | G81: 8.6 | H81: 1 | I81: Raft beam
A82: Along Grid 19/A-H | B82: 1 | C82: 1 | D82: 12.66 | E82: 0.5 | F82: 0.7 | G82: 4.43 | H82: 1 | I82: Raft beam
A83: Along Grid 20/A-H | B83: 1 | C83: 1 | D83: 12.66 | E83: 0.5 | F83: 0.7 | G83: 4.43 | H83: 1 | I83: Raft beam
A84: Along Grid 23/A-H | B84: 1 | C84: 1 | D84: 12.66 | E84: 0.5 | F84: 0.7 | G84: 4.43 | H84: 1 | I84: Raft beam
A85: Along Grid 25/E-H | B85: 1 | C85: 1 | D85: 8.03 | E85: 0.5 | F85: 0.7 | G85: 2.81 | H85: 1 | I85: Raft beam
A86: Along Grid 26/D-E | B86: 1 | C86: 1 | D86: 4.83 | E86: 0.5 | F86: 0.7 | G86: 1.69 | H86: 1 | I86: Raft beam
A87: Along Grid 10/I-Q | B87: 1 | C87: 1 | D87: 23.13 | E87: 0.5 | F87: 0.7 | G87: 8.1 | H87: 1 | I87: Raft beam
A88: Along Grid 12/I-M | B88: 1 | C88: 1 | D88: 16.2 | E88: 0.5 | F88: 0.7 | G88: 5.67 | H88: 1 | I88: Raft beam
A89: Along Grid 13/I-M | B89: 1 | C89: 1 | D89: 16.2 | E89: 0.5 | F89: 0.7 | G89: 5.67 | H89: 1 | I89: Raft beam
A90: Along Grid 15/I-Q | B90: 1 | C90: 1 | D90: 23.07 | E90: 0.5 | F90: 0.7 | G90: 8.07 | H90: 1 | I90: Raft beam
A91: Along Grid 18/I-M | B91: 1 | C91: 1 | D91: 16.2 | E91: 0.5 | F91: 0.7 | G91: 5.67 | H91: 1 | I91: Raft beam
A92: Along Grid 20/I-M | B92: 1 | C92: 1 | D92: 16.2 | E92: 0.5 | F92: 0.7 | G92: 5.67 | H92: 1 | I92: Raft beam
A93: Along Grid 22/I-M | B93: 1 | C93: 1 | D93: 16.2 | E93: 0.5 | F93: 0.7 | G93: 5.67 | H93: 1 | I93: Raft beam
A94: Along Grid 23/I-M | B94: 1 | C94: 1 | D94: 16.2 | E94: 0.5 | F94: 0.7 | G94: 5.67 | H94: 1 | I94: Raft beam
A95: Ramp (Longer side) | B95: 1 | C95: 3 | D95: 31.32 | E95: 0.5 | F95: 0.7 | G95: 32.89 | H95: 1 | I95: Raft beam
A96: Ramp (Shorter side) | B96: 1 | C96: 5 | D96: 5.16 | E96: 0.5 | F96: 0.7 | G96: 9.03 | H96: 1 | I96: Raft beam
A97: Column Pedestal | H97: 1 | I97: Column Pedestal
A98: Column 0.4mX0.35m | B98: 88 | C98: 1 | D98: 0.55 | E98: 0.5 | F98: 0.9 | G98: 21.78 | H98: 1 | I98: Column Pedestal
A99: Column 0.4mX0.4m | B99: 54 | C99: 1 | D99: 0.55 | E99: 0.55 | F99: 0.9 | G99: 14.7 | H99: 1 | I99: Column Pedestal
A100: Column 0.45mX0.5m | B100: 30 | C100: 1 | D100: 0.6 | E100: 0.65 | F100: 0.9 | G100: 10.53 | H100: 1 | I100: Column Pedestal
A101: Column 0.5mX0.5m | B101: 22 | C101: 1 | D101: 0.65 | E101: 0.65 | F101: 0.9 | G101: 8.37 | H101: 1 | I101: Column Pedestal
A102: Column 0.4mX0.65m | B102: 5 | C102: 1 | D102: 0.55 | E102: 0.8 | F102: 0.9 | G102: 1.98 | H102: 1 | I102: Column Pedestal
A103: Ramp | H103: 1 | I103: Column Pedestal
A104: Column 0.4mX0.35m | B104: 18 | C104: 1 | D104: 0.55 | E104: 0.5 | F104: 0.9 | G104: 4.46 | H104: 1 | I104: Column Pedestal
A105: Columns | H105: 1 | I105: Column
A106: Column 0.4mX0.35m | B106: 4 | C106: 1 | D106: 0.4 | E106: 0.35 | F106: 0.6 | G106: 0.34 | H106: 1 | I106: Column
A107: Column 0.4mX0.35m | B107: =88-4-24 -> 60 | C107: 1 | D107: 0.4 | E107: 0.35 | F107: 0.6 | G107: 5.04 | H107: 1 | I107: Column
A108: Column 0.4mX0.35m | B108: 24 | C108: 1 | D108: 0.4 | E108: 0.35 | F108: 0.6 | G108: 2.02 | H108: 1 | I108: Column
A109: Column 0.4mX0.4m | B109: 2 | C109: 1 | D109: 0.4 | E109: 0.4 | F109: 0.6 | G109: 0.19 | H109: 1 | I109: Column
A110: Column 0.4mX0.4m | B110: =54-2-10 -> 42 | C110: 1 | D110: 0.4 | E110: 0.4 | F110: 0.6 | G110: 4.03 | H110: 1 | I110: Column
A111: Column 0.4mX0.4m | B111: 10 | C111: 1 | D111: 0.4 | E111: 0.4 | F111: 0.6 | G111: 0.96 | H111: 1 | I111: Column
A112: Column 0.45mX0.5m | B112: =30-7 -> 23 | C112: 1 | D112: 0.45 | E112: 0.5 | F112: 0.6 | G112: 3.11 | H112: 1 | I112: Column
A113: Column 0.45mX0.5m | B113: 7 | C113: 1 | D113: 0.45 | E113: 0.5 | F113: 0.6 | G113: 0.95 | H113: 1 | I113: Column
A114: Column 0.5mX0.5m | B114: =22-1 -> 21 | C114: 1 | D114: 0.5 | E114: 0.5 | F114: 0.6 | G114: 3.15 | H114: 1 | I114: Column
A115: Column 0.5mX0.5m | B115: 1 | C115: 1 | D115: 0.5 | E115: 0.5 | F115: 0.6 | G115: 0.15 | H115: 1 | I115: Column
A116: Column 0.4mX0.65m | B116: 5 | C116: 1 | D116: 0.4 | E116: 0.65 | F116: 0.6 | G116: 0.78 | H116: 1 | I116: Column
A117: Ramp | H117: 1 | I117: Column
A118: Column 0.4mX0.35m | B118: 18 | C118: 1 | D118: 0.4 | E118: 0.35 | F118: 0.6 | G118: 1.51 | H118: 1 | I118: Column
A119: Plinth Level | H119: 1
A120: Plinth Beam | H120: 1 | I120: Plinth Beam
A121: Grid A,B/17-7, 300 X 600 | B121: 1 | C121: 2 | D121: 26.14 | E121: 0.3 | F121: 0.475 | G121: =ROUND(PRODUCT(B121:F121),2) -> 7.45 | H121: 1 | I121: Plinth Beam
A122: Grid 8/A-F, 300 X 600 | B122: 1 | C122: 1 | D122: 19.66 | E122: 0.3 | F122: 0.475 | G122: 2.8 | H122: 1 | I122: Plinth Beam
A123: Grid 11,12,13,14,15,17/A-H, 300 X 600 | B123: 1 | C123: 6 | D123: 24.09 | E123: 0.3 | F123: 0.475 | G123: 20.6 | H123: 1 | I123: Plinth Beam
A124: Grid C/13-14, 300 X 600 | B124: 1 | C124: 1 | D124: 5.26 | E124: 0.3 | F124: 0.475 | G124: 0.75 | H124: 1 | I124: Plinth Beam
A125: Grid D/1-12, 300 X 600 | B125: 1 | C125: 1 | D125: 29.98 | E125: 0.3 | F125: 0.475 | G125: 4.27 | H125: 1 | I125: Plinth Beam
A126: Grid E/15-8, 300 X 600 | B126: 1 | C126: 1 | D126: 19.59 | E126: 0.3 | F126: 0.475 | G126: 2.79 | H126: 1 | I126: Plinth Beam
A127: Grid 1/D-E, 300 X 600 | B127: 1 | C127: 1 | D127: 4.43 | E127: 0.3 | F127: 0.475 | G127: 0.63 | H127: 1 | I127: Plinth Beam
A128: Grid 2/E-H, 300 X 600 | B128: 1 | C128: 1 | D128: 7.83 | E128: 0.3 | F128: 0.475 | G128: 1.12 | H128: 1 | I128: Plinth Beam
A129: Grid 4,6/D-H, 300 X 600 | B129: 1 | C129: 2 | D129: 12.26 | E129: 0.3 | F129: 0.475 | G129: 3.49 | H129: 1 | I129: Plinth Beam
A130: Grid 7/D-F, 300 X 600 | B130: 1 | C130: 1 | D130: 7.83 | E130: 0.3 | F130: 0.475 | G130: 1.12 | H130: 1 | I130: Plinth Beam
A131: Grid G/9-7, 300 X 600 | B131: 1 | C131: 1 | D131: 1.63 | E131: 0.3 | F131: 0.475 | G131: 0.23 | H131: 1 | I131: Plinth Beam
A132: Grid F/8-11, 300 X 600 | B132: 1 | C132: 1 | D132: 4.02 | E132: 0.3 | F132: 0.475 | G132: 0.57 | H132: 1 | I132: Plinth Beam
A133: Grid 10/F-H, 300 X 600 | B133: 1 | C133: 1 | D133: 4.43 | E133: 0.3 | F133: 0.475 | G133: 0.63 | H133: 1 | I133: Plinth Beam
A134: Grid 9/G-H, 300 X 600 | B134: 1 | C134: 1 | D134: 4.05 | E134: 0.3 | F134: 0.475 | G134: 0.58 | H134: 1 | I134: Plinth Beam
A135: Grid H/4-19, 300 X 600 | B135: 1 | C135: 1 | D135: 40.17 | E135: 0.3 | F135: 0.475 | G135: 5.72 | H135: 1 | I135: Plinth Beam
A136: Grid H/26-20, 300 X 600 | B136: 1 | C136: 1 | D136: 21.6 | E136: 0.3 | F136: 0.475 | G136: 3.08 | H136: 1 | I136: Plinth Beam
A137: Grid D/20-27, 300 X 600 | B137: 1 | C137: 1 | D137: 22.85 | E137: 0.3 | F137: 0.475 | G137: 3.26 | H137: 1 | I137: Plinth Beam
A138: Grid 27/D-E, 300 X 600 | B138: 1 | C138: 1 | D138: 4.43 | E138: 0.3 | F138: 0.475 | G138: 0.63 | H138: 1 | I138: Plinth Beam
A139: Grid I/24-4, 300 X 600 | B139: 1 | C139: 1 | D139: 55.7 | E139: 0.3 | F139: 0.475 | G139: 7.94 | H139: 1 | I139: Plinth Beam
A140: Grid 4/I-M, 300 X 600 | B140: 1 | C140: 1 | D140: 15.79 | E140: 0.3 | F140: 0.475 | G140: 2.25 | H140: 1 | I140: Plinth Beam
A141: Grid 3,5,23,25/D-H, 300 X 600 | B141: 1 | C141: 4 | D141: 12.26 | E141: 0.3 | F141: 0.475 | G141: 6.99 | H141: 1 | I141: Plinth Beam
A142: Grid 20,21,24/D-H, 300 X 600 | B142: 1 | C142: 3 | D142: 12.26 | E142: 0.3 | F142: 0.475 | G142: 5.24 | H142: 1 | I142: Plinth Beam
A143: Grid E/1-8, 300 X 600 | B143: 1 | C143: 1 | D143: 22.18 | E143: 0.3 | F143: 0.475 | G143: 3.16 | H143: 1 | I143: Plinth Beam
A144: Grid E/2-8, 300 X 600 | B144: 1 | C144: 1 | D144: 20.93 | E144: 0.3 | F144: 0.475 | G144: 2.98 | H144: 1 | I144: Plinth Beam
A145: Grid 25/D-E, 300 X 600 | B145: 1 | C145: 1 | D145: 4.2 | E145: 0.3 | F145: 0.475 | G145: 0.6 | H145: 1 | I145: Plinth Beam
A146: Grid D/19-15, 300 X 600 | B146: 1 | C146: 1 | D146: 9.71 | E146: 0.3 | F146: 0.475 | G146: 1.38 | H146: 1 | I146: Plinth Beam
A147: Grid E/15-27, 300 X 600 | B147: 1 | C147: 1 | D147: 30.22 | E147: 0.3 | F147: 0.475 | G147: 4.31 | H147: 1 | I147: Plinth Beam
A148: Grid F/15-26, 300 X 600 | B148: 1 | C148: 1 | D148: 28.97 | E148: 0.3 | F148: 0.475 | G148: 4.13 | H148: 1 | I148: Plinth Beam
A149: Grid H-E/26, 300 X 600 | B149: 1 | C149: 1 | D149: 7.83 | E149: 0.3 | F149: 0.475 | G149: 1.12 | H149: 1 | I149: Plinth Beam
A150: Grid 5,6,10,21,23/J-M, 300 X 600 | B150: 1 | C150: 1 | D150: 12.26 | E150: 0.3 | F150: 0.475 | G150: 1.75 | H150: 1 | I150: Plinth Beam
A151: Grid 24,19,12,13,14/H-M, 300 X 600 | B151: 1 | C151: 5 | D151: 16.32 | E151: 0.3 | F151: 0.475 | G151: 11.63 | H151: 1 | I151: Plinth Beam
A152: Grid I-Q/15, 300 X 600 | B152: 1 | C152: 1 | D152: 22.7 | E152: 0.3 | F152: 0.475 | G152: 3.23 | H152: 1 | I152: Plinth Beam
A153: Grid 14-13/J, 300 X 600 | B153: 1 | C153: 1 | D153: 5.43 | E153: 0.3 | F153: 0.475 | G153: 0.77 | H153: 1 | I153: Plinth Beam
A154: Grid L/13-14, 300 X 600 | B154: 1 | C154: 1 | D154: 4.97 | E154: 0.3 | F154: 0.475 | G154: 0.71 | H154: 1 | I154: Plinth Beam
A155: Grid J,L/12-4, 300 X 600 | B155: 1 | C155: 2 | D155: 21.84 | E155: 0.3 | F155: 0.475 | G155: 6.22 | H155: 1 | I155: Plinth Beam
A156: Grid K/4-24, 300 X 600 | B156: 1 | C156: 1 | D156: 55.7 | E156: 0.3 | F156: 0.475 | G156: 7.94 | H156: 1 | I156: Plinth Beam
A157: Grid M/4-10, 300 X 600 | B157: 1 | C157: 1 | D157: 15.53 | E157: 0.3 | F157: 0.475 | G157: 2.21 | H157: 1 | I157: Plinth Beam
A158: Grid M/10-15, 300 X 600 | B158: 1 | C158: 1 | D158: 18.29 | E158: 0.3 | F158: 0.475 | G158: 2.61 | H158: 1 | I158: Plinth Beam
A159: Grid J,L/15-24, 300 X 600 | B159: 1 | C159: 2 | D159: 21.85 | E159: 0.3 | F159: 0.475 | G159: 6.23 | H159: 1 | I159: Plinth Beam
A160: Grid M/15-24, 300 X 600 | B160: 1 | C160: 1 | D160: 22.07 | E160: 0.3 | F160: 0.475 | G160: 3.14 | H160: 1 | I160: Plinth Beam
A161: Grid 15/M-Q, 300 X 600 | B161: 1 | C161: 1 | D161: 6.82 | E161: 0.3 | F161: 0.475 | G161: 0.97 | H161: 1 | I161: Plinth Beam
A162: Grid 10,12/M-Q, 300 X 600 | B162: 1 | C162: 2 | D162: 6.91 | E162: 0.3 | F162: 0.475 | G162: 1.97 | H162: 1 | I162: Plinth Beam
A163: Grid M-W/13-14, 300 X 600 | B163: 1 | C163: 2 | D163: 36.7 | E163: 0.3 | F163: 0.475 | G163: 10.46 | H163: 1 | I163: Plinth Beam
A164: Grid Q/10-15, 300 X 600 | B164: 1 | C164: 1 | D164: 18.23 | E164: 0.3 | F164: 0.475 | G164: 2.6 | H164: 1 | I164: Plinth Beam
A165: Grid 6,9,11,13,14,17,20,22/R-W, 300 X 600 | B165: 1 | C165: 8 | D165: 28.75 | E165: 0.3 | F165: 0.475 | G165: 32.78 | H165: 1 | I165: Plinth Beam
A166: Grid R,S/6-22, 300 X 600 | B166: 1 | C166: 2 | D166: 40.33 | E166: 0.3 | F166: 0.475 | G166: 11.49 | H166: 1 | I166: Plinth Beam
A167: Grid T,U,V,W/6-13, 300 X 600 | B167: 1 | C167: 4 | D167: 17.38 | E167: 0.3 | F167: 0.475 | G167: 9.91 | H167: 1 | I167: Plinth Beam
A168: Grid T,U,V,W/22-24, 300 X 600 | B168: 1 | C168: 4 | D168: 17.4 | E168: 0.3 | F168: 0.475 | G168: 9.92 | H168: 1 | I168: Plinth Beam
A169: Grid 4,5/J-K, 300 X 600 | B169: 1 | C169: 2 | D169: 3.53 | E169: 0.3 | F169: 0.475 | G169: 1.01 | H169: 1 | I169: Plinth Beam
A170: Grid 5-6/J-K, 300 X 600 | B170: 1 | C170: 1 | D170: 3.53 | E170: 0.3 | F170: 0.475 | G170: 0.5 | H170: 1 | I170: Plinth Beam
A171: Grid 10-11/M-Q, 300 X 600 | B171: 1 | C171: 1 | D171: 6.91 | E171: 0.3 | F171: 0.475 | G171: 0.98 | H171: 1 | I171: Plinth Beam
A172: Grid 12-13/ T,U,V,W, 300 X 600 | B172: 1 | C172: 4 | D172: 5.02 | E172: 0.3 | F172: 0.475 | G172: 2.86 | H172: 1 | I172: Plinth Beam
A173: Grid I-J/19,21, 300 X 600 | B173: 1 | C173: 2 | D173: 3.53 | E173: 0.3 | F173: 0.475 | G173: 1.01 | H173: 1 | I173: Plinth Beam
A174: Grid D-E/7-3, 230 X 400 | B174: 1 | C174: 3 | D174: 4.43 | E174: 0.23 | F174: 0.275 | G174: 0.84 | H174: 1 | I174: Plinth Beam
A175: Grid F-H/2-7, 230 X 400 | B175: 1 | C175: 5 | D175: 4.43 | E175: 0.23 | F175: 0.275 | G175: 1.4 | H175: 1 | I175: Plinth Beam
A176: Grid F-H/6-4, 230 X 400 | B176: 1 | C176: 1 | D176: 6.22 | E176: 0.23 | F176: 0.275 | G176: 0.39 | H176: 1 | I176: Plinth Beam
A177: Grid F-H/6-4, 230 X 400 | B177: 1 | C177: 1 | D177: 2.03 | E177: 0.23 | F177: 0.275 | G177: 0.13 | H177: 1 | I177: Plinth Beam
A178: Grid F-H/4-2, 230 X 400 | B178: 1 | C178: 1 | D178: 1.75 | E178: 0.23 | F178: 0.275 | G178: 0.11 | H178: 1 | I178: Plinth Beam
A179: Grid F-H/4-2, 230 X 400 | B179: 1 | C179: 2 | D179: 2.78 | E179: 0.23 | F179: 0.275 | G179: 0.35 | H179: 1 | I179: Plinth Beam
A180: Grid F-H/4-2, 230 X 400 | B180: 1 | C180: 1 | D180: 2.86 | E180: 0.23 | F180: 0.275 | G180: 0.18 | H180: 1 | I180: Plinth Beam
A181: Grid F-H/4-2, 230 X 400 | B181: 1 | C181: 1 | D181: 4.79 | E181: 0.23 | F181: 0.275 | G181: 0.3 | H181: 1 | I181: Plinth Beam
A182: Grid F-H/4-2, 230 X 400 | B182: 1 | C182: 3 | D182: 1.91 | E182: 0.23 | F182: 0.275 | G182: 0.36 | H182: 1 | I182: Plinth Beam
A183: Grid F-H/4-2, 230 X 400 | B183: 1 | C183: 1 | D183: 1.36 | E183: 0.23 | F183: 0.275 | G183: 0.09 | H183: 1 | I183: Plinth Beam
A184: Grid F-H/4-2, 230 X 400 | B184: 1 | C184: 1 | D184: 1.85 | E184: 0.23 | F184: 0.275 | G184: 0.12 | H184: 1 | I184: Plinth Beam
A185: Grid 12-11/B-D, 230 X 400 | B185: 1 | C185: 1 | D185: 4.42 | E185: 0.23 | F185: 0.275 | G185: =ROUND(PRODUCT(B185:F185),2) -> 0.28 | H185: 1 | I185: Plinth Beam
A186: Grid 12-11/D'-E, 230 X 400 | B186: 1 | C186: 1 | D186: 3.81 | E186: 0.23 | F186: 0.275 | G186: 0.24 | H186: 1 | I186: Plinth Beam
A187: Grid J-K/5-4, 230 X 400 | B187: 1 | C187: 1 | D187: 4.43 | E187: 0.23 | F187: 0.275 | G187: 0.28 | H187: 1 | I187: Plinth Beam
A188: Grid J-K/5-4, 230 X 400 | B188: 1 | C188: 1 | D188: 3.55 | E188: 0.23 | F188: 0.275 | G188: 0.22 | H188: 1 | I188: Plinth Beam
A189: Grid J-K/10-6, 230 X 400 | B189: 1 | C189: 1 | D189: 7.19 | E189: 0.23 | F189: 0.275 | G189: 0.45 | H189: 1 | I189: Plinth Beam
A190: Grid J-K/10-6, 230 X 400 | B190: 1 | C190: 1 | D190: 4.43 | E190: 0.23 | F190: 0.275 | G190: 0.28 | H190: 1 | I190: Plinth Beam
A191: Grid L-M/6-7, 230 X 400 | B191: 1 | C191: 1 | D191: 4.43 | E191: 0.23 | F191: 0.275 | G191: 0.28 | H191: 1 | I191: Plinth Beam
A192: Grid I-J/11-12, 230 X 400 | B192: 1 | C192: 1 | D192: 3.53 | E192: 0.23 | F192: 0.275 | G192: 0.22 | H192: 1 | I192: Plinth Beam
A193: Grid 10-12/L-M, 230 X 400 | B193: 1 | C193: 1 | D193: 6.06 | E193: 0.23 | F193: 0.275 | G193: 0.38 | H193: 1 | I193: Plinth Beam
A194: Grid 10-12/L-M, 230 X 400 | B194: 1 | C194: 2 | D194: 3.2 | E194: 0.23 | F194: 0.275 | G194: 0.4 | H194: 1 | I194: Plinth Beam
A195: Grid O/10-12, 230 X 400 | B195: 1 | C195: 1 | D195: 6.22 | E195: 0.23 | F195: 0.275 | G195: 0.39 | H195: 1 | I195: Plinth Beam
A196: Grid S-T/10-6, 230 X 400 | B196: 1 | C196: 1 | D196: 6.63 | E196: 0.23 | F196: 0.275 | G196: 0.42 | H196: 1 | I196: Plinth Beam
A197: Grid S-T/10-6, 230 X 400 | B197: 1 | C197: 1 | D197: 6.98 | E197: 0.23 | F197: 0.275 | G197: 0.44 | H197: 1 | I197: Plinth Beam
A198: Grid U-V/9-6, 230 X 400 | B198: 1 | C198: 1 | D198: 6.95 | E198: 0.23 | F198: 0.275 | G198: 0.44 | H198: 1 | I198: Plinth Beam
A199: Grid U-V/9-6, 230 X 400 | B199: 1 | C199: 1 | D199: 6.43 | E199: 0.23 | F199: 0.275 | G199: 0.41 | H199: 1 | I199: Plinth Beam
A200: Grid U-V/9-6, 230 X 400 | B200: 1 | C200: 1 | D200: 1.86 | E200: 0.23 | F200: 0.275 | G200: 0.12 | H200: 1 | I200: Plinth Beam
A201: Grid 7/V-W, 230 X 400 | B201: 1 | C201: 1 | D201: 4 | E201: 0.23 | F201: 0.275 | G201: 0.25 | H201: 1 | I201: Plinth Beam
... 1144 more rows

Sheet Sheet4 (hidden)
B3: Raft | C3: 1 | D3: 1 | E3: 1173.42 | G3: 160 | H3: =ROUNDUP(PRODUCT(C3:G3),2) -> 187747.2
B4: Raft Beam | C4: 1 | D4: 1 | E4: 711.13 | G4: 160 | H4: =ROUNDUP(PRODUCT(C4:G4),2) -> 113780.8
B5: Column Pedestal | C5: 1 | D5: 1 | E5: 61.82 | G5: 225 | H5: 13909.5
B6: Column | C6: 1 | D6: 1 | E6: 832.6 | G6: 225 | H6: 187335
B7: Plinth beam | C7: 1 | D7: 1 | E7: 262.93 | G7: 130 | H7: 34180.9
B8: Beam | C8: 1 | D8: 1 | E8: 1492.96 | G8: 130 | H8: 194084.8
B9: Grade slab | C9: 1 | D9: 1 | E9: 470.09 | G9: 75 | H9: 35256.75
B10: Slab including ramp | C10: 1 | D10: 1 | E10: 2126.65 | G10: 85 | H10: 180765.25
B11: Staircase | C11: 1 | D11: 1 | E11: 136.26 | G11: 130 | H11: 17713.8
B12: Lintel beams & sunshades | C12: 1 | D12: 1 | E12: =132.42+114.3 -> 246.72 | G12: 75 | H12: 18504
B13: Lift & wall | C13: 1 | D13: 1 | E13: =236.66+28.26 -> 264.92 | G13: 130 | H13: 34439.6
E14: =SUM(E3:E13) -> 7779.5 | H14: =SUM(H3:H13) -> 1017717.6
H15: =H14/E14 -> 130.8204383

Sheet Sheet5 (hidden)
B3: Udhi Tree | C3: 0.9 | E3: =IF($C3>0.3,IF($C3<=0.6,1,0),0) -> 0 | F3: =IF($C3>0.6,IF($C3<=1.2,1,0),0) -> 1 | G3: =IF($C3>1.2,IF($C3<=2.4,1,0),0) -> 0 | H3: =IF($C3>2.4,1,0) -> 0
B4: Udhi Tree | C4: 0.85 | E4: =IF($C4>0.3,IF($C4<=0.6,1,0),0) -> 0 | F4: =IF($C4>0.6,IF($C4<=1.2,1,0),0) -> 1 | G4: =IF($C4>1.2,IF($C4<=2.4,1,0),0) -> 0 | H4: =IF($C4>2.4,1,0) -> 0
B5: Mango Tree | C5: 1.27 | E5: 0 | F5: 0 | G5: 1 | H5: 0
B6: South Indian Plum Tree | C6: 2.4 | E6: 0 | F6: 0 | G6: 1 | H6: 0
B7: South Indian Plum Tree | C7: 1.78 | E7: 0 | F7: 0 | G7: 1 | H7: 0
B8: Aquasia Tree | C8: 0.85 | E8: 0 | F8: 1 | G8: 0 | H8: 0
B9: Mango Tree | C9: 2.5 | E9: 0 | F9: 0 | G9: 0 | H9: 1
B10: South Indian Plum Tree | C10: 1.5 | E10: 0 | F10: 0 | G10: 1 | H10: 0
B11: Aquasia Tree | C11: 1.7 | E11: 0 | F11: 0 | G11: 1 | H11: 0
B12: Aquasia Tree | C12: 1.15 | E12: 0 | F12: 1 | G12: 0 | H12: 0
B13: Mango Tree | C13: 2.3 | E13: 0 | F13: 0 | G13: 1 | H13: 0
B14: Njaval Tree | C14: 1.2 | E14: 0 | F14: 1 | G14: 0 | H14: 0
B15: Mango Tree | C15: 1.5 | E15: 0 | F15: 0 | G15: 1 | H15: 0
B16: Udhi Tree | C16: 1.85 | E16: 0 | F16: 0 | G16: 1 | H16: 0
B17: Coconut Tree | C17: 0.8 | E17: 0 | F17: 1 | G17: 0 | H17: 0
B18: Mango Tree | C18: 1.4 | E18: 0 | F18: 0 | G18: 1 | H18: 0
B19: Mango Tree | C19: 0.85 | E19: 0 | F19: 1 | G19: 0 | H19: 0
B20: Mango Tree | C20: 1.25 | E20: 0 | F20: 0 | G20: 1 | H20: 0
B21: Mango Tree | C21: 1.7 | E21: 0 | F21: 0 | G21: 1 | H21: 0
B22: Tamarind Tree | C22: 1.5 | E22: 0 | F22: 0 | G22: 1 | H22: 0
B23: Coconut Tree | C23: 0.8 | E23: 0 | F23: 1 | G23: 0 | H23: 0
B24: Mango Tree | C24: 2.5 | E24: 0 | F24: 0 | G24: 0 | H24: 1
B25: Perumaram | C25: 1.1 | E25: 0 | F25: 1 | G25: 0 | H25: 0
B26: Perumaram | C26: 0.9 | E26: 0 | F26: 1 | G26: 0 | H26: 0
C27: =COUNT(C3:C26) -> 24 | E27: =SUM(E3:E26) -> 0 | F27: =SUM(F3:F26) -> 10 | G27: =SUM(G3:G26) -> 12 | H27: =SUM(H3:H26) -> 2

Sheet Sheet2 (hidden)
A4: 44 | B4: 9.1.1 | C4: Teak wood door and window frames (Hold fast separate) | E4: Cum | F4: 91496.9 | G4: =ROUND(D4*F4,2) -> 0
A5: 45 | B5: 9.5.1.1 + 9.14 | C5: Panelled or panelled and glazed shutters for doors, windows excluding, panelling which will be paid for separately, all complete as per direction of Engineer-in-charge. Second class teak wood: 35 mm thick shutters | E5: Sqm | F5: =2689.05+253.5 -> 2942.55 | G5: 0
A6: 46 | B6: 9.7 | C6: Providing and fixing panelling or panelling and glazing in panelled or panelled and glazed shutters for doors, windows and clerestory windows (Area of opening for panel inserts excluding portion inside grooves or rebates to be measured). Panelling for panelled or panelled and glazed shutters 25 mm to 40 mm thick :
A7: a | B7: 9.7.1 | C7: Second class teak wood | E7: Sqm | F7: 2155.6 | G7: 0
A8: b | B8: 9.7.3.1 | C8: Decorative plywood both side decorative veneer (Type - I) conforming to IS 1328 BWR type. | E8: Sqm | F8: 1934.2 | G8: 0
A9: c | B9: 9.7.7.2 | C9: Float glass panes:5.5 mm thick glass panes | E9: Sqm | F9: 1406.75 | G9: 0
A10: 47 | B10: 9.9.1.1 + 9.11.1 + 9.14 | C10: Providing and fixing glazed shutters for doors, windows and clerestory windows using 5.5 mm thick float glass panes including ISI marked Stainless Steel butt hinges bright finished of required size with necessary screws. Second class teak wood 35 mm thick | E10: Sqm | F10: =3262.9+203.25+253.5 -> 3719.65 | G10: 0
A11: 48 | B11: 9.16 | C11: Providing and fixing 25 mm thick shutters for cup board etc. :
A12: a | B12: 9.16.1.1 | C12: Panelled or panelled & glazed shutters :Second class teak wood including ISI marked anodised aluminium butt hinges with necessary screws. | E12: Sqm | F12: 2760.25 | G12: 0
A13: b | B13: 9.16.2.1 | C13: Glazed shutters : Second class teak wood including ISI marked anodized aluminium butt hinges with necessary screws. | E13: Sqm | F13: 2746.1 | G13: 0
A14: 49 | B14: 9.48.2 | C14: Providing and fixing M.S. grills of required pattern in frames of windows etc. with M.S. flats, square or round bars etc. including priming coat with approved steel primer all complete.Fixed to openings /wooden frames with rawl plugs screws etc. | E14: Kg | F14: 116.9 | G14: 0
A15: 50 | B15: 9.53 | C15: Providing 40x5 mm flat iron hold fast 40 cm long including fixing to frame with 10 mm diameter bolts, nuts and wooden plugs and embedding in cement concrete block 30x10x15cm 1:3:6 mix (1 cement : 3 coarse sand : 6 graded stone aggregate 20mm nominal size) | E15: Each | F15: 117.35 | G15: 0
A16: 51 | B16: 9.74 | C16: Providing and fixing bright finished brass tower bolts (barrel type) with necessary screws etc. complete :
A17: a | B17: 9.74.1 | C17: 250x10 mm | E17: Each | F17: 301 | G17: 0
A18: b | B18: 9.74.2 | C18: 200x10 mm | E18: Each | F18: 239.3 | G18: 0
A19: c | B19: 9.74.3 | C19: 150x10 mm | E19: Each | F19: 192.85 | G19: 0
A20: 52 | B20: 9.76 | C20: Providing and fixing bright finished brass 100 mm mortice latch and lock with 6 levers and a pair of lever handles with necessary screws etc. complete (best make of approved quality). | E20: Each | F20: 546.4 | G20: 0
A21: 53 | B21: 9.79.4 | C21: Providing and fixing special quality bright finished brass cupboard or ward robe locks with four levers including necessary screws etc. complete (best make of approved quality) : 75 mm | E21: Each | F21: 209.55 | G21: 0
A22: 54 | B22: 9.81.1 | C22: Providing and fixing bright finished brass handles with screws etc. complete: 125 mm | E22: Each | F22: 182.45 | G22: 0
A23: 55 | B23: 9.82 | C23: Providing and fixing bright finished brass hanging type floor door stopper with necessary screws, etc. complete. | E23: Each | F23: 85.7 | G23: 0
A24: 56 | B24: 9.83 | C24: Providing and fixing aluminium die cast body tubular type universal hydraulic door closer (having brand logo with ISI, IS : 3564, embossed on the body, door weight upto 35 kg and door width upto 700 mm) with necessary accessories and screws etc. complete. | E24: Each | F24: 753.75 | G24: 0
A25: 57 | B25: 9.84 | C25: Providing and fixing aluminium extruded section body tubular type universal hydraulic door closer (having brand logo with ISI, IS : 3564, embossed on the body, door weight upto 36 kg to 80 kg and door width from 701 mm to 1000 mm) with double speed adjustment with necessary accessories and screws etc. complete. | E25: Each | F25: 1043.6 | G25: 0
A26: 58 | B26: 9.85 | C26: Providing and fixing bright finished brass casement window fastener with necessary screws etc. complete. | E26: Each | F26: 79.6 | G26: 0
A27: 59 | B27: 9.86 | C27: Providing and fixing bright finished brass casement stays (straight peg type) with necessary screws etc. complete :
A28: a | B28: 9.86.1 | C28: 300 mm weighing not less than 330 gms | E28: Each | F28: 180.15 | G28: 0
A29: b | B29: 9.86.2 | C29: 250 mm weighing not less than 280 gms | E29: Each | F29: 149.25 | G29: 0
A30: c | B30: 9.86.3 | C30: 200 mm weighing not less than 240 gms | E30: Each | F30: 137.65 | G30: 0
A31: 60 | B31: 9.88 | C31: Providing and fixing chromium plated brass 100 mm mortice latch and lock with 6 levers and a pair of lever handles with necessary screws etc. complete (best make of approved quality). | E31: Each | F31: 790.3 | G31: 0
A32: 61 | B32: 9.129 | C32: Providing and fixing cup board shutters 25mm thick, with Pre-laminated flat pressed three layer particle board or graded wood particle board IS: 12823 marked exterior grade (Grade l Type ll) having one side decorative lamination and other side balancing lamination including IInd class teak wood lipping of 25mm wide x12 mm thick with necessary screws and bright finished stainless steel piano hinges complete as per direction of the Engineer-in-Charge | E32: Sqm | F32: 1629.75 | G32: 0
A33: 62 | B33: 9.136 | C33: Providing and fixing fire resistant door frame of section 143 x 57 mm having built in rebate made out of 16 SWG G.I.sheet (zinc coating not less than 120 gm/sqm) duly filled with vermuculite based concrete mix, suitable for mounting 60 minutes fire rated door shutters. The frame is fitted with intumuscent fire seal strip of size 10x4 mm (minimum) alround the frame and fixing with dash fastener of approved size and make, including applying a coat of approved brand fire resistant primer etc. complete as per direction of Engineer-in-charge (Dash fastener to be paid for separately). | E33: m | F33: 1250.05 | G33: 0
A34: 63 | B34: 9.137 | C34: Providing and fixing 50 mm thick glazed fire resistant door shutters of 60 minutes fire rating conforming to IS:3614 (Part-II) tested and certified as per laboratory approved by Engineer-in-charge with suitable mounting on door frame, consisting of vertical styles, lock rail, top rail 100mm wide, bottom rail 200mm wide, made out of 16 SWG G.I.sheet (zinc coating not less than 120 gm/m2) duly filled FR insulation material and fixing with necessary stainless steel ball bearing hinges of approved make, including applying a coat of approved fire resistant primer etc. all complete as per direction of Engineer-in-charge (panneling to be paid for separately). | E34: Sqm | F34: 6268.2 | G34: 0
A35: 64 | B35: 9.138.1 | C35: Providing and fixing glazing in fire resistant door shutters, fixed panels, ventilators and partitions etc., with G.I. beading of appropriate size made out of 20 SWG G.I.sheet (zinc coating not less than 120 gm/m2), fire resistant sealant, including applying a coat of approved fire resistant primer on G.I. beading etc. complete all as per direction of Engineer-in-charge. With clear fire resistant glass panes 6mm thick of approved brand, having minimum 60 minutes fire resistance | E35: Sqm | F35: 27658.7 | G35: 0
A36: 65 | B36: 9.141 | C36: Providing and fixing PVC Door Frame of size 50x47mm with a wall thickness of 5 mm (± 0.2 mm) made out of single piece extruded PVC profile, with mitred cut joints and joint with 2nos of PVC bracket of size 190 mm x 100 mm long arms of cross section size 35 x 15mm & self driven self taping screws, the vertical door profiles to be reinforced with 40x20mm M.S. rectangular tube of 0.8 mm , including providing EPDM rubber gasket weather seal throughout the frame, including jointing 5mm PVC frame strip with PVC solvent cement on the back of the profile. The door frame to be fixed to the wall using 8 x100mm long anchor fasteners complete, all as per manufacturer’s specification and direction of Engineer -in- charge. | E36: m | F36: 611.55 | G36: 0
A37: 66 | B37: 9.142.2 | C37: 35 mm thick factory made Solid panel PVC Door shutter made out of single piece extruded soild PVC profiles, 5 mm (± 0.2mm) thick, having styles & rails (except lock rail) of size 95 mmx 35 mm x 5 mm, out of which 75 mm shall be flat and 20 mm shall be tapered (on both side), having one side thickness of 15 mm integrally extruded on the hinge side of the profile for better screw holding power, including reinforcing with MS tube of size 40 mm X 20 mm x 1 mm, joints of styles & rails to be mitered cut & joint with the help of PVC solvent cement, self driven self tapping screws & M.S. rectangular pipes bracket of size 190 mm X 100 mm of cross section size 35 mm x 17 mm x 1 mm at each corner.
C38: Single piece extruded 5mm thick solid PVC Lock rail of size 115 mm x 35 mm x 35 mm, out of which 95 mm to be flat and 20 mm to be tapered at both ends, having 15 mm solid core in middle of rail section integrally extruded, fixing the styles & rails with the help of solvent and self driven self tapping screws of 125 mm x 11 mm, including providing 5 mm Single piece solid PVC extruded sheet inserted in the door as panel, all complete as per manufacturer's specification and direction of Engineer-in-charge.Decorative finish (wood grained finish). | E38: Sqm | F38: 3222.9 | G38: =ROUND(D38*F38,2) -> 0
A39: 67 | B39: 9.147 | C39: Providing and Fixing, uPVC factory made, white colour casement/sliding window and door made of extruded profiles. Profiles of frames and sash will be mitered cut and fusion welded at all corners including drilling of holes for fixing hardware and drainage of water etc., making arrangement for fixing of hardware, EPDM gasket, 1.2 ± 0.2mm thick galvanised steel profile to be inserted in required profile, frame will be fixed to the wall with 8 mm x 100 mm long fasteners, all complete as per direction of Engineer-in-charge. (Glazing, hardware hinges and fitting etc. to be paid separately.)Note :- Each member of window to be measured separately with clear length.
A40: a) | B40: 9.147.1 | C40: Casement Window (Outward/Inward opening) with hinge System.
A41: i | B41: 9.147.1.1 | C41: Frame (50 mm x 50mm) | E41: m | F41: 436.85 | G41: =ROUND(D41*F41,2) -> 0
A42: ii | B42: 9.147.1.2 | C42: Sash (Style and Rail) (62 mm x 34 mm) | E42: m | F42: 418.55 | G42: 0
A43: iii | B43: 9.147.1.3 | C43: Mullion (intermediate Section) (66mm x 50 mm) | E43: m | F43: 461.25 | G43: 0
A44: iv | B44: 9.147.1.4 | C44: T' Profile (one vertical length in between two shutters) (24mm x 34.5mm) | E44: m | F44: 100.15 | G44: 0
A45: v | B45: 9.147.1.5 | C45: Glazing bead (12mm x 18mm) | E45: m | F45: 130.65 | G45: 0
A46: b) | B46: 9.147.2 | C46: Casement Window (With friction hinge & outward opening)
A47: i | B47: 9.147.2.1 | C47: Casement Frame (67mm x 62mm) | E47: m | F47: 491.7 | G47: 0
A48: ii | B48: 9.147.2.2 | C48: Casement Window Sash/Mullion (67mm x 75mm ) (style, rail and intermediate section) | E48: m | F48: 528.3 | G48: 0
A49: iii | B49: 9.147.2.3 | C49: Casement Glazing bead (35mm x 18 mm) | E49: m | F49: 174.55 | G49: 0
